Workbook

Sheet 1. Utility_Info
AB1: 1
AB2: =VLOOKUP(AB1, $AA$20:$AB$106, 2,0) -> Algoma Power Inc. | AC2: =VLOOKUP($AB1, $AA$20:$AF$106, MATCH(AC$20, $AA$20:$AF$20,0),FALSE) ->  | AD2: =VLOOKUP($AB1, $AA$20:$AF$106, MATCH(AD$20, $AA$20:$AF$20,0),FALSE) ->  | AE2: =VLOOKUP($AB1, $AA$20:$AF$106, MATCH(AE$20, $AA$20:$AF$20,0),FALSE) -> 
A13: 2011-12-12 | C13: Notes pages removed - kcr
C17: Name: | D17: Douglas R. Bradbury
C19: Title: | D19: Director, Regulatory Affairs
AB20: Company Name
C21: Phone Number: | D21: 905-994-3634 | AA21: 1 | AB21: Algoma Power Inc.
AA22: 2 | AB22: Atikokan Hydro Inc.
C23: Email Address: | D23: doug.bradbury@fortisontario.com | AA23: 3 | AB23: Attawapiskat Power Corp.
AA24: 4 | AB24: Bluewater Power Distribution Corporation
C25: We are applying for rates effective: | D25: 2013-01-01 | AA25: 5 | AB25: Brant County Power Inc.
AA26: 6 | AB26: Brantford Power Inc.
C27: Last COS Re-based Year | D27: 2010 | AA27: 7 | AB27: Burlington Hydro Inc.
AA28: 8 | AB28: Cambridge and North Dumfries Hydro Inc.
AA29: 9 | AB29: Canadian Niagara Power Inc. - Eastern Ontario Power
AA30: 10 | AB30: Canadian Niagara Power Inc. - Fort Erie
AA31: 11 | AB31: Canadian Niagara Power Inc. - Port Colborne Hydro Inc.
AA32: 12 | AB32: Centre Wellington Hydro Ltd.
AA33: 13 | AB33: Chapleau Public Utilities Corporation
AA34: 14 | AB34: Chatham-Kent Hydro Inc.
AA35: 15 | AB35: Clinton Power Corporation
AA36: 16 | AB36: COLLUS Power Corporation
AA37: 17 | AB37: Cooperative Hydro Embrun Inc.
AA38: 18 | AB38: E.L.K. Energy Inc.
AA39: 19 | AB39: Enersource Hydro Mississauga Inc.
AA40: 20 | AB40: ENWIN Utilities Ltd.
AA41: 21 | AB41: Erie Thames Powerlines Corporation
AA42: 22 | AB42: Espanola Regional Hydro Distribution Corporation
AA43: 23 | AB43: Essex Powerlines Corporation
AA44: 24 | AB44: Festival Hydro Inc.
AA45: 25 | AB45: Festival Hydro Inc. - Hensall
AA46: 26 | AB46: Fort Albany Power Corporation
AA47: 27 | AB47: Fort Frances Power Corporation
AA48: 28 | AB48: Greater Sudbury Hydro Inc.
AA49: 29 | AB49: Grimsby Power Inc.
AA50: 30 | AB50: Guelph Hydro Electric Systems Inc.
AA51: 31 | AB51: Haldimand County Hydro Inc.
AA52: 32 | AB52: Halton Hills Hydro Inc.
AA53: 33 | AB53: Hearst Power Distribution Company Limited
AA54: 34 | AB54: Horizon Utilities Corporation
AA55: 35 | AB55: Hydro 2000 Inc.
AA56: 36 | AB56: Hydro Hawkesbury Inc.
AA57: 37 | AB57: Hydro One Brampton Networks Inc.
AA58: 38 | AB58: Hydro One Networks Inc.
AA59: 39 | AB59: Hydro Ottawa Limited
AA60: 40 | AB60: Innisfil Hydro Distribution Systems Limited
AA61: 41 | AB61: Kashechewan Power Corporation
AA62: 42 | AB62: Kenora Hydro Electric Corporation Ltd.
AA63: 43 | AB63: Kingston Hydro Corporation
AA64: 44 | AB64: Kitchener-Wilmot Hydro Inc.
AA65: 45 | AB65: Lakefront Utilities Inc.
AA66: 46 | AB66: Lakeland Power Distribution Ltd.
AA67: 47 | AB67: London Hydro Inc.
AA68: 48 | AB68: Middlesex Power Distribution Corporation
AA69: 49 | AB69: Middlesex Power Distribution Corporation - Dutton
AA70: 50 | AB70: Middlesex Power Distribution Corporation - Newbury
AA71: 51 | AB71: Midland Power Utility Corporation
AA72: 52 | AB72: Milton Hydro Distribution inc.
AA73: 53 | AB73: Newmarket - Tay Power Distribution Ltd.
AA74: 54 | AB74: Niagara Peninsula Energy Inc.
AA75: 55 | AB75: Niagara-on-the-Lake Hydro Inc.
AA76: 56 | AB76: Norfolk Power Distribution Inc.
AA77: 57 | AB77: North Bay Hydro Distribution Limited
AA78: 58 | AB78: Northern Ontario Wires Inc.
AA79: 59 | AB79: Oakville Hydro Electricity Distribution Inc.
AA80: 60 | AB80: Orangeville Hydro Limited
AA81: 61 | AB81: Orillia Power Distribution Corporation
AA82: 62 | AB82: Oshawa PUC Networks Inc.
AA83: 63 | AB83: Ottawa River Power Corporation
AA84: 64 | AB84: Parry Sound Power Corporation
AA85: 65 | AB85: Peterborough Distribution Incorporated
AA86: 66 | AB86: PowerStream Inc. - Barrie
AA87: 67 | AB87: PowerStream Inc. - South
AA88: 68 | AB88: PUC Distribution Inc.
AA89: 69 | AB89: Renfrew Hydro Inc.
AA90: 70 | AB90: Rideau St. Lawrence Distribution Inc.
AA91: 71 | AB91: Sioux Lookout Hydro Inc.
AA92: 72 | AB92: St. Thomas Energy Inc.
AA93: 73 | AB93: Thunder Bay Hydro Electricity Distribution Inc.
AA94: 74 | AB94: Tillsonburg Hydro Inc.
AA95: 75 | AB95: Toronto Hydro-Electric System Limited
AA96: 76 | AB96: Veridian Connections Inc.
AA97: 77 | AB97: Veridian Connections Inc. - Gravenhurst
AA98: 78 | AB98: Wasaga Distribution Inc.
AA99: 79 | AB99: Waterloo North Hydro Inc.
AA100: 80 | AB100: Welland Hydro-Electric System Corp.
AA101: 81 | AB101: Wellington North Power Inc.
AA102: 82 | AB102: West Coast Huron Energy Inc.
AA103: 83 | AB103: West Perth Power Inc.
AA104: 84 | AB104: Westario Power Inc.
AA105: 85 | AB105: Whitby Hydro Electric Corporation
AA106: 86 | AB106: Woodstock Hydro Services Inc.

Sheet 2. Smart_Meter_Costs
G18: 2006 | I18: 2007 | K18: 2008 | M18: 2009 | O18: 2010 | Q18: 2011 | S18: 2012 | U18: 2013 | W18: Total
B19: Smart Meter Capital Cost and Operational Expense Data | G19: Audited Actual | I19: Audited Actual | K19: Audited Actual | M19: Audited Actual | O19: Audited Actual | Q19: Audited Actual | S19: Forecast | U19: Forecast
C21: Smart Meter Installation Plan
C23: Actual/Planned number of Smart Meters installed during the Calendar Year
C25: Residential | M25: 363 | O25: 9978 | Q25: 247 | W25: =SUM(G25,I25,K25,M25,O25,Q25,S25,U25) -> 10588
C27: General Service < 50 kW | M27: 45 | O27: 689 | Q27: 213 | W27: =SUM(G27,I27,K27,M27,O27,Q27,S27,U27) -> 947
C29: Actual/Planned number of Smart Meters installed (Residential and GS < 50 kW only) | G29: =G25+G27 -> 0 | I29: =I25+I27 -> 0 | K29: =K25+K27 -> 0 | M29: =M25+M27 -> 408 | O29: =O25+O27 -> 10667 | Q29: =Q25+Q27 -> 460 | S29: =S25+S27 -> 0 | U29: =U25+U27 -> 0 | W29: =SUM(G29,I29,K29,M29,O29,Q29,S2,U29) -> 11535
C31: Percentage of Residential and GS < 50 kW Smart Meter Installations Completed | G31: =IF($W29=0,0,G29/$W29) -> 0 | I31: =IF(G31=100%, 0, IF(ISERROR(SUM(G29:I29)/$W29),0,SUM(G29:I29)/$W29)) -> 0 | K31: =IF(I31=100%, 0, IF(ISERROR(SUM(G29:K29)/$W29), 0, SUM(G29:K29)/$W29)) -> 0 | M31: =IF(K31=100%,0,IF(ISERROR(SUM(G29:M29)/$W29),0,SUM(G29:M29)/$W29)) -> 0.03537061118 | O31: =IF(M31=100%,0,IF(ISERROR(SUM(G29:O29)/$W29),0,SUM(G29:O29)/$W29)) -> 0.9601213697 | Q31: =IF(O31=100%,0,IF(ISERROR(SUM(G29:Q29)/$W29),0,SUM(G29:Q29)/$W29)) -> 1 | S31: =IF(Q31=100%,0,IF(ISERROR(SUM(G29:S29)/$W29),0,SUM(G29:S29)/$W29)) -> 0 | U31: =IF(S31=100%,0,IF(ISERROR(SUM(I29:U29)/$W29),0,SUM(I29:U29)/$W29)) -> 1 | W31: =IF($W29=0,"",W29/$W29) -> 1
C33: Actual/Planned number of GS > 50 kW meters installed | Q33: 34 | W33: =SUM(G33,I33,K33,M33,O33,Q33,S33,U33) -> 34
C35: Other (please identify) | W35: =SUM(G35,I35,K35,M35,O35,Q35,S35,U35) -> 0
C37: Total Number of Smart Meters installed or planned to be installed | G37: =SUM(G29,G33,G35) -> 0 | I37: =SUM(I29,I33,I35) -> 0 | K37: =SUM(K29,K33,K35) -> 0 | M37: =SUM(M29,M33,M35) -> 408 | O37: =SUM(O29,O33,O35) -> 10667 | Q37: =SUM(Q29,Q33,Q35) -> 494 | S37: =SUM(S29,S33,S35) -> 0 | U37: =SUM(U29,U33,U35) -> 0 | W37: =SUM(G37,I37,K37,M37,O37,Q37,S37,U37) -> 11569
B39: 1 | C39: Capital Costs
E40: Asset Type
C41: 1.1 ADVANCED METERING COMMUNICATION DEVICE (AMCD) | E41: Asset type must be selected to enable calculations | G41: =IF(ISBLANK(G19),"",G19) -> Audited Actual | I41: =IF(ISBLANK(I19),"",I19) -> Audited Actual | K41: =IF(ISBLANK(K19),"",K19) -> Audited Actual | M41: =IF(ISBLANK(M19),"",M19) -> Audited Actual | O41: =IF(ISBLANK(O19),"",O19) -> Audited Actual | Q41: =IF(ISBLANK(Q19),"",Q19) -> Audited Actual | S41: =IF(ISBLANK(S19),"",S19) -> Forecast | U41: =IF(ISBLANK(U19),"",U19) -> Forecast
C42: 1.1.1 Smart Meters (may include new meters and modules, etc.) | E42: Smart Meter | M42: 99526 | O42: 886374 | Q42: 63315 | W42: =SUM(G42,I42,K42,M42,O42,Q42,S42,U42) -> 1049215
C44: 1.1.2 Installation Costs (may include socket kits, labour, vehicle, benefits, etc.) | E44: Smart Meter | M44: 15314 | O44: 421129 | Q44: 244210 | W44: =SUM(G44,I44,K44,M44,O44,Q44,S44,U44) -> 680653
C46: 1.1.3a Workforce Automation Hardware (may include fieldwork handhelds, barcode hardware, etc.) | E46: Computer Hardware | W46: =SUM(G46,I46,K46,M46,O46,Q46,S46,U46) -> 0
C48: 1.1.3b Workforce Automation Software (may include fieldwork handhelds, barcode hardware, etc.) | E48: Computer Software | W48: =SUM(G48,I48,K48,M48,O48,Q48,S48,U48) -> 0
C50: Total Advanced Metering Communications Devices (AMCD) | G50: =SUM(G42,G44,G46,G48) -> 0 | I50: =SUM(I42,I44,I46,I48) -> 0 | K50: =SUM(K42,K44,K46,K48) -> 0 | M50: =SUM(M42,M44,M46,M48) -> 114840 | O50: =SUM(O42,O44,O46,O48) -> 1307503 | Q50: =SUM(Q42,Q44,Q46,Q48) -> 307525 | S50: =SUM(S42,S44,S46,S48) -> 0 | U50: =SUM(U42,U44,U46,U48) -> 0 | W50: =W42+W44+W46+W48 -> 1729868
E52: =E40 -> Asset Type
C53: 1.2 ADVANCED METERING REGIONAL COLLECTOR (AMRC) (includes LAN) | G53: =G41 -> Audited Actual | I53: =I41 -> Audited Actual | K53: =K41 -> Audited Actual | M53: =M41 -> Audited Actual | O53: =O41 -> Audited Actual | Q53: =Q41 -> Audited Actual | S53: =S41 -> Forecast | U53: =U41 -> Forecast
C54: 1.2.1 Collectors | E54: Smart Meter | M54: 1039887 | W54: =SUM(G54,I54,K54,M54,O54,Q54,S54,U54) -> 1039887
C56: 1.2.2 Repeaters (may include radio licence, etc.) | E56: Smart Meter | M56: 32810 | O56: 90327 | U56: 15000 | W56: =SUM(G56,I56,K56,M56,O56,Q56,S56,U56) -> 138137
C58: 1.2.3 Installation (may include meter seals and rings, collector computer hardware, etc.) | E58: Smart Meter | M58: 187613 | O58: 140096 | Q58: 164997 | S58: 52085.13 | U58: 22000 | W58: =SUM(G58,I58,K58,M58,O58,Q58,S58,U58) -> 566791.13
C60: Total Advanced Metering Regional Collector (AMRC) (Includes LAN) | G60: =G54+G56+G58 -> 0 | I60: =I54+I56+I58 -> 0 | K60: =K54+K56+K58 -> 0 | M60: =M54+M56+M58 -> 1260310 | O60: =O54+O56+O58 -> 230423 | Q60: =Q54+Q56+Q58 -> 164997 | S60: =S54+S56+S58 -> 52085.13 | U60: =U54+U56+U58 -> 37000 | W60: =W54+W56+W58 -> 1744815.13
E62: =E52 -> Asset Type
C63: 1.3 ADVANCED METERING CONTROL COMPUTER (AMCC) | G63: =G53 -> Audited Actual | I63: =I53 -> Audited Actual | K63: =K53 -> Audited Actual | M63: =M53 -> Audited Actual | O63: =O53 -> Audited Actual | Q63: =Q53 -> Audited Actual | S63: =S53 -> Forecast | U63: =U53 -> Forecast
C64: 1.3.1 Computer Hardware | E64: Computer Hardware | W64: =SUM(G64,I64,K64,M64,O64,Q64,S64,U64) -> 0
C66: 1.3.2 Computer Software | E66: Computer Software | M66: 950 | W66: =SUM(G66,I66,K66,M66,O66,Q66,S66,U66) -> 950
C68: 1.3.3 Computer Software Licences & Installation (includes hardware and software) | E68: Computer Software | W68: =SUM(G68,I68,K68,M68,O68,Q68,S68,U68) -> 0
C69: (may include AS/400 disk space, backup and recovery computer, UPS, etc.)
C70: Total Advanced Metering Control Computer (AMCC) | G70: =G64+G66+G68 -> 0 | I70: =I64+I66+I68 -> 0 | K70: =K64+K66+K68 -> 0 | M70: =M64+M66+M68 -> 950 | O70: =O64+O66+O68 -> 0 | Q70: =Q64+Q66+Q68 -> 0 | S70: =S64+S66+S68 -> 0 | U70: =U64+U66+U68 -> 0 | W70: =W64+W66+W68 -> 950
E72: =E62 -> Asset Type
C73: 1.4 WIDE AREA NETWORK (WAN) | G73: =G63 -> Audited Actual | I73: =I63 -> Audited Actual | K73: =K63 -> Audited Actual | M73: =M63 -> Audited Actual | O73: =O63 -> Audited Actual | Q73: =Q63 -> Audited Actual | S73: =S63 -> Forecast | U73: =U63 -> Forecast
C75: 1.4.1 Activiation Fees | E75: Tools & Equipment | W75: =SUM(G75,I75,K75,M75,O75,Q75,S75,U75) -> 0
C77: Total Wide Area Network (WAN) | G77: =G75 -> 0 | I77: =I75 -> 0 | K77: =K75 -> 0 | M77: =M75 -> 0 | O77: =O75 -> 0 | Q77: =Q75 -> 0 | S77: =S75 -> 0 | U77: =U75 -> 0 | W77: =W75 -> 0
E79: =E72 -> Asset Type
C80: 1.5 OTHER AMI CAPITAL COSTS RELATED TO MINIMUM FUNCTIONALITY | G80: =G73 -> Audited Actual | I80: =I73 -> Audited Actual | K80: =K73 -> Audited Actual | M80: =M73 -> Audited Actual | O80: =O73 -> Audited Actual | Q80: =Q73 -> Audited Actual | S80: =S73 -> Forecast | U80: =U73 -> Forecast
C82: 1.5.1 Customer Equipment (including repair of damaged equipment) | E82: Other Equipment | M82: 123690 | O82: 47681 | Q82: 22692 | W82: =SUM(G82,I82,K82,M82,O82,Q82,S82,U82) -> 194063
C84: 1.5.2 AMI Interface to CIS | E84: Computer Software | M84: 710 | O84: 8805 | Q84: 1164 | W84: =SUM(G84,I84,K84,M84,O84,Q84,S8,U84) -> 10679
C86: 1.5.3 Professional Fees | E86: Computer Software | I86: 19914 | K86: 33572 | M86: 48351 | O86: 34739 | Q86: 14709 | S86: 2990.84 | W86: =SUM(G86,I86,K86,M86,O86,Q86,S86,U86) -> 154275.84
C88: 1.5.4 Integration | E88: Computer Software | O88: 4988 | W88: =SUM(G88,I88,K88,M88,O88,Q88,S88,U88) -> 4988
C90: 1.5.5 Program Management | E90: Computer Software | I90: 11514 | K90: 45348 | M90: 236267 | O90: 117015 | Q90: 52725 | S90: 6248 | W90: =SUM(G90,I90,K90,M90,O90,Q90,S90,U90) -> 469117
C92: 1.5.6 Other AMI Capital | E92: Computer Software | O92: 16795 | Q92: 1500 | W92: =SUM(G92,I92,K92,M92,O92,Q92,S92,U92) -> 18295
C94: Total Other AMI Capital Costs Related to Minimum Functionality | G94: =SUM(G82,G84,G86,G88,G90,G92) -> 0 | I94: =SUM(I82,I84,I86,I88,I90,I92) -> 31428 | K94: =SUM(K82,K84,K86,K88,K90,K92) -> 78920 | M94: =SUM(M82,M84,M86,M88,M90,M92) -> 409018 | O94: =SUM(O82,O84,O86,O88,O90,O92) -> 230023 | Q94: =SUM(Q82,Q84,Q86,Q88,Q90,Q92) -> 92790 | S94: =SUM(S82,S84,S86,S88,S90,S92) -> 9238.84 | U94: =SUM(U82,U84,U86,U88,U90,U92) -> 0 | W94: =SUM(W82,W84,W86,W88,W90,W92) -> 851417.84
C96: Total Capital Costs Related to Minimum Functionality | G96: =SUM(G50,G60,G70,G77,G94) -> 0 | I96: =SUM(I50,I60,I70,I77,I94) -> 31428 | K96: =SUM(K50,K60,K70,K77,K94) -> 78920 | M96: =SUM(M50,M60,M70,M77,M94) -> 1785118 | O96: =SUM(O50,O60,O70,O77,O94) -> 1767949 | Q96: =SUM(Q50,Q60,Q70,Q77,Q94) -> 565312 | S96: =SUM(S50,S60,S70,S77,S94) -> 61323.97 | U96: =SUM(U50,U60,U70,U77,U94) -> 37000 | W96: =SUM(W50,W60,W70,W77,W94) -> 4327050.97
E98: =E79 -> Asset Type
C99: 1.6 CAPITAL COSTS BEYOND MINIMUM FUNCTIONALITY | G99: =G80 -> Audited Actual | I99: =I80 -> Audited Actual | K99: =K80 -> Audited Actual | M99: =M80 -> Audited Actual | O99: =O80 -> Audited Actual | Q99: =Q80 -> Audited Actual | S99: =S80 -> Forecast | U99: =U80 -> Forecast
C100: (Please provide a descriptive title and identify nature of beyond minimum functionality costs)
C101: 1.6.1 Costs related to technical capabilities in the smart meters or related communications infrastructure that exceed those specified in O.Reg 425/06 | W101: =SUM(G101,I101,K101,M101,O101,Q101,S101,U101) -> 0
C103: 1.6.2 Costs for deployment of smart meters to customers other than residential and small general service | W103: =SUM(G103,I103,K103,M103,O103,Q103,S103,U103) -> 0
C105: 1.6.3 Costs for TOU rate implementation, CIS system upgrades, web presentation, integration with the MDM/R, etc. | E105: Computer Software | Q105: 43368.83 | S105: 88021.54 | W105: =SUM(G105,I105,K105,M105,O105,Q105,S105,U105) -> 131390.37
C107: Total Capital Costs Beyond Minimum Functionality | G107: =SUM(G101,G103,G105) -> 0 | I107: =SUM(I101,I103,I105) -> 0 | K107: =SUM(K101,K103,K105) -> 0 | M107: =SUM(M101,M103,M105) -> 0 | O107: =SUM(O101,O103,O105) -> 0 | Q107: =SUM(Q101,Q103,Q105) -> 43368.83 | S107: =SUM(S101,S103,S105) -> 88021.54 | U107: =SUM(U101,U103,U105) -> 0 | W107: =SUM(W101,W103,W105) -> 131390.37
C109: Total Smart Meter Capital Costs | G109: =G96+G107 -> 0 | I109: =I96+I107 -> 31428 | K109: =K96+K107 -> 78920 | M109: =M96+M107 -> 1785118 | O109: =O96+O107 -> 1767949 | Q109: =Q96+Q107 -> 608680.83 | S109: =S96+S107 -> 149345.51 | U109: =U96+U107 -> 37000 | W109: =W96+W107 -> 4458441.34
B111: 2 | C111: OM&A Expenses
C112: 2.1 ADVANCED METERING COMMUNICATION DEVICE (AMCD) | G112: =G99 -> Audited Actual | I112: =I99 -> Audited Actual | K112: =K99 -> Audited Actual | M112: =M99 -> Audited Actual | O112: =O99 -> Audited Actual | Q112: =Q99 -> Audited Actual | S112: =S99 -> Forecast | U112: =U99 -> Forecast
C114: 2.1.1 Maintenance (may include meter reverification costs, etc.) | W114: =SUM(G114,I114,K114,M114,O114,Q114,S114,U114) -> 0
C116: 2.1.2 Other (please specifiy) | W116: =SUM(G116,I116,K116,M116,O116,Q116,S116,U116) -> 0
C118: Total Incremental AMCD OM&A Costs | G118: =SUM(G114,G116) -> 0 | I118: =SUM(I114,I116) -> 0 | K118: =SUM(K114,K116) -> 0 | M118: =SUM(M114,M116) -> 0 | O118: =SUM(O114,O116) -> 0 | Q118: =SUM(Q114,Q116) -> 0 | S118: =SUM(S114,S116) -> 0 | U118: =SUM(U114,U116) -> 0 | W118: =SUM(W114,W116) -> 0
C120: 2.2 ADVANCED METERING REGIONAL COLLECTOR (AMRC) (includes LAN)
C122: 2.2.1 Maintenance | O122: =119161.13-20102.56 -> 99058.57 | Q122: 0 | S122: 0 | W122: =SUM(G122,I122,K122,M122,O122,Q122,S122,U122) -> 99058.57
C124: 2.2.2 Other (please specifiy) | W124: =SUM(G124,I124,K124,M124,O124,Q124,S124,U124) -> 0
C126: Total Incremental AMRC OM&A Costs | G126: =SUM(G122,G124) -> 0 | I126: =SUM(I122,I124) -> 0 | K126: =SUM(K122,K124) -> 0 | M126: =SUM(M122,M124) -> 0 | O126: =SUM(O122,O124) -> 99058.57 | Q126: =SUM(Q122,Q124) -> 0 | S126: =SUM(S122,S124) -> 0 | U126: =SUM(U122,U124) -> 0 | W126: =SUM(W122,W124) -> 99058.57
C128: 2.3 ADVANCED METERING CONTROL COMPUTER (AMCC)
C130: 2.3.1 Hardware Maintenance (may include server support, etc.) | S130: 0 | W130: =SUM(G130,I130,K130,M130,O130,Q130,S130,U130) -> 0
C132: 2.3.2 Software Maintenance (may include maintenance support, etc.) | W132: =SUM(G132,I132,K132,M132,O132,Q132,S132,U132) -> 0
C134: 2.3.2 Other (please specifiy) | W134: =SUM(G134,I134,K134,M134,O134,Q134,S134,U134) -> 0
C136: Total Incremental AMCC OM&A Costs | G136: =SUM(G130,G132,G134) -> 0 | I136: =SUM(I130,I132,I134) -> 0 | K136: =SUM(K130,K132,K134) -> 0 | M136: =SUM(M130,M132,M134) -> 0 | O136: =SUM(O130,O132,O134) -> 0 | Q136: =SUM(Q130,Q132,Q134) -> 0 | S136: =SUM(S130,S132,S134) -> 0 | U136: =SUM(U130,U132,U134) -> 0 | W136: =SUM(W130,W132,W134) -> 0
C138: 2.4 WIDE AREA NETWORK (WAN)
C140: 2.4.1 WAN Maintenance | O140: 809 | Q140: 0 | S140: 0 | W140: =SUM(G140,I140,K140,M140,O140,Q140,S140,U140) -> 809
C142: 2.4.2 Other (please specifiy) | W142: =SUM(G142,I142,K142,M142,O142,Q142,S142,U142) -> 0
C144: Total Incremental AMRC OM&A Costs | G144: =SUM(G140,G142) -> 0 | I144: =SUM(I140,I142) -> 0 | K144: =SUM(K140,K142) -> 0 | M144: =SUM(M140,M142) -> 0 | O144: =SUM(O140,O142) -> 809 | Q144: =SUM(Q140,Q142) -> 0 | S144: =SUM(S140,S142) -> 0 | U144: =SUM(U140,U142) -> 0 | W144: =SUM(W140,W142) -> 809
C146: 2.5 OTHER AMI OM&A COSTS RELATED TO MINIMUM FUNCTIONALITY
C148: 2.5.1 Business Process Redesign | W148: =SUM(G148,I148,K148,M148,O148,Q148,S148,U148) -> 0
C150: 2.5.2 Customer Communication (may include project communication, etc.) | W150: =SUM(G150,I150,K150,M150,O150,Q150,S150,U150) -> 0
C152: 2.5.3 Program Management | S152: 0 | W152: =SUM(G152,I152,K152,M152,O152,Q152,S152,U152) -> 0
C154: 2.5.4 Change Management (may include training, etc.) | W154: =SUM(G154,I154,K154,M154,O154,Q154,S154,U154) -> 0
C156: 2.5.5 Administration Costs | W156: =SUM(G156,I156,K156,M156,O156,Q156,S156,U156) -> 0
C158: 2.5.6 Other AMI Expenses | Q158: 0 | S158: 0 | W158: =SUM(G158,I158,K158,M158,O158,Q158,S158,U158) -> 0
C159: (please specify)
C160: Total Other AMI OM&A Costs Related to Minimum Functionality | G160: =SUM(G158,G156,G154,G152,G150,G148) -> 0 | I160: =SUM(I158,I156,I154,I152,I150,I148) -> 0 | K160: =SUM(K158,K156,K154,K152,K150,K148) -> 0 | M160: =SUM(M158,M156,M154,M152,M150,M148) -> 0 | O160: =SUM(O158,O156,O154,O152,O150,O148) -> 0 | Q160: =SUM(Q158,Q156,Q154,Q152,Q150,Q148) -> 0 | S160: =SUM(S158,S156,S154,S152,S150,S148) -> 0 | U160: =SUM(U158,U156,U154,U152,U150,U148) -> 0 | W160: =SUM(W154,W156,W158,W152,W150,W148) -> 0
C162: TOTAL OM&A COSTS RELATED TO MINIMUM FUNCTIONALITY | G162: =SUM(G118,G126,G136,G144,G160) -> 0 | I162: =SUM(I118,I126,I136,I144,I160) -> 0 | K162: =SUM(K118,K126,K136,K144,K160) -> 0 | M162: =SUM(M118,M126,M136,M144,M160) -> 0 | O162: =SUM(O118,O126,O136,O144,O160) -> 99867.57 | Q162: =SUM(Q118,Q126,Q136,Q144,Q160) -> 0 | S162: =SUM(S118,S126,S136,S144,S160) -> 0 | U162: =SUM(U118,U126,U136,U144,U160) -> 0 | W162: =SUM(W118,W126,W136,W144,W160) -> 99867.57
C164: 2.6 OM&A COSTS RELATED TO BEYOND MINIMUM FUNCTIONALITY | G164: =G112 -> Audited Actual | I164: =I112 -> Audited Actual | K164: =K112 -> Audited Actual | M164: =M112 -> Audited Actual | O164: =O112 -> Audited Actual | Q164: =Q112 -> Audited Actual
C165: (Please provide a descriptive title and identify nature of beyond minimum functionality costs)
C166: 2.6.1 Costs related to technical capabilities in the smart meters or related communications infrastructure that exceed those specified in O.Reg 425/06 | W166: =SUM(G166,I166,K166,M166,O166,Q166,S166,U166) -> 0
C168: 2.6.2 Costs for deployment of smart meters to customers other than residential and small general service | W168: =SUM(G168,I168,K168,M168,O168,Q168,S168,U168) -> 0
C170: 2.6.3 Costs for TOU rate implementation, CIS system upgrades, web presentation, integration with the MDM/R, etc. | W170: =SUM(G170,I170,K170,M170,O170,Q170,S170,U170) -> 0
C172: Total OM&A Costs Beyond Minimum Functionality | G172: =SUM(G166,G168,G170) -> 0 | I172: =SUM(I166,I168,I170) -> 0 | K172: =SUM(K166,K168,K170) -> 0 | M172: =SUM(M166,M168,M170) -> 0 | O172: =SUM(O166,O168,O170) -> 0 | Q172: =SUM(Q166,Q168,Q170) -> 0 | S172: =SUM(S166,S168,S170) -> 0 | U172: =SUM(U166,U168,U170) -> 0 | W172: =SUM(W166,W168,W170) -> 0
C174: Total Smart Meter OM&A Costs | G174: =G162+G172 -> 0 | I174: =I162+I172 -> 0 | K174: =K162+K172 -> 0 | M174: =M162+M172 -> 0 | O174: =O162+O172 -> 99867.57 | Q174: =Q162+Q172 -> 0 | S174: =S162+S172 -> 0 | U174: =U162+U172 -> 0 | W174: =W162+W172 -> 99867.57
B177: 3 | C177: Aggregate Smart Meter Costs by Category
C179: 3.1 | D179: Capital
C181: 3.1.1 | D181: Smart Meter | G181: =SUMIF($E$42:$E$105,$D181,G$42:G$105) -> 0 | I181: =SUMIF($E$42:$E$105,$D181,I$42:I$105) -> 0 | K181: =SUMIF($E$42:$E$105,$D181,K$42:K$105) -> 0 | M181: =SUMIF($E$42:$E$105,$D181,M$42:M$105) -> 1375150 | O181: =SUMIF($E$42:$E$105,$D181,O$42:O$105) -> 1537926 | Q181: =SUMIF($E$42:$E$105,$D181,Q$42:Q$105) -> 472522 | S181: =SUMIF($E$42:$E$105,$D181,S$42:S$105) -> 52085.13 | U181: =SUMIF($E$42:$E$105,$D181,U$42:U$105) -> 37000 | W181: =SUM(G181:U181) -> 3474683.13
C183: 3.1.2 | D183: Computer Hardware | G183: =SUMIF($E$42:$E$105,$D183,G$42:G$105) -> 0 | I183: =SUMIF($E$42:$E$105,$D183,I$42:I$105) -> 0 | K183: =SUMIF($E$42:$E$105,$D183,K$42:K$105) -> 0 | M183: =SUMIF($E$42:$E$105,$D183,M$42:M$105) -> 0 | O183: =SUMIF($E$42:$E$105,$D183,O$42:O$105) -> 0 | Q183: =SUMIF($E$42:$E$105,$D183,Q$42:Q$105) -> 0 | S183: =SUMIF($E$42:$E$105,$D183,S$42:S$105) -> 0 | U183: =SUMIF($E$42:$E$105,$D183,U$42:U$105) -> 0 | W183: =SUM(G183:U183) -> 0
C185: 3.1.3 | D185: Computer Software | G185: =SUMIF($E$42:$E$105,$D185,G$42:G$105) -> 0 | I185: =SUMIF($E$42:$E$105,$D185,I$42:I$105) -> 31428 | K185: =SUMIF($E$42:$E$105,$D185,K$42:K$105) -> 78920 | M185: =SUMIF($E$42:$E$105,$D185,M$42:M$105) -> 286278 | O185: =SUMIF($E$42:$E$105,$D185,O$42:O$105) -> 182342 | Q185: =SUMIF($E$42:$E$105,$D185,Q$42:Q$105) -> 113466.83 | S185: =SUMIF($E$42:$E$105,$D185,S$42:S$105) -> 97260.38 | U185: =SUMIF($E$42:$E$105,$D185,U$42:U$105) -> 0 | W185: =SUM(G185:U185) -> 789695.21
C187: 3.1.4 | D187: Tools & Equipment | G187: =SUMIF($E$42:$E$105,$D187,G$42:G$105) -> 0 | I187: =SUMIF($E$42:$E$105,$D187,I$42:I$105) -> 0 | K187: =SUMIF($E$42:$E$105,$D187,K$42:K$105) -> 0 | M187: =SUMIF($E$42:$E$105,$D187,M$42:M$105) -> 0 | O187: =SUMIF($E$42:$E$105,$D187,O$42:O$105) -> 0 | Q187: =SUMIF($E$42:$E$105,$D187,Q$42:Q$105) -> 0 | S187: =SUMIF($E$42:$E$105,$D187,S$42:S$105) -> 0 | U187: =SUMIF($E$42:$E$105,$D187,U$42:U$105) -> 0 | W187: =SUM(G187:U187) -> 0
C189: 3.1.5 | D189: Other Equipment | G189: =SUMIF($E$42:$E$105,$D189,G$42:G$105) -> 0 | I189: =SUMIF($E$42:$E$105,$D189,I$42:I$105) -> 0 | K189: =SUMIF($E$42:$E$105,$D189,K$42:K$105) -> 0 | M189: =SUMIF($E$42:$E$105,$D189,M$42:M$105) -> 123690 | O189: =SUMIF($E$42:$E$105,$D189,O$42:O$105) -> 47681 | Q189: =SUMIF($E$42:$E$105,$D189,Q$42:Q$105) -> 22692 | S189: =SUMIF($E$42:$E$105,$D189,S$42:S$105) -> 0 | U189: =SUMIF($E$42:$E$105,$D189,U$42:U$105) -> 0 | W189: =SUM(G189:U189) -> 194063
C191: 3.1.6 | D191: Applications Software | G191: =SUMIF($E$42:$E$105,$D191,G$42:G$105) -> 0 | I191: =SUMIF($E$42:$E$105,$D191,I$42:I$105) -> 0 | K191: =SUMIF($E$42:$E$105,$D191,K$42:K$105) -> 0 | M191: =SUMIF($E$42:$E$105,$D191,M$42:M$105) -> 0 | O191: =SUMIF($E$42:$E$105,$D191,O$42:O$105) -> 0 | Q191: =SUMIF($E$42:$E$105,$D191,Q$42:Q$105) -> 0 | S191: =SUMIF($E$42:$E$105,$D191,S$42:S$105) -> 0 | U191: =SUMIF($E$42:$E$105,$D191,U$42:U$105) -> 0 | W191: =SUM(G191:U191) -> 0
C193: 3.1.7 | D193: Total Capital Costs | G193: =SUM(G181:G191) -> 0 | I193: =SUM(I181:I191) -> 31428 | K193: =SUM(K181:K191) -> 78920 | M193: =SUM(M181:M191) -> 1785118 | O193: =SUM(O181:O191) -> 1767949 | Q193: =SUM(Q181:Q191) -> 608680.83 | S193: =SUM(S181:S191) -> 149345.51 | U193: =SUM(U181:U191) -> 37000 | W193: =SUM(W181:W191) -> 4458441.34
G194: =IF(G193=G109,"","Error") ->  | I194: =IF(I193=I109,"","Error") ->  | K194: =IF(K193=K109,"","Error") ->  | M194: =IF(M193=M109,"","Error") ->  | O194: =IF(O193=O109,"","Error") ->  | Q194: =IF(Q193=Q109,"","Error") ->  | S194: =IF(S193=S109,"","Error") ->  | U194: =IF(U193=U109,"","Error") ->  | W194: =IF(W193=W109,"","Error") -> 
C195: 3.2 | D195: OM&A Costs
C197: 3.2.1 | D197: Total OM&A Costs | G197: =G174 -> 0 | I197: =I174 -> 0 | K197: =K174 -> 0 | M197: =M174 -> 0 | O197: =O174 -> 99867.57 | Q197: =Q174 -> 0 | S197: =S174 -> 0 | U197: =U174 -> 0 | W197: =W174 -> 99867.57

Sheet 3. Cost_of_Service_Parameters
G19: 2006 | I19: 2007 | K19: 2008 | M19: 2009 | O19: 2010 | Q19: 2011 | S19: 2012 | U19: 2013
B20: Cost of Capital
C21: Capital Structure1
D22: Deemed Short-term Debt Capitalization | Q22: 0.04 | S22: 0.04 | U22: 0.04
D23: Deemed Long-term Debt Capitalization | G23: 0.5 | I23: =G23 -> 0.5 | K23: 0.5 | M23: 0.5 | O23: 0.5 | Q23: 0.56 | S23: =Q23-(S22-Q22) -> 0.56 | U23: =S23-(U22-S22) -> 0.56
D24: Deemed Equity Capitalization | G24: =100%-G23-G25 -> 0.5 | I24: =100%-I23-I25-I22 -> 0.5 | K24: =100%-K23-K25-K22 -> 0.5 | M24: =100%-M23-M25-M22 -> 0.5 | O24: =100%-O23-O25-O22 -> 0.5 | Q24: =100%-Q23-Q25-Q22 -> 0.4 | S24: =100%-S23-S25-S22 -> 0.4 | U24: =100%-U23-U25-U22 -> 0.4
D25: Preferred Shares
C26: Total | G26: =SUM(G22:G25) -> 1 | I26: =SUM(I22:I25) -> 1 | K26: =SUM(K22:K25) -> 1 | M26: =SUM(M22:M25) -> 1 | O26: =SUM(O22:O25) -> 1 | Q26: =SUM(Q22:Q25) -> 1 | S26: =SUM(S22:S25) -> 1 | U26: =SUM(U22:U25) -> 1
C28: Cost of Capital Parameters
D29: Deemed Short-term Debt Rate | Q29: 0.0207 | S29: 0.0207 | U29: 0.0207
D30: Long-term Debt Rate (actual/embedded/deemed)2 | G30: 0.058 | I30: 0.061 | K30: =+I30 -> 0.061 | M30: =+K30 -> 0.061 | O30: 0.061 | Q30: 0.0587 | S30: 0.0587 | U30: 0.0587
D31: Target Return on Equity (ROE) | G31: 0.0857 | I31: =G31 -> 0.0857 | K31: 0.0857 | M31: 0.0857 | O31: 0.0857 | Q31: 0.0985 | S31: 0.0985 | U31: 0.0985
D32: Return on Preferred Shares
C33: WACC | G33: =SUMPRODUCT(G22:G25,G29:G32) -> 0.07185 | I33: =SUMPRODUCT(I22:I25,I29:I32) -> 0.07335 | K33: =SUMPRODUCT(K22:K25,K29:K32) -> 0.07335 | M33: =SUMPRODUCT(M22:M25,M29:M32) -> 0.07335 | O33: =SUMPRODUCT(O22:O25,O29:O32) -> 0.07335 | Q33: =SUMPRODUCT(Q22:Q25,Q29:Q32) -> 0.0731 | S33: =SUMPRODUCT(S22:S25,S29:S32) -> 0.0731 | U33: =SUMPRODUCT(U22:U25,U29:U32) -> 0.0731
B35: Working Capital Allowance
C36: Working Capital Allowance Rate | G36: 0.15 | I36: 0.15 | K36: 0.15 | M36: 0.15 | O36: 0.15 | Q36: 0.15 | S36: 0.15 | U36: 0.13
C37: (% of the sum of Cost of Power + controllable expenses)
B39: Taxes/PILs
C40: Aggregate Corporate Income Tax Rate | G40: 0.3612 | I40: 0.3612 | K40: 0.3612 | M40: 0.3612 | O40: 0.3612 | Q40: 0.2825 | S40: 0.265 | U40: 0.265
C41: Capital Tax (until July 1st, 2010) | G41: 0.003 | I41: 0.00225 | K41: 0.00225 | M41: 0.00225 | O41: 0.00075 | Q41: 0 | S41: 0 | U41: 0
B43: Depreciation Rates
B44: (expressed as expected useful life in years)
C45: Smart Meters - years | G45: 15 | I45: 15 | K45: 15 | M45: 15 | O45: 15 | Q45: 15 | S45: 15 | U45: 15
C46: - rate (%) | G46: =IF(G45=0,0,1/G45) -> 0.06666666667 | I46: =IF(I45=0,0,1/I45) -> 0.06666666667 | K46: =IF(K45=0,0,1/K45) -> 0.06666666667 | M46: =IF(M45=0,0,1/M45) -> 0.06666666667 | O46: =IF(O45=0,0,1/O45) -> 0.06666666667 | Q46: =IF(Q45=0,0,1/Q45) -> 0.06666666667 | S46: =IF(S45=0,0,1/S45) -> 0.06666666667 | U46: =IF(U45=0,0,1/U45) -> 0.06666666667
C47: Computer Hardware - years | G47: 5 | I47: 5 | K47: 5 | M47: 5 | O47: 5 | Q47: 5 | S47: 5 | U47: 5
C48: - rate (%) | G48: =IF(G47=0,0,1/G47) -> 0.2 | I48: =IF(I47=0,0,1/I47) -> 0.2 | K48: =IF(K47=0,0,1/K47) -> 0.2 | M48: =IF(M47=0,0,1/M47) -> 0.2 | O48: =IF(O47=0,0,1/O47) -> 0.2 | Q48: =IF(Q47=0,0,1/Q47) -> 0.2 | S48: =IF(S47=0,0,1/S47) -> 0.2 | U48: =IF(U47=0,0,1/U47) -> 0.2
C49: Computer Software - years | G49: 5 | I49: 5 | K49: 5 | M49: 5 | O49: 5 | Q49: 5 | S49: 5 | U49: 5
C50: - rate (%) | G50: =IF(G49=0,0,1/G49) -> 0.2 | I50: =IF(I49=0,0,1/I49) -> 0.2 | K50: =IF(K49=0,0,1/K49) -> 0.2 | M50: =IF(M49=0,0,1/M49) -> 0.2 | O50: =IF(O49=0,0,1/O49) -> 0.2 | Q50: =IF(Q49=0,0,1/Q49) -> 0.2 | S50: =IF(S49=0,0,1/S49) -> 0.2 | U50: =IF(U49=0,0,1/U49) -> 0.2
C51: Tools & Equipment - years | G51: 10 | I51: 10 | K51: 10 | M51: 10 | O51: 10 | Q51: 10 | S51: 10 | U51: 10
C52: - rate (%) | G52: =IF(G51=0,0,1/G51) -> 0.1 | I52: =IF(I51=0,0,1/I51) -> 0.1 | K52: =IF(K51=0,0,1/K51) -> 0.1 | M52: =IF(M51=0,0,1/M51) -> 0.1 | O52: =IF(O51=0,0,1/O51) -> 0.1 | Q52: =IF(Q51=0,0,1/Q51) -> 0.1 | S52: =IF(S51=0,0,1/S51) -> 0.1 | U52: =IF(U51=0,0,1/U51) -> 0.1
C53: Other Equipment - years | G53: 10 | I53: 10 | K53: 10 | M53: 10 | O53: 10 | Q53: 10 | S53: 10 | U53: 10
C54: - rate (%) | G54: =IF(G53=0,0,1/G53) -> 0.1 | I54: =IF(I53=0,0,1/I53) -> 0.1 | K54: =IF(K53=0,0,1/K53) -> 0.1 | M54: =IF(M53=0,0,1/M53) -> 0.1 | O54: =IF(O53=0,0,1/O53) -> 0.1 | Q54: =IF(Q53=0,0,1/Q53) -> 0.1 | S54: =IF(S53=0,0,1/S53) -> 0.1 | U54: =IF(U53=0,0,1/U53) -> 0.1
B56: CCA Rates
C57: Smart Meters - CCA Class | G57: 47 | I57: 47 | K57: 47 | M57: 47 | O57: 47 | Q57: 47 | S57: 47 | U57: 47
C58: Smart Meters - CCA Rate | G58: 0.08 | I58: 0.08 | K58: 0.08 | M58: 0.08 | O58: 0.08 | Q58: 0.08 | S58: 0.08 | U58: 0.08
C60: Computer Equipment - CCA Class | G60: 45 | I60: 50 | K60: 50 | M60: 50 | O60: 50 | Q60: 50 | S60: 50 | U60: 50
C61: Computer Equipment - CCA Rate | G61: 0.45 | I61: 0.55 | K61: 0.55 | M61: 0.55 | O61: 0.55 | Q61: 0.55 | S61: 0.55 | U61: 0.55
C63: General Equipment - CCA Class | G63: 8 | I63: 8 | K63: 8 | M63: 8 | O63: 8 | Q63: 8 | S63: 8 | U63: 8
C64: General Equipment - CCA Rate | G64: 0.2 | I64: 0.2 | K64: 0.2 | M64: 0.2 | O64: 0.2 | Q64: 0.2 | S64: 0.2 | U64: 0.2
C66: Applications Software - CCA Class
C67: Applications Software - CCA Rate
B69: Assumptions
B70: 1 | C70: Planned smart meter installations occur evenly throughout the year.
B71: 2 | C71: Fiscal calendar year (January 1 to December 31) used.
B72: 3 | C72: Amortization is done on a striaght line basis and has the "half-year" rule applied.

Sheet 4. SM_Assets_and_Rate_Base
G18: 2006 | I18: 2007 | K18: 2008 | M18: 2009 | O18: 2010 | Q18: 2011 | S18: 2012 | U18: 2013
B19: Net Fixed Assets - Smart Meters
C21: Gross Book Value
D22: Opening Balance | I22: =G25 -> 0 | K22: =I25 -> 0 | M22: =K25 -> 0 | O22: =M25 -> 1375150 | Q22: =O25 -> 2913076 | S22: =Q25 -> 3385598 | U22: =S25 -> 3437683.13
D23: Capital Additions during year (from Smart Meter Costs) | G23: ='2. Smart_Meter_Costs'!G181 -> 0 | I23: ='2. Smart_Meter_Costs'!I181 -> 0 | K23: ='2. Smart_Meter_Costs'!K181 -> 0 | M23: ='2. Smart_Meter_Costs'!M181 -> 1375150 | O23: ='2. Smart_Meter_Costs'!O181 -> 1537926 | Q23: ='2. Smart_Meter_Costs'!Q181 -> 472522 | S23: ='2. Smart_Meter_Costs'!S181 -> 52085.13 | U23: ='2. Smart_Meter_Costs'!U181 -> 37000
D24: Retirements/Removals (if applicable)
D25: Closing Balance | G25: =G22+G23-G24 -> 0 | I25: =I22+I23-I24 -> 0 | K25: =K22+K23-K24 -> 0 | M25: =M22+M23-M24 -> 1375150 | O25: =O22+O23-O24 -> 2913076 | Q25: =Q22+Q23-Q24 -> 3385598 | S25: =S22+S23-S24 -> 3437683.13 | U25: =U22+U23-U24 -> 3474683.13
C27: Accumulated Depreciation
D28: Opening Balance | I28: =G31 -> 0 | K28: =I31 -> 0 | M28: =K31 -> 0 | O28: =M31 -> -45838.33333 | Q28: =O31 -> -188779.2 | S28: =Q31 -> -398735 | U28: =S31 -> -626177.7043
D29: Amortization expense during year | G29: =IF(ISERROR(-G23/('3. Cost_of_Service_Parameters'!G45*2)), 0, -G23/('3. Cost_of_Service_Parameters'!G45*2)) -> 0 | I29: =IF(ISERROR(-(I23/('3. Cost_of_Service_Parameters'!I45*2)+MIN((I22/'3. Cost_of_Service_Parameters'!I45),(I22+I28)))), 0, -(I23/('3. Cost_of_Service_Parameters'!I45*2)+MIN((I22/'3. Cost_of_Service_Parameters'!I45),(I22+I28)))) -> 0 | K29: =IF(ISERROR(-(K23/('3. Cost_of_Service_Parameters'!K45*2)+MIN((K22/'3. Cost_of_Service_Parameters'!K45),(K22+K28)))), 0, -(K23/('3. Cost_of_Service_Parameters'!K45*2)+MIN((K22/'3. Cost_of_Service_Parameters'!K45),(K22+K28)))) -> 0 | M29: =IF(ISERROR(-(M23/('3. Cost_of_Service_Parameters'!M45*2)+MIN((M22/'3. Cost_of_Service_Parameters'!M45),(M22+M28)))), 0,-(M23/('3. Cost_of_Service_Parameters'!M45*2)+MIN((M22/'3. Cost_of_Service_Parameters'!M45),(M22+M28)))) -> -45838.33333 | O29: =IF(ISERROR(-(O23/('3. Cost_of_Service_Parameters'!O45*2)+MIN((O22/'3. Cost_of_Service_Parameters'!O45),(O22+O28)))), 0, -(O23/('3. Cost_of_Service_Parameters'!O45*2)+MIN((O22/'3. Cost_of_Service_Parameters'!O45),(O22+O28)))) -> -142940.8667 | Q29: =IF(ISERROR(-(Q23/('3. Cost_of_Service_Parameters'!Q45*2)+MIN((Q22/'3. Cost_of_Service_Parameters'!Q45),(Q22+Q28)))), 0, -(Q23/('3. Cost_of_Service_Parameters'!Q45*2)+MIN((Q22/'3. Cost_of_Service_Parameters'!Q45),(Q22+Q28)))) -> -209955.8 | S29: =IF(ISERROR(-(S23/('3. Cost_of_Service_Parameters'!S45*2)+MIN((S22/'3. Cost_of_Service_Parameters'!S45),(S22+S28)))), 0, -(S23/('3. Cost_of_Service_Parameters'!S45*2)+MIN((S22/'3. Cost_of_Service_Parameters'!S45),(S22+S28)))) -> -227442.7043 | U29: =IF(ISERROR(-(U23/('3. Cost_of_Service_Parameters'!U45*2)+MIN((U22/'3. Cost_of_Service_Parameters'!U45),(U22+U28)))), 0, -(U23/('3. Cost_of_Service_Parameters'!U45*2)+MIN((U22/'3. Cost_of_Service_Parameters'!U45),(U22+U28)))) -> -230412.2087
D30: Retirements/Removals (if applicable)
D31: Closing Balance | G31: =G28+G29-G30 -> 0 | I31: =I28+I29-I30 -> 0 | K31: =K28+K29-K30 -> 0 | M31: =M28+M29-M30 -> -45838.33333 | O31: =O28+O29-O30 -> -188779.2 | Q31: =Q28+Q29-Q30 -> -398735 | S31: =S28+S29-S30 -> -626177.7043 | U31: =U28+U29-U30 -> -856589.913
C33: Net Book Value
D34: Opening Balance | G34: =G22+G28 -> 0 | I34: =G35 -> 0 | K34: =I35 -> 0 | M34: =K35 -> 0 | O34: =M35 -> 1329311.667 | Q34: =O35 -> 2724296.8 | S34: =Q35 -> 2986863 | U34: =S35 -> 2811505.426
D35: Closing Balance | G35: =G25+G31 -> 0 | I35: =I25+I31 -> 0 | K35: =K25+K31 -> 0 | M35: =M25+M31 -> 1329311.667 | O35: =O25+O31 -> 2724296.8 | Q35: =Q25+Q31 -> 2986863 | S35: =S25+S31 -> 2811505.426 | U35: =U25+U31 -> 2618093.217
D36: Average Net Book Value | G36: =AVERAGE(G34:G35) -> 0 | I36: =AVERAGE(I34:I35) -> 0 | K36: =AVERAGE(K34:K35) -> 0 | M36: =AVERAGE(M34:M35) -> 664655.8333 | O36: =AVERAGE(O34:O35) -> 2026804.233 | Q36: =AVERAGE(Q34:Q35) -> 2855579.9 | S36: =AVERAGE(S34:S35) -> 2899184.213 | U36: =AVERAGE(U34:U35) -> 2714799.321
B38: Net Fixed Assets - Computer Hardware
C40: Gross Book Value
D41: Opening Balance | I41: =G44 -> 0 | K41: =I44 -> 0 | M41: =K44 -> 0 | O41: =M44 -> 0 | Q41: =O44 -> 0 | S41: =Q44 -> 0 | U41: =S44 -> 0
D42: Capital Additions during year (from Smart Meter Costs) | G42: ='2. Smart_Meter_Costs'!G183 -> 0 | I42: ='2. Smart_Meter_Costs'!I183 -> 0 | K42: ='2. Smart_Meter_Costs'!K183 -> 0 | M42: ='2. Smart_Meter_Costs'!M183 -> 0 | O42: ='2. Smart_Meter_Costs'!O183 -> 0 | Q42: ='2. Smart_Meter_Costs'!Q183 -> 0 | S42: ='2. Smart_Meter_Costs'!S183 -> 0 | U42: ='2. Smart_Meter_Costs'!U183 -> 0
D43: Retirements/Removals (if applicable)
D44: Closing Balance | G44: =G41+G42-G43 -> 0 | I44: =I41+I42-I43 -> 0 | K44: =K41+K42-K43 -> 0 | M44: =M41+M42-M43 -> 0 | O44: =O41+O42-O43 -> 0 | Q44: =Q41+Q42-Q43 -> 0 | S44: =S41+S42-S43 -> 0 | U44: =U41+U42-U43 -> 0
C46: Accumulated Depreciation
D47: Opening Balance | G47: 0 | I47: =G50 -> 0 | K47: =I50 -> 0 | M47: =K50 -> 0 | O47: =M50 -> 0 | Q47: =O50 -> 0 | S47: =Q50 -> 0 | U47: =S50 -> 0
D48: Amortization expense during year | G48: =IF(ISERROR(-G42/('3. Cost_of_Service_Parameters'!G47*2)), 0, -G42/('3. Cost_of_Service_Parameters'!G47*2)) -> 0 | I48: =IF(ISERROR(-(I42/('3. Cost_of_Service_Parameters'!I47*2)+MIN((I41/'3. Cost_of_Service_Parameters'!I47),(I41+I47)))), 0, -(I42/('3. Cost_of_Service_Parameters'!I47*2)+MIN((I41/'3. Cost_of_Service_Parameters'!I47),(I41+I47)))) -> 0 | K48: =IF(ISERROR(-(K42/('3. Cost_of_Service_Parameters'!K47*2)+MIN((K41/'3. Cost_of_Service_Parameters'!K47),(K41+K47)))), 0, -(K42/('3. Cost_of_Service_Parameters'!K47*2)+MIN((K41/'3. Cost_of_Service_Parameters'!K47),(K41+K47)))) -> 0 | M48: =IF(ISERROR(-(M42/('3. Cost_of_Service_Parameters'!M47*2)+MIN((M41/'3. Cost_of_Service_Parameters'!M47),(M41+M47)))), 0,-(M42/('3. Cost_of_Service_Parameters'!M47*2)+MIN((M41/'3. Cost_of_Service_Parameters'!M47),(M41+M47)))) -> 0 | O48: =IF(ISERROR(-(O42/('3. Cost_of_Service_Parameters'!O47*2)+MIN((O41/'3. Cost_of_Service_Parameters'!O47),(O41+O47)))), 0, -(O42/('3. Cost_of_Service_Parameters'!O47*2)+MIN((O41/'3. Cost_of_Service_Parameters'!O47),(O41+O47)))) -> 0 | Q48: =IF(ISERROR(-(Q42/('3. Cost_of_Service_Parameters'!Q47*2)+MIN((Q41/'3. Cost_of_Service_Parameters'!Q47),(Q41+Q47)))), 0, -(Q42/('3. Cost_of_Service_Parameters'!Q47*2)+MIN((Q41/'3. Cost_of_Service_Parameters'!Q47),(Q41+Q47)))) -> 0 | S48: =IF(ISERROR(-(S42/('3. Cost_of_Service_Parameters'!S47*2)+MIN((S41/'3. Cost_of_Service_Parameters'!S47),(S41+S47)))), 0, -(S42/('3. Cost_of_Service_Parameters'!S47*2)+MIN((S41/'3. Cost_of_Service_Parameters'!S47),(S41+S47)))) -> 0 | U48: =IF(ISERROR(-(U42/('3. Cost_of_Service_Parameters'!U47*2)+MIN((U41/'3. Cost_of_Service_Parameters'!U47),(U41+U47)))), 0, -(U42/('3. Cost_of_Service_Parameters'!U47*2)+MIN((U41/'3. Cost_of_Service_Parameters'!U47),(U41+U47)))) -> 0
D49: Retirements/Removals (if applicable)
D50: Closing Balance | G50: =G47+G48-G49 -> 0 | I50: =I47+I48-I49 -> 0 | K50: =K47+K48-K49 -> 0 | M50: =M47+M48-M49 -> 0 | O50: =O47+O48-O49 -> 0 | Q50: =Q47+Q48-Q49 -> 0 | S50: =S47+S48-S49 -> 0 | U50: =U47+U48-U49 -> 0
C52: Net Book Value
D53: Opening Balance | G53: =G41+G47 -> 0 | I53: =G54 -> 0 | K53: =I54 -> 0 | M53: =K54 -> 0 | O53: =M54 -> 0 | Q53: =O54 -> 0 | S53: =Q54 -> 0 | U53: =S54 -> 0
D54: Closing Balance | G54: =G44+G50 -> 0 | I54: =I44+I50 -> 0 | K54: =K44+K50 -> 0 | M54: =M44+M50 -> 0 | O54: =O44+O50 -> 0 | Q54: =Q44+Q50 -> 0 | S54: =S44+S50 -> 0 | U54: =U44+U50 -> 0
D55: Average Net Book Value | G55: =AVERAGE(G53:G54) -> 0 | I55: =AVERAGE(I53:I54) -> 0 | K55: =AVERAGE(K53:K54) -> 0 | M55: =AVERAGE(M53:M54) -> 0 | O55: =AVERAGE(O53:O54) -> 0 | Q55: =AVERAGE(Q53:Q54) -> 0 | S55: =AVERAGE(S53:S54) -> 0 | U55: =AVERAGE(U53:U54) -> 0
B57: Net Fixed Assets - Computer Software (including Applications Software)
C59: Gross Book Value
D60: Opening Balance | I60: =G63 -> 0 | K60: =I63 -> 31428 | M60: =K63 -> 110348 | O60: =M63 -> 396626 | Q60: =O63 -> 578968 | S60: =Q63 -> 692434.83 | U60: =S63 -> 789695.21
D61: Capital Additions during year (from Smart Meter Costs) | G61: ='2. Smart_Meter_Costs'!G185+'2. Smart_Meter_Costs'!G191 -> 0 | I61: ='2. Smart_Meter_Costs'!I185+'2. Smart_Meter_Costs'!I191 -> 31428 | K61: ='2. Smart_Meter_Costs'!K185+'2. Smart_Meter_Costs'!K191 -> 78920 | M61: ='2. Smart_Meter_Costs'!M185+'2. Smart_Meter_Costs'!M191 -> 286278 | O61: ='2. Smart_Meter_Costs'!O185+'2. Smart_Meter_Costs'!O191 -> 182342 | Q61: ='2. Smart_Meter_Costs'!Q185+'2. Smart_Meter_Costs'!Q191 -> 113466.83 | S61: ='2. Smart_Meter_Costs'!S185+'2. Smart_Meter_Costs'!S191 -> 97260.38 | U61: ='2. Smart_Meter_Costs'!U185+'2. Smart_Meter_Costs'!U191 -> 0
D62: Retirements/Removals (if applicable)
D63: Closing Balance | G63: =G60+G61-G62 -> 0 | I63: =I60+I61-I62 -> 31428 | K63: =K60+K61-K62 -> 110348 | M63: =M60+M61-M62 -> 396626 | O63: =O60+O61-O62 -> 578968 | Q63: =Q60+Q61-Q62 -> 692434.83 | S63: =S60+S61-S62 -> 789695.21 | U63: =U60+U61-U62 -> 789695.21
C65: Accumulated Depreciation
D66: Opening Balance | G66: 0 | I66: =G69 -> 0 | K66: =I69 -> -3142.8 | M66: =K69 -> -17320.4 | O66: =M69 -> -68017.8 | Q66: =O69 -> -165577.2 | S66: =Q69 -> -292717.483 | U66: =S69 -> -440930.487
D67: Amortization expense during year | G67: =IF(ISERROR(-G61/('3. Cost_of_Service_Parameters'!G49*2)), 0, -G61/('3. Cost_of_Service_Parameters'!G49*2)) -> 0 | I67: =IF(ISERROR(-(I61/('3. Cost_of_Service_Parameters'!I49*2)+MIN((I60/'3. Cost_of_Service_Parameters'!I49),(I60+I66)))), 0, -(I61/('3. Cost_of_Service_Parameters'!I49*2)+MIN((I60/'3. Cost_of_Service_Parameters'!I49),(I60+I66)))) -> -3142.8 | K67: =IF(ISERROR(-(K61/('3. Cost_of_Service_Parameters'!K49*2)+MIN((K60/'3. Cost_of_Service_Parameters'!K49),(K60+K66)))), 0, -(K61/('3. Cost_of_Service_Parameters'!K49*2)+MIN((K60/'3. Cost_of_Service_Parameters'!K49),(K60+K66)))) -> -14177.6 | M67: =IF(ISERROR(-(M61/('3. Cost_of_Service_Parameters'!M49*2)+MIN((M60/'3. Cost_of_Service_Parameters'!M49),(M60+M66)))), 0,-(M61/('3. Cost_of_Service_Parameters'!M49*2)+MIN((M60/'3. Cost_of_Service_Parameters'!M49),(M60+M66)))) -> -50697.4 | O67: =IF(ISERROR(-(O61/('3. Cost_of_Service_Parameters'!O49*2)+MIN((O60/'3. Cost_of_Service_Parameters'!O49),(O60+O66)))), 0, -(O61/('3. Cost_of_Service_Parameters'!O49*2)+MIN((O60/'3. Cost_of_Service_Parameters'!O49),(O60+O66)))) -> -97559.4 | Q67: =IF(ISERROR(-(Q61/('3. Cost_of_Service_Parameters'!Q49*2)+MIN((Q60/'3. Cost_of_Service_Parameters'!Q49),(Q60+Q66)))), 0, -(Q61/('3. Cost_of_Service_Parameters'!Q49*2)+MIN((Q60/'3. Cost_of_Service_Parameters'!Q49),(Q60+Q66)))) -> -127140.283 | S67: =IF(ISERROR(-(S61/('3. Cost_of_Service_Parameters'!S49*2)+MIN((S60/'3. Cost_of_Service_Parameters'!S49),(S60+S66)))), 0, -(S61/('3. Cost_of_Service_Parameters'!S49*2)+MIN((S60/'3. Cost_of_Service_Parameters'!S49),(S60+S66)))) -> -148213.004 | U67: =IF(ISERROR(-(U61/('3. Cost_of_Service_Parameters'!U49*2)+MIN((U60/'3. Cost_of_Service_Parameters'!U49),(U60+U66)))), 0, -(U61/('3. Cost_of_Service_Parameters'!U49*2)+MIN((U60/'3. Cost_of_Service_Parameters'!U49),(U60+U66)))) -> -157939.042
D68: Retirements/Removals (if applicable)
D69: Closing Balance | G69: =G66+G67-G68 -> 0 | I69: =I66+I67-I68 -> -3142.8 | K69: =K66+K67-K68 -> -17320.4 | M69: =M66+M67-M68 -> -68017.8 | O69: =O66+O67-O68 -> -165577.2 | Q69: =Q66+Q67-Q68 -> -292717.483 | S69: =S66+S67-S68 -> -440930.487 | U69: =U66+U67-U68 -> -598869.529
C71: Net Book Value
D72: Opening Balance | G72: =G60+G66 -> 0 | I72: =G73 -> 0 | K72: =I73 -> 28285.2 | M72: =K73 -> 93027.6 | O72: =M73 -> 328608.2 | Q72: =O73 -> 413390.8 | S72: =Q73 -> 399717.347 | U72: =S73 -> 348764.723
D73: Closing Balance | G73: =G63+G69 -> 0 | I73: =I63+I69 -> 28285.2 | K73: =K63+K69 -> 93027.6 | M73: =M63+M69 -> 328608.2 | O73: =O63+O69 -> 413390.8 | Q73: =Q63+Q69 -> 399717.347 | S73: =S63+S69 -> 348764.723 | U73: =U63+U69 -> 190825.681
D74: Average Net Book Value | G74: =AVERAGE(G72:G73) -> 0 | I74: =AVERAGE(I72:I73) -> 14142.6 | K74: =AVERAGE(K72:K73) -> 60656.4 | M74: =AVERAGE(M72:M73) -> 210817.9 | O74: =AVERAGE(O72:O73) -> 370999.5 | Q74: =AVERAGE(Q72:Q73) -> 406554.0735 | S74: =AVERAGE(S72:S73) -> 374241.035 | U74: =AVERAGE(U72:U73) -> 269795.202
B76: Net Fixed Assets - Tools and Equipment
C78: Gross Book Value
D79: Opening Balance | I79: =G82 -> 0 | K79: =I82 -> 0 | M79: =K82 -> 0 | O79: =M82 -> 0 | Q79: =O82 -> 0 | S79: =Q82 -> 0 | U79: =S82 -> 0
D80: Capital Additions during year (from Smart Meter Costs) | G80: ='2. Smart_Meter_Costs'!G187 -> 0 | I80: ='2. Smart_Meter_Costs'!I187 -> 0 | K80: ='2. Smart_Meter_Costs'!K187 -> 0 | M80: ='2. Smart_Meter_Costs'!M187 -> 0 | O80: ='2. Smart_Meter_Costs'!O187 -> 0 | Q80: ='2. Smart_Meter_Costs'!Q187 -> 0 | S80: ='2. Smart_Meter_Costs'!S187 -> 0 | U80: ='2. Smart_Meter_Costs'!U187 -> 0
D81: Retirements/Removals (if applicable)
D82: Closing Balance | G82: =G79+G80-G81 -> 0 | I82: =I79+I80-I81 -> 0 | K82: =K79+K80-K81 -> 0 | M82: =M79+M80-M81 -> 0 | O82: =O79+O80-O81 -> 0 | Q82: =Q79+Q80-Q81 -> 0 | S82: =S79+S80-S81 -> 0 | U82: =U79+U80-U81 -> 0
C84: Accumulated Depreciation
D85: Opening Balance | G85: 0 | I85: =G88 -> 0 | K85: =I88 -> 0 | M85: =K88 -> 0 | O85: =M88 -> 0 | Q85: =O88 -> 0 | S85: =Q88 -> 0 | U85: =S88 -> 0
D86: Amortization expense during year | G86: =IF(ISERROR(-G80/('3. Cost_of_Service_Parameters'!G51*2)), 0, -G80/('3. Cost_of_Service_Parameters'!G51*2)) -> 0 | I86: =IF(ISERROR(-(I80/('3. Cost_of_Service_Parameters'!I51*2)+MIN((I79/'3. Cost_of_Service_Parameters'!I51),(I79+I85)))), 0, -(I80/('3. Cost_of_Service_Parameters'!I51*2)+MIN((I79/'3. Cost_of_Service_Parameters'!I51),(I79+I85)))) -> 0 | K86: =IF(ISERROR(-(K80/('3. Cost_of_Service_Parameters'!K51*2)+MIN((K79/'3. Cost_of_Service_Parameters'!K51),(K79+K85)))), 0, -(K80/('3. Cost_of_Service_Parameters'!K51*2)+MIN((K79/'3. Cost_of_Service_Parameters'!K51),(K79+K85)))) -> 0 | M86: =IF(ISERROR(-(M80/('3. Cost_of_Service_Parameters'!M51*2)+MIN((M79/'3. Cost_of_Service_Parameters'!M51),(M79+M85)))), 0,-(M80/('3. Cost_of_Service_Parameters'!M51*2)+MIN((M79/'3. Cost_of_Service_Parameters'!M51),(M79+M85)))) -> 0 | O86: =IF(ISERROR(-(O80/('3. Cost_of_Service_Parameters'!O51*2)+MIN((O79/'3. Cost_of_Service_Parameters'!O51),(O79+O85)))), 0, -(O80/('3. Cost_of_Service_Parameters'!O51*2)+MIN((O79/'3. Cost_of_Service_Parameters'!O51),(O79+O85)))) -> 0 | Q86: =IF(ISERROR(-(Q80/('3. Cost_of_Service_Parameters'!Q51*2)+MIN((Q79/'3. Cost_of_Service_Parameters'!Q51),(Q79+Q85)))), 0, -(Q80/('3. Cost_of_Service_Parameters'!Q51*2)+MIN((Q79/'3. Cost_of_Service_Parameters'!Q51),(Q79+Q85)))) -> 0 | S86: =IF(ISERROR(-(S80/('3. Cost_of_Service_Parameters'!S51*2)+MIN((S79/'3. Cost_of_Service_Parameters'!S51),(S79+S85)))), 0, -(S80/('3. Cost_of_Service_Parameters'!S51*2)+MIN((S79/'3. Cost_of_Service_Parameters'!S51),(S79+S85)))) -> 0 | U86: =IF(ISERROR(-(U80/('3. Cost_of_Service_Parameters'!U51*2)+MIN((U79/'3. Cost_of_Service_Parameters'!U51),(U79+U85)))), 0, -(U80/('3. Cost_of_Service_Parameters'!U51*2)+MIN((U79/'3. Cost_of_Service_Parameters'!U51),(U79+U85)))) -> 0
D87: Retirements/Removals (if applicable)
D88: Closing Balance | G88: =G85+G86-G87 -> 0 | I88: =I85+I86-I87 -> 0 | K88: =K85+K86-K87 -> 0 | M88: =M85+M86-M87 -> 0 | O88: =O85+O86-O87 -> 0 | Q88: =Q85+Q86-Q87 -> 0 | S88: =S85+S86-S87 -> 0 | U88: =U85+U86-U87 -> 0
C90: Net Book Value
D91: Opening Balance | G91: =G79+G85 -> 0 | I91: =G92 -> 0 | K91: =I92 -> 0 | M91: =K92 -> 0 | O91: =M92 -> 0 | Q91: =O92 -> 0 | S91: =Q92 -> 0 | U91: =S92 -> 0
D92: Closing Balance | G92: =G82+G88 -> 0 | I92: =I82+I88 -> 0 | K92: =K82+K88 -> 0 | M92: =M82+M88 -> 0 | O92: =O82+O88 -> 0 | Q92: =Q82+Q88 -> 0 | S92: =S82+S88 -> 0 | U92: =U82+U88 -> 0
D93: Average Net Book Value | G93: =AVERAGE(G91:G92) -> 0 | I93: =AVERAGE(I91:I92) -> 0 | K93: =AVERAGE(K91:K92) -> 0 | M93: =AVERAGE(M91:M92) -> 0 | O93: =AVERAGE(O91:O92) -> 0 | Q93: =AVERAGE(Q91:Q92) -> 0 | S93: =AVERAGE(S91:S92) -> 0 | U93: =AVERAGE(U91:U92) -> 0
B95: Net Fixed Assets - Other Equipment
C97: Gross Book Value
D98: Opening Balance | I98: =G101 -> 0 | K98: =I101 -> 0 | M98: =K101 -> 0 | O98: =M101 -> 123690 | Q98: =O101 -> 171371 | S98: =Q101 -> 194063 | U98: =S101 -> 194063
D99: Capital Additions during year (from Smart Meter Costs) | G99: ='2. Smart_Meter_Costs'!G189 -> 0 | I99: ='2. Smart_Meter_Costs'!I189 -> 0 | K99: ='2. Smart_Meter_Costs'!K189 -> 0 | M99: ='2. Smart_Meter_Costs'!M189 -> 123690 | O99: ='2. Smart_Meter_Costs'!O189 -> 47681 | Q99: ='2. Smart_Meter_Costs'!Q189 -> 22692 | S99: ='2. Smart_Meter_Costs'!S189 -> 0 | U99: ='2. Smart_Meter_Costs'!U189 -> 0
D100: Retirements/Removals (if applicable)
D101: Closing Balance | G101: =G98+G99-G100 -> 0 | I101: =I98+I99-I100 -> 0 | K101: =K98+K99-K100 -> 0 | M101: =M98+M99-M100 -> 123690 | O101: =O98+O99-O100 -> 171371 | Q101: =Q98+Q99-Q100 -> 194063 | S101: =S98+S99-S100 -> 194063 | U101: =U98+U99-U100 -> 194063
C103: Accumulated Depreciation
D104: Opening Balance | G104: 0 | I104: =G107 -> 0 | K104: =I107 -> 0 | M104: =K107 -> 0 | O104: =M107 -> -6184.5 | Q104: =O107 -> -20937.55 | S104: =Q107 -> -39209.25 | U104: =S107 -> -58615.55
D105: Amortization expense during year | G105: =IF(ISERROR(-G99/('3. Cost_of_Service_Parameters'!G53*2)), 0, -G99/('3. Cost_of_Service_Parameters'!G53*2)) -> 0 | I105: =IF(ISERROR(-(I99/('3. Cost_of_Service_Parameters'!I53*2)+MIN((I98/'3. Cost_of_Service_Parameters'!I53),(I98+I104)))), 0, -(I99/('3. Cost_of_Service_Parameters'!I53*2)+MIN((I98/'3. Cost_of_Service_Parameters'!I53),(I98+I104)))) -> 0 | K105: =IF(ISERROR(-(K99/('3. Cost_of_Service_Parameters'!K53*2)+MIN((K98/'3. Cost_of_Service_Parameters'!K53),(K98+K104)))), 0, -(K99/('3. Cost_of_Service_Parameters'!K53*2)+MIN((K98/'3. Cost_of_Service_Parameters'!K53),(K98+K104)))) -> 0 | M105: =IF(ISERROR(-(M99/('3. Cost_of_Service_Parameters'!M53*2)+MIN((M98/'3. Cost_of_Service_Parameters'!M53),(M98+M104)))), 0,-(M99/('3. Cost_of_Service_Parameters'!M53*2)+MIN((M98/'3. Cost_of_Service_Parameters'!M53),(M98+M104)))) -> -6184.5 | O105: =IF(ISERROR(-(O99/('3. Cost_of_Service_Parameters'!O53*2)+MIN((O98/'3. Cost_of_Service_Parameters'!O53),(O98+O104)))), 0, -(O99/('3. Cost_of_Service_Parameters'!O53*2)+MIN((O98/'3. Cost_of_Service_Parameters'!O53),(O98+O104)))) -> -14753.05 | Q105: =IF(ISERROR(-(Q99/('3. Cost_of_Service_Parameters'!Q53*2)+MIN((Q98/'3. Cost_of_Service_Parameters'!Q53),(Q98+Q104)))), 0, -(Q99/('3. Cost_of_Service_Parameters'!Q53*2)+MIN((Q98/'3. Cost_of_Service_Parameters'!Q53),(Q98+Q104)))) -> -18271.7 | S105: =IF(ISERROR(-(S99/('3. Cost_of_Service_Parameters'!S53*2)+MIN((S98/'3. Cost_of_Service_Parameters'!S53),(S98+S104)))), 0, -(S99/('3. Cost_of_Service_Parameters'!S53*2)+MIN((S98/'3. Cost_of_Service_Parameters'!S53),(S98+S104)))) -> -19406.3 | U105: =IF(ISERROR(-(U99/('3. Cost_of_Service_Parameters'!U53*2)+MIN((U98/'3. Cost_of_Service_Parameters'!U53),(U98+U104)))), 0, -(U99/('3. Cost_of_Service_Parameters'!U53*2)+MIN((U98/'3. Cost_of_Service_Parameters'!U53),(U98+U104)))) -> -19406.3
D106: Retirements/Removals (if applicable)
D107: Closing Balance | G107: =G104+G105-G106 -> 0 | I107: =I104+I105-I106 -> 0 | K107: =K104+K105-K106 -> 0 | M107: =M104+M105-M106 -> -6184.5 | O107: =O104+O105-O106 -> -20937.55 | Q107: =Q104+Q105-Q106 -> -39209.25 | S107: =S104+S105-S106 -> -58615.55 | U107: =U104+U105-U106 -> -78021.85
C109: Net Book Value
D110: Opening Balance | G110: =G98+G104 -> 0 | I110: =G111 -> 0 | K110: =I111 -> 0 | M110: =K111 -> 0 | O110: =M111 -> 117505.5 | Q110: =O111 -> 150433.45 | S110: =Q111 -> 154853.75 | U110: =S111 -> 135447.45
D111: Closing Balance | G111: =G101+G107 -> 0 | I111: =I101+I107 -> 0 | K111: =K101+K107 -> 0 | M111: =M101+M107 -> 117505.5 | O111: =O101+O107 -> 150433.45 | Q111: =Q101+Q107 -> 154853.75 | S111: =S101+S107 -> 135447.45 | U111: =U101+U107 -> 116041.15
D112: Average Net Book Value | G112: =AVERAGE(G110:G111) -> 0 | I112: =AVERAGE(I110:I111) -> 0 | K112: =AVERAGE(K110:K111) -> 0 | M112: =AVERAGE(M110:M111) -> 58752.75 | O112: =AVERAGE(O110:O111) -> 133969.475 | Q112: =AVERAGE(Q110:Q111) -> 152643.6 | S112: =AVERAGE(S110:S111) -> 145150.6 | U112: =AVERAGE(U110:U111) -> 125744.3

Sheet 5. SM_Rev_Reqt
G18: 2006 | I18: 2007 | K18: 2008 | M18: 2009 | O18: 2010 | Q18: 2011 | S18: 2012 | U18: 2013
B19: Average Net Fixed Asset Values (from Sheet 4)
C20: Smart Meters | G20: ='4. SM_Assets_and_Rate_Base'!G36 -> 0 | I20: ='4. SM_Assets_and_Rate_Base'!I36 -> 0 | K20: ='4. SM_Assets_and_Rate_Base'!K36 -> 0 | M20: ='4. SM_Assets_and_Rate_Base'!M36 -> 664655.8333 | O20: ='4. SM_Assets_and_Rate_Base'!O36 -> 2026804.233 | Q20: ='4. SM_Assets_and_Rate_Base'!Q36 -> 2855579.9 | S20: ='4. SM_Assets_and_Rate_Base'!S36 -> 2899184.213 | U20: ='4. SM_Assets_and_Rate_Base'!U36 -> 2714799.321
C21: Computer Hardware | G21: ='4. SM_Assets_and_Rate_Base'!G55 -> 0 | I21: ='4. SM_Assets_and_Rate_Base'!I55 -> 0 | K21: ='4. SM_Assets_and_Rate_Base'!K55 -> 0 | M21: ='4. SM_Assets_and_Rate_Base'!M55 -> 0 | O21: ='4. SM_Assets_and_Rate_Base'!O55 -> 0 | Q21: ='4. SM_Assets_and_Rate_Base'!Q55 -> 0 | S21: ='4. SM_Assets_and_Rate_Base'!S55 -> 0 | U21: ='4. SM_Assets_and_Rate_Base'!U55 -> 0
C22: Computer Software | G22: ='4. SM_Assets_and_Rate_Base'!G74 -> 0 | I22: ='4. SM_Assets_and_Rate_Base'!I74 -> 14142.6 | K22: ='4. SM_Assets_and_Rate_Base'!K74 -> 60656.4 | M22: ='4. SM_Assets_and_Rate_Base'!M74 -> 210817.9 | O22: ='4. SM_Assets_and_Rate_Base'!O74 -> 370999.5 | Q22: ='4. SM_Assets_and_Rate_Base'!Q74 -> 406554.0735 | S22: ='4. SM_Assets_and_Rate_Base'!S74 -> 374241.035 | U22: ='4. SM_Assets_and_Rate_Base'!U74 -> 269795.202
C23: Tools & Equipment | G23: ='4. SM_Assets_and_Rate_Base'!G93 -> 0 | I23: ='4. SM_Assets_and_Rate_Base'!I93 -> 0 | K23: ='4. SM_Assets_and_Rate_Base'!K93 -> 0 | M23: ='4. SM_Assets_and_Rate_Base'!M93 -> 0 | O23: ='4. SM_Assets_and_Rate_Base'!O93 -> 0 | Q23: ='4. SM_Assets_and_Rate_Base'!Q93 -> 0 | S23: ='4. SM_Assets_and_Rate_Base'!S93 -> 0 | U23: ='4. SM_Assets_and_Rate_Base'!U93 -> 0
C24: Other Equipment | G24: ='4. SM_Assets_and_Rate_Base'!G112 -> 0 | I24: ='4. SM_Assets_and_Rate_Base'!I112 -> 0 | K24: ='4. SM_Assets_and_Rate_Base'!K112 -> 0 | M24: ='4. SM_Assets_and_Rate_Base'!M112 -> 58752.75 | O24: ='4. SM_Assets_and_Rate_Base'!O112 -> 133969.475 | Q24: ='4. SM_Assets_and_Rate_Base'!Q112 -> 152643.6 | S24: ='4. SM_Assets_and_Rate_Base'!S112 -> 145150.6 | U24: ='4. SM_Assets_and_Rate_Base'!U112 -> 125744.3
C25: Total Net Fixed Assets | G25: =SUM(G20:G24) -> 0 | I25: =SUM(I20:I24) -> 14142.6 | K25: =SUM(K20:K24) -> 60656.4 | M25: =SUM(M20:M24) -> 934226.4833 | O25: =SUM(O20:O24) -> 2531773.208 | Q25: =SUM(Q20:Q24) -> 3414777.573 | S25: =SUM(S20:S24) -> 3418575.848 | U25: =SUM(U20:U24) -> 3110338.823
B27: Working Capital
C28: Operating Expenses (from Sheet 2) | G28: ='2. Smart_Meter_Costs'!G174 -> 0 | I28: ='2. Smart_Meter_Costs'!I174 -> 0 | K28: ='2. Smart_Meter_Costs'!K174 -> 0 | M28: ='2. Smart_Meter_Costs'!M174 -> 0 | O28: ='2. Smart_Meter_Costs'!O174 -> 99867.57 | Q28: ='2. Smart_Meter_Costs'!Q174 -> 0 | S28: ='2. Smart_Meter_Costs'!S174 -> 0 | U28: ='2. Smart_Meter_Costs'!U174 -> 0
C29: Working Capital Factor (from Sheet 3) | G29: ='3. Cost_of_Service_Parameters'!G36 -> 0.15 | I29: ='3. Cost_of_Service_Parameters'!I36 -> 0.15 | K29: ='3. Cost_of_Service_Parameters'!K36 -> 0.15 | M29: ='3. Cost_of_Service_Parameters'!M36 -> 0.15 | O29: ='3. Cost_of_Service_Parameters'!O36 -> 0.15 | Q29: ='3. Cost_of_Service_Parameters'!Q36 -> 0.15 | S29: ='3. Cost_of_Service_Parameters'!S36 -> 0.15 | U29: ='3. Cost_of_Service_Parameters'!U36 -> 0.13
C30: Working Capital Allowance | G30: =G28*G29 -> 0 | I30: =I28*I29 -> 0 | K30: =K28*K29 -> 0 | M30: =M28*M29 -> 0 | O30: =O28*O29 -> 14980.1355 | Q30: =Q28*Q29 -> 0 | S30: =S28*S29 -> 0 | U30: =U28*U29 -> 0
B32: Incremental Smart Meter Rate Base | G32: =G25+G30 -> 0 | I32: =I25+I30 -> 14142.6 | K32: =K25+K30 -> 60656.4 | M32: =M25+M30 -> 934226.4833 | O32: =O25+O30 -> 2546753.344 | Q32: =Q25+Q30 -> 3414777.573 | S32: =S25+S30 -> 3418575.848 | U32: =U25+U30 -> 3110338.823
B34: Return on Rate Base
C35: Capital Structure
C36: Deemed Short Term Debt | G36: =G$32*'3. Cost_of_Service_Parameters'!G22 -> 0 | I36: =I$32*'3. Cost_of_Service_Parameters'!I22 -> 0 | K36: =K$32*'3. Cost_of_Service_Parameters'!K22 -> 0 | M36: =M$32*'3. Cost_of_Service_Parameters'!M22 -> 0 | O36: =O$32*'3. Cost_of_Service_Parameters'!O22 -> 0 | Q36: =Q$32*'3. Cost_of_Service_Parameters'!Q22 -> 136591.1029 | S36: =S$32*'3. Cost_of_Service_Parameters'!S22 -> 136743.0339 | U36: =U$32*'3. Cost_of_Service_Parameters'!U22 -> 124413.5529
C37: Deemed Long Term Debt | G37: =G$32*'3. Cost_of_Service_Parameters'!G23 -> 0 | I37: =I$32*'3. Cost_of_Service_Parameters'!I23 -> 7071.3 | K37: =K$32*'3. Cost_of_Service_Parameters'!K23 -> 30328.2 | M37: =M$32*'3. Cost_of_Service_Parameters'!M23 -> 467113.2417 | O37: =O$32*'3. Cost_of_Service_Parameters'!O23 -> 1273376.672 | Q37: =Q$32*'3. Cost_of_Service_Parameters'!Q23 -> 1912275.441 | S37: =S$32*'3. Cost_of_Service_Parameters'!S23 -> 1914402.475 | U37: =U$32*'3. Cost_of_Service_Parameters'!U23 -> 1741789.741
C38: Equity | G38: =G$32*'3. Cost_of_Service_Parameters'!G24 -> 0 | I38: =I$32*'3. Cost_of_Service_Parameters'!I24 -> 7071.3 | K38: =K$32*'3. Cost_of_Service_Parameters'!K24 -> 30328.2 | M38: =M$32*'3. Cost_of_Service_Parameters'!M24 -> 467113.2417 | O38: =O$32*'3. Cost_of_Service_Parameters'!O24 -> 1273376.672 | Q38: =Q$32*'3. Cost_of_Service_Parameters'!Q24 -> 1365911.029 | S38: =S$32*'3. Cost_of_Service_Parameters'!S24 -> 1367430.339 | U38: =U$32*'3. Cost_of_Service_Parameters'!U24 -> 1244135.529
C39: Preferred Shares | G39: =G$32*'3. Cost_of_Service_Parameters'!G25 -> 0 | I39: =I$32*'3. Cost_of_Service_Parameters'!I25 -> 0 | K39: =K$32*'3. Cost_of_Service_Parameters'!K25 -> 0 | M39: =M$32*'3. Cost_of_Service_Parameters'!M25 -> 0 | O39: =O$32*'3. Cost_of_Service_Parameters'!O25 -> 0 | Q39: =Q$32*'3. Cost_of_Service_Parameters'!Q25 -> 0 | S39: =S$32*'3. Cost_of_Service_Parameters'!S25 -> 0 | U39: =U$32*'3. Cost_of_Service_Parameters'!U25 -> 0
C40: Total Capitalization | G40: =SUM(G36:G39) -> 0 | I40: =SUM(I36:I39) -> 14142.6 | K40: =SUM(K36:K39) -> 60656.4 | M40: =SUM(M36:M39) -> 934226.4833 | O40: =SUM(O36:O39) -> 2546753.344 | Q40: =SUM(Q36:Q39) -> 3414777.573 | S40: =SUM(S36:S39) -> 3418575.848 | U40: =SUM(U36:U39) -> 3110338.823
G41: =IF(G40=G32,"","Error") ->  | I41: =IF(I40=I32,"","Error") ->  | K41: =IF(K40=K32,"","Error") ->  | M41: =IF(M40=M32,"","Error") ->  | O41: =IF(O40=O32,"","Error") ->  | Q41: =IF(Q40=Q32,"","Error") ->  | S41: =IF(S40=S32,"","Error") ->  | U41: =IF(U40=U32,"","Error") -> 
C42: Return on
C43: Deemed Short Term Debt | G43: =G36*'3. Cost_of_Service_Parameters'!G29 -> 0 | I43: =I36*'3. Cost_of_Service_Parameters'!I29 -> 0 | K43: =K36*'3. Cost_of_Service_Parameters'!K29 -> 0 | M43: =M36*'3. Cost_of_Service_Parameters'!M29 -> 0 | O43: =O36*'3. Cost_of_Service_Parameters'!O29 -> 0 | Q43: =Q36*'3. Cost_of_Service_Parameters'!Q29 -> 2827.435831 | S43: =S36*'3. Cost_of_Service_Parameters'!S29 -> 2830.580802 | U43: =U36*'3. Cost_of_Service_Parameters'!U29 -> 2575.360546
C44: Deemed Long Term Debt | G44: =G37*'3. Cost_of_Service_Parameters'!G30 -> 0 | I44: =I37*'3. Cost_of_Service_Parameters'!I30 -> 431.3493 | K44: =K37*'3. Cost_of_Service_Parameters'!K30 -> 1850.0202 | M44: =M37*'3. Cost_of_Service_Parameters'!M30 -> 28493.90774 | O44: =O37*'3. Cost_of_Service_Parameters'!O30 -> 77675.97699 | Q44: =Q37*'3. Cost_of_Service_Parameters'!Q30 -> 112250.5684 | S44: =S37*'3. Cost_of_Service_Parameters'!S30 -> 112375.4253 | U44: =U37*'3. Cost_of_Service_Parameters'!U30 -> 102243.0578
C45: Equity | G45: =G38*'3. Cost_of_Service_Parameters'!G31 -> 0 | I45: =I38*'3. Cost_of_Service_Parameters'!I31 -> 606.01041 | K45: =K38*'3. Cost_of_Service_Parameters'!K31 -> 2599.12674 | M45: =M38*'3. Cost_of_Service_Parameters'!M31 -> 40031.60481 | O45: =O38*'3. Cost_of_Service_Parameters'!O31 -> 109128.3808 | Q45: =Q38*'3. Cost_of_Service_Parameters'!Q31 -> 134542.2364 | S45: =S38*'3. Cost_of_Service_Parameters'!S31 -> 134691.8884 | U45: =U38*'3. Cost_of_Service_Parameters'!U31 -> 122547.3496
C46: Preferred Shares | G46: =G39*'3. Cost_of_Service_Parameters'!G32 -> 0 | I46: =I39*'3. Cost_of_Service_Parameters'!I32 -> 0 | K46: =K39*'3. Cost_of_Service_Parameters'!K32 -> 0 | M46: =M39*'3. Cost_of_Service_Parameters'!M32 -> 0 | O46: =O39*'3. Cost_of_Service_Parameters'!O32 -> 0 | Q46: =Q39*'3. Cost_of_Service_Parameters'!Q32 -> 0 | S46: =S39*'3. Cost_of_Service_Parameters'!S32 -> 0 | U46: =U39*'3. Cost_of_Service_Parameters'!U32 -> 0
C47: Total Return on Capital | G47: =SUM(G43:G46) -> 0 | I47: =SUM(I43:I46) -> 1037.35971 | K47: =SUM(K43:K46) -> 4449.14694 | M47: =SUM(M43:M46) -> 68525.51255 | O47: =SUM(O43:O46) -> 186804.3578 | Q47: =SUM(Q43:Q46) -> 249620.2406 | S47: =SUM(S43:S46) -> 249897.8945 | U47: =SUM(U43:U46) -> 227365.768
B50: Operating Expenses | G50: =G28 -> 0 | I50: =I28 -> 0 | K50: =K28 -> 0 | M50: =M28 -> 0 | O50: =O28 -> 99867.57 | Q50: =Q28 -> 0 | S50: =S28 -> 0 | U50: =U28 -> 0
B52: Amortization Expenses (from Sheet 4)
C53: Smart Meters | G53: =-'4. SM_Assets_and_Rate_Base'!G29 -> 0 | I53: =-'4. SM_Assets_and_Rate_Base'!I29 -> 0 | K53: =-'4. SM_Assets_and_Rate_Base'!K29 -> 0 | M53: =-'4. SM_Assets_and_Rate_Base'!M29 -> 45838.33333 | O53: =-'4. SM_Assets_and_Rate_Base'!O29 -> 142940.8667 | Q53: =-'4. SM_Assets_and_Rate_Base'!Q29 -> 209955.8 | S53: =-'4. SM_Assets_and_Rate_Base'!S29 -> 227442.7043 | U53: =-'4. SM_Assets_and_Rate_Base'!U29 -> 230412.2087
C54: Computer Hardware | G54: =-'4. SM_Assets_and_Rate_Base'!G48 -> 0 | I54: =-'4. SM_Assets_and_Rate_Base'!I48 -> 0 | K54: =-'4. SM_Assets_and_Rate_Base'!K48 -> 0 | M54: =-'4. SM_Assets_and_Rate_Base'!M48 -> 0 | O54: =-'4. SM_Assets_and_Rate_Base'!O48 -> 0 | Q54: =-'4. SM_Assets_and_Rate_Base'!Q48 -> 0 | S54: =-'4. SM_Assets_and_Rate_Base'!S48 -> 0 | U54: =-'4. SM_Assets_and_Rate_Base'!U48 -> 0
C55: Computer Software | G55: =-'4. SM_Assets_and_Rate_Base'!G67 -> 0 | I55: =-'4. SM_Assets_and_Rate_Base'!I67 -> 3142.8 | K55: =-'4. SM_Assets_and_Rate_Base'!K67 -> 14177.6 | M55: =-'4. SM_Assets_and_Rate_Base'!M67 -> 50697.4 | O55: =-'4. SM_Assets_and_Rate_Base'!O67 -> 97559.4 | Q55: =-'4. SM_Assets_and_Rate_Base'!Q67 -> 127140.283 | S55: =-'4. SM_Assets_and_Rate_Base'!S67 -> 148213.004 | U55: =-'4. SM_Assets_and_Rate_Base'!U67 -> 157939.042
C56: Tools & Equipment | G56: =-'4. SM_Assets_and_Rate_Base'!G86 -> 0 | I56: =-'4. SM_Assets_and_Rate_Base'!I86 -> 0 | K56: =-'4. SM_Assets_and_Rate_Base'!K86 -> 0 | M56: =-'4. SM_Assets_and_Rate_Base'!M86 -> 0 | O56: =-'4. SM_Assets_and_Rate_Base'!O86 -> 0 | Q56: =-'4. SM_Assets_and_Rate_Base'!Q86 -> 0 | S56: =-'4. SM_Assets_and_Rate_Base'!S86 -> 0 | U56: =-'4. SM_Assets_and_Rate_Base'!U86 -> 0
C57: Other Equipment | G57: =-'4. SM_Assets_and_Rate_Base'!G105 -> 0 | I57: =-'4. SM_Assets_and_Rate_Base'!I105 -> 0 | K57: =-'4. SM_Assets_and_Rate_Base'!K105 -> 0 | M57: =-'4. SM_Assets_and_Rate_Base'!M105 -> 6184.5 | O57: =-'4. SM_Assets_and_Rate_Base'!O105 -> 14753.05 | Q57: =-'4. SM_Assets_and_Rate_Base'!Q105 -> 18271.7 | S57: =-'4. SM_Assets_and_Rate_Base'!S105 -> 19406.3 | U57: =-'4. SM_Assets_and_Rate_Base'!U105 -> 19406.3
C58: Total Amortization Expense in Year | G58: =SUM(G53:G57) -> 0 | I58: =SUM(I53:I57) -> 3142.8 | K58: =SUM(K53:K57) -> 14177.6 | M58: =SUM(M53:M57) -> 102720.2333 | O58: =SUM(O53:O57) -> 255253.3167 | Q58: =SUM(Q53:Q57) -> 355367.783 | S58: =SUM(S53:S57) -> 395062.0083 | U58: =SUM(U53:U57) -> 407757.5507
B60: Incremental Revenue Requirement before Taxes/PILs | G60: =G47+G50+G58 -> 0 | I60: =I47+I50+I58 -> 4180.15971 | K60: =K47+K50+K58 -> 18626.74694 | M60: =M47+M50+M58 -> 171245.7459 | O60: =O47+O50+O58 -> 541925.2444 | Q60: =Q47+Q50+Q58 -> 604988.0236 | S60: =S47+S50+S58 -> 644959.9028 | U60: =U47+U50+U58 -> 635123.3187
B62: Calculation of Taxable Income
C63: Incremental Operating Expenses | G63: =G50 -> 0 | I63: =I50 -> 0 | K63: =K50 -> 0 | M63: =M50 -> 0 | O63: =O50 -> 99867.57 | Q63: =Q50 -> 0 | S63: =S50 -> 0 | U63: =U50 -> 0
C64: Amortization Expense | G64: =G58 -> 0 | I64: =I58 -> 3142.8 | K64: =K58 -> 14177.6 | M64: =M58 -> 102720.2333 | O64: =O58 -> 255253.3167 | Q64: =Q58 -> 355367.783 | S64: =S58 -> 395062.0083 | U64: =U58 -> 407757.5507
C65: Interest Expense | G65: =G43+G44 -> 0 | I65: =I43+I44 -> 431.3493 | K65: =K43+K44 -> 1850.0202 | M65: =M43+M44 -> 28493.90774 | O65: =O43+O44 -> 77675.97699 | Q65: =Q43+Q44 -> 115078.0042 | S65: =S43+S44 -> 115206.0061 | U65: =U43+U44 -> 104818.4183
C66: Net Income for Taxes/PILs | G66: =G60-SUM(G63:G65) -> 0 | I66: =I60-SUM(I63:I65) -> 606.01041 | K66: =K60-SUM(K63:K65) -> 2599.12674 | M66: =M60-SUM(M63:M65) -> 40031.60481 | O66: =O60-SUM(O63:O65) -> 109128.3808 | Q66: =Q60-SUM(Q63:Q65) -> 134542.2364 | S66: =S60-SUM(S63:S65) -> 134691.8884 | U66: =U60-SUM(U63:U65) -> 122547.3496
B68: Grossed-up Taxes/PILs (from Sheet 7) | G68: ='7_Taxes_PILs'!C59 -> 0 | I68: ='7_Taxes_PILs'!E59 -> -2703.535695 | K68: ='7_Taxes_PILs'!G59 -> -9662.161913 | M68: ='7_Taxes_PILs'!I59 -> -18881.85286 | O68: ='7_Taxes_PILs'!K59 -> -3626.747822 | Q68: ='7_Taxes_PILs'!M59 -> 25306.84637 | S68: ='7_Taxes_PILs'!O59 -> 49365.61302 | U68: ='7_Taxes_PILs'!S59 -> 0
B70: Revenue Requirement, including Grossed-up Taxes/PILs | G70: =G60+G68 -> 0 | I70: =I60+I68 -> 1476.624015 | K70: =K60+K68 -> 8964.585027 | M70: =M60+M68 -> 152363.893 | O70: =O60+O68 -> 538298.4966 | Q70: =Q60+Q68 -> 630294.87 | S70: =S60+S68 -> 694325.5158 | U70: =U60+U68 -> 635123.3187

Sheet 6. UCC_Calculation
A18: For PILs Calculation
A20: UCC - Smart Meters | B20: ='2. Smart_Meter_Costs'!G18 -> 2006 | D20: ='2. Smart_Meter_Costs'!I18 -> 2007 | F20: ='2. Smart_Meter_Costs'!K18 -> 2008 | H20: ='2. Smart_Meter_Costs'!M18 -> 2009 | J20: ='2. Smart_Meter_Costs'!O18 -> 2010 | L20: ='2. Smart_Meter_Costs'!Q18 -> 2011 | N20: ='2. Smart_Meter_Costs'!S18 -> 2012 | P20: ='2. Smart_Meter_Costs'!U18 -> 2013
B21: ='2. Smart_Meter_Costs'!G19 -> Audited Actual | D21: ='2. Smart_Meter_Costs'!I19 -> Audited Actual | F21: ='2. Smart_Meter_Costs'!K19 -> Audited Actual | H21: ='2. Smart_Meter_Costs'!M19 -> Audited Actual | J21: ='2. Smart_Meter_Costs'!O19 -> Audited Actual | L21: ='2. Smart_Meter_Costs'!Q19 -> Audited Actual | N21: ='2. Smart_Meter_Costs'!S19 -> Forecast | P21: ='2. Smart_Meter_Costs'!U19 -> Forecast
A23: Opening UCC | B23: 0 | D23: =B26-B31 -> 0 | F23: =D26-D31 -> 0 | H23: =F26-F31 -> 0 | J23: =H26-H31 -> 1320144 | L23: =J26-J31 -> 2690941.44 | N23: =L26-L31 -> 2929287.245 | P23: =N26-N31 -> 2744945.99
A24: Capital Additions | B24: ='4. SM_Assets_and_Rate_Base'!G23 -> 0 | D24: ='4. SM_Assets_and_Rate_Base'!I23 -> 0 | F24: ='4. SM_Assets_and_Rate_Base'!K23 -> 0 | H24: ='4. SM_Assets_and_Rate_Base'!M23 -> 1375150 | J24: ='4. SM_Assets_and_Rate_Base'!O23 -> 1537926 | L24: ='4. SM_Assets_and_Rate_Base'!Q23 -> 472522 | N24: ='4. SM_Assets_and_Rate_Base'!S23 -> 52085.13 | P24: ='4. SM_Assets_and_Rate_Base'!U23 -> 37000
A25: Retirements/Removals (if applicable)
A26: UCC Before Half Year Rule | B26: =SUM(B23:B24)-B25 -> 0 | D26: =SUM(D23:D24)-D25 -> 0 | F26: =SUM(F23:F24)-F25 -> 0 | H26: =SUM(H23:H24)-H25 -> 1375150 | J26: =SUM(J23:J24)-J25 -> 2858070 | L26: =SUM(L23:L24)-L25 -> 3163463.44 | N26: =SUM(N23:N24)-N25 -> 2981372.375 | P26: =SUM(P23:P24)-P25 -> 2781945.99
A27: Half Year Rule (1/2 Additions - Disposals) | B27: =IF(((B24-B25)/2)<0, 0, (B24-B25)/2) -> 0 | D27: =IF(((D24-D25)/2)<0, 0, (D24-D25)/2) -> 0 | F27: =IF(((F24-F25)/2)<0, 0, (F24-F25)/2) -> 0 | H27: =IF(((H24-H25)/2)<0, 0, (H24-H25)/2) -> 687575 | J27: =IF(((J24-J25)/2)<0, 0, (J24-J25)/2) -> 768963 | L27: =IF(((L24-L25)/2)<0, 0, (L24-L25)/2) -> 236261 | N27: =IF(((N24-N25)/2)<0, 0, (N24-N25)/2) -> 26042.565 | P27: =IF(((P24-P25)/2)<0, 0, (P24-P25)/2) -> 18500
A28: Reduced UCC | B28: =B27+B23 -> 0 | D28: =D27+D23 -> 0 | F28: =F27+F23 -> 0 | H28: =H27+H23 -> 687575 | J28: =J27+J23 -> 2089107 | L28: =L27+L23 -> 2927202.44 | N28: =N27+N23 -> 2955329.81 | P28: =P27+P23 -> 2763445.99
A29: CCA Rate Class | B29: ='3. Cost_of_Service_Parameters'!G57 -> 47 | D29: ='3. Cost_of_Service_Parameters'!I57 -> 47 | F29: ='3. Cost_of_Service_Parameters'!K57 -> 47 | H29: ='3. Cost_of_Service_Parameters'!M57 -> 47 | J29: ='3. Cost_of_Service_Parameters'!O57 -> 47 | L29: ='3. Cost_of_Service_Parameters'!Q57 -> 47 | N29: ='3. Cost_of_Service_Parameters'!S57 -> 47 | P29: ='3. Cost_of_Service_Parameters'!U57 -> 47
A30: CCA Rate | B30: ='3. Cost_of_Service_Parameters'!G58 -> 0.08 | D30: ='3. Cost_of_Service_Parameters'!I58 -> 0.08 | F30: ='3. Cost_of_Service_Parameters'!K58 -> 0.08 | H30: ='3. Cost_of_Service_Parameters'!M58 -> 0.08 | J30: ='3. Cost_of_Service_Parameters'!O58 -> 0.08 | L30: ='3. Cost_of_Service_Parameters'!Q58 -> 0.08 | N30: ='3. Cost_of_Service_Parameters'!S58 -> 0.08 | P30: ='3. Cost_of_Service_Parameters'!U58 -> 0.08
A31: CCA | B31: =B28*B30 -> 0 | D31: =D28*D30 -> 0 | F31: =F28*F30 -> 0 | H31: =H28*H30 -> 55006 | J31: =J28*J30 -> 167128.56 | L31: =L28*L30 -> 234176.1952 | N31: =N28*N30 -> 236426.3848 | P31: =P28*P30 -> 221075.6792
A32: Closing UCC | B32: =IF((B26-B31)<0, 0, B26-B31) -> 0 | D32: =IF((D26-D31)<0, 0, D26-D31) -> 0 | F32: =IF((F26-F31)<0, 0, F26-F31) -> 0 | H32: =IF((H26-H31)<0, 0, H26-H31) -> 1320144 | J32: =IF((J26-J31)<0, 0, J26-J31) -> 2690941.44 | L32: =IF((L26-L31)<0, 0, L26-L31) -> 2929287.245 | N32: =IF((N26-N31)<0, 0, N26-N31) -> 2744945.99 | P32: =IF((P26-P31)<0, 0, P26-P31) -> 2560870.311
A34: UCC - Computer Equipment | B34: =B20 -> 2006 | D34: 2007 | F34: 2008 | H34: 2009 | J34: 2010 | L34: 2011 | N34: =N20 -> 2012 | P34: =P20 -> 2013
B35: Audited Actual | D35: Audited Actual | F35: Audited Actual | H35: Audited Actual | J35: Audited Actual | L35: Audited Actual | N35: =N21 -> Forecast | P35: =P21 -> Forecast
A37: Opening UCC | B37: 0 | D37: =B41-B46 -> 0 | F37: =D41-D46 -> 22785.3 | H37: =F41-F46 -> 67470.385 | J37: =H41-H46 -> 237913.2232 | L37: =J41-J46 -> 239258.9005 | N37: =L41-L46 -> 189929.957 | P37: =N41-N46 -> 155982.2561
A38: Capital Additions Computer Hardware | B38: ='2. Smart_Meter_Costs'!G183 -> 0 | D38: ='2. Smart_Meter_Costs'!I183 -> 0 | F38: ='2. Smart_Meter_Costs'!K183 -> 0 | H38: ='2. Smart_Meter_Costs'!M183 -> 0 | J38: ='2. Smart_Meter_Costs'!O183 -> 0 | L38: ='2. Smart_Meter_Costs'!Q183 -> 0 | N38: ='2. Smart_Meter_Costs'!S183 -> 0 | P38: ='2. Smart_Meter_Costs'!U183 -> 0
A39: Capital Additions Computer Software | B39: ='2. Smart_Meter_Costs'!G185 -> 0 | D39: ='2. Smart_Meter_Costs'!I185 -> 31428 | F39: ='2. Smart_Meter_Costs'!K185 -> 78920 | H39: ='2. Smart_Meter_Costs'!M185 -> 286278 | J39: ='2. Smart_Meter_Costs'!O185 -> 182342 | L39: ='2. Smart_Meter_Costs'!Q185 -> 113466.83 | N39: ='2. Smart_Meter_Costs'!S185 -> 97260.38 | P39: ='2. Smart_Meter_Costs'!U185 -> 0
A40: Retirements/Removals (if applicable)
A41: UCC Before Half Year Rule | B41: =SUM(B37:B39)-B40 -> 0 | D41: =SUM(D37:D39)-D40 -> 31428 | F41: =SUM(F37:F39)-F40 -> 101705.3 | H41: =SUM(H37:H39)-H40 -> 353748.385 | J41: =SUM(J37:J39)-J40 -> 420255.2232 | L41: =SUM(L37:L39)-L40 -> 352725.7305 | N41: =SUM(N37:N39)-N40 -> 287190.337 | P41: =SUM(P37:P39)-P40 -> 155982.2561
A42: Half Year Rule (1/2 Additions - Disposals) | B42: =IF((SUM(B38:B39)/2)<0, 0, SUM(B38:B39)/2) -> 0 | D42: =IF((SUM(D38:D39)/2)<0, 0, SUM(D38:D39)/2) -> 15714 | F42: =IF((SUM(F38:F39)/2)<0, 0, SUM(F38:F39)/2) -> 39460 | H42: =IF((SUM(H38:H39)/2)<0, 0, SUM(H38:H39)/2) -> 143139 | J42: =IF((SUM(J38:J39)/2)<0, 0, SUM(J38:J39)/2) -> 91171 | L42: =IF((SUM(L38:L39)/2)<0, 0, SUM(L38:L39)/2) -> 56733.415 | N42: =IF((SUM(N38:N39)/2)<0, 0, SUM(N38:N39)/2) -> 48630.19 | P42: =IF((SUM(P38:P39)/2)<0, 0, SUM(P38:P39)/2) -> 0
A43: Reduced UCC | B43: =B42+B37 -> 0 | D43: =D42+D37 -> 15714 | F43: =F42+F37 -> 62245.3 | H43: =H42+H37 -> 210609.385 | J43: =J42+J37 -> 329084.2232 | L43: =L42+L37 -> 295992.3155 | N43: =N42+N37 -> 238560.147 | P43: =P42+P37 -> 155982.2561
A44: CCA Rate Class | B44: ='3. Cost_of_Service_Parameters'!G60 -> 45 | D44: ='3. Cost_of_Service_Parameters'!I60 -> 50 | F44: ='3. Cost_of_Service_Parameters'!K60 -> 50 | H44: ='3. Cost_of_Service_Parameters'!M60 -> 50 | J44: ='3. Cost_of_Service_Parameters'!O60 -> 50 | L44: ='3. Cost_of_Service_Parameters'!Q60 -> 50 | N44: ='3. Cost_of_Service_Parameters'!S60 -> 50 | P44: ='3. Cost_of_Service_Parameters'!U60 -> 50
A45: CCA Rate | B45: ='3. Cost_of_Service_Parameters'!G61 -> 0.45 | D45: ='3. Cost_of_Service_Parameters'!I61 -> 0.55 | F45: ='3. Cost_of_Service_Parameters'!K61 -> 0.55 | H45: ='3. Cost_of_Service_Parameters'!M61 -> 0.55 | J45: ='3. Cost_of_Service_Parameters'!O61 -> 0.55 | L45: ='3. Cost_of_Service_Parameters'!Q61 -> 0.55 | N45: ='3. Cost_of_Service_Parameters'!S61 -> 0.55 | P45: ='3. Cost_of_Service_Parameters'!U61 -> 0.55
A46: CCA | B46: =B45*B43 -> 0 | D46: =D45*D43 -> 8642.7 | F46: =F45*F43 -> 34234.915 | H46: =H45*H43 -> 115835.1618 | J46: =J45*J43 -> 180996.3228 | L46: =L45*L43 -> 162795.7735 | N46: =N45*N43 -> 131208.0808 | P46: =P45*P43 -> 85790.24087
A47: Closing UCC | B47: =IF((B41-B46)<0, 0, B41-B46) -> 0 | D47: =IF((D41-D46)<0, 0, D41-D46) -> 22785.3 | F47: =IF((F41-F46)<0, 0, F41-F46) -> 67470.385 | H47: =IF((H41-H46)<0, 0, H41-H46) -> 237913.2232 | J47: =IF((J41-J46)<0, 0, J41-J46) -> 239258.9005 | L47: =IF((L41-L46)<0, 0, L41-L46) -> 189929.957 | N47: =IF((N41-N46)<0, 0, N41-N46) -> 155982.2561 | P47: =IF((P41-P46)<0, 0, P41-P46) -> 70192.01526
A49: UCC - General Equipment | B49: =B34 -> 2006 | D49: 2007 | F49: 2008 | H49: 2009 | J49: 2010 | L49: 2011 | N49: =N34 -> 2012 | P49: =P34 -> 2013
B50: Audited Actual | D50: Audited Actual | F50: Audited Actual | H50: Audited Actual | J50: Audited Actual | L50: Audited Actual | N50: =N35 -> Forecast | P50: =P35 -> Forecast
A52: Opening UCC | B52: 0 | D52: =B56-B61 -> 0 | F52: =D56-D61 -> 0 | H52: =F56-F61 -> 0 | J52: =H56-H61 -> 111321 | L52: =J56-J61 -> 131969.7 | N52: =L56-L61 -> 125998.56 | P52: =N56-N61 -> 100798.848
A53: Capital Additions Tools & Equipment | B53: ='2. Smart_Meter_Costs'!G187 -> 0 | D53: ='2. Smart_Meter_Costs'!I187 -> 0 | F53: ='2. Smart_Meter_Costs'!K187 -> 0 | H53: ='2. Smart_Meter_Costs'!M187 -> 0 | J53: ='2. Smart_Meter_Costs'!O187 -> 0 | L53: ='2. Smart_Meter_Costs'!Q187 -> 0 | N53: ='2. Smart_Meter_Costs'!S187 -> 0 | P53: ='2. Smart_Meter_Costs'!U187 -> 0
A54: Capital Additions Other Equipment | B54: ='2. Smart_Meter_Costs'!G189 -> 0 | D54: ='2. Smart_Meter_Costs'!I189 -> 0 | F54: ='2. Smart_Meter_Costs'!K189 -> 0 | H54: ='2. Smart_Meter_Costs'!M189 -> 123690 | J54: ='2. Smart_Meter_Costs'!O189 -> 47681 | L54: ='2. Smart_Meter_Costs'!Q189 -> 22692 | N54: ='2. Smart_Meter_Costs'!S189 -> 0 | P54: ='2. Smart_Meter_Costs'!U189 -> 0
A55: Retirements/Removals (if applicable)
A56: UCC Before Half Year Rule | B56: =SUM(B52:B54)-B55 -> 0 | D56: =SUM(D52:D54)-D55 -> 0 | F56: =SUM(F52:F54)-F55 -> 0 | H56: =SUM(H52:H54)-H55 -> 123690 | J56: =SUM(J52:J54)-J55 -> 159002 | L56: =SUM(L52:L54)-L55 -> 154661.7 | N56: =SUM(N52:N54)-N55 -> 125998.56 | P56: =SUM(P52:P54)-P55 -> 100798.848
A57: Half Year Rule (1/2 Additions - Disposals) | B57: =IF(((SUM(B53:B54)-B55)/2)<0, 0, (SUM(B53:B54)-B55)/2) -> 0 | D57: =IF(((SUM(D53:D54)-D55)/2)<0, 0, (SUM(D53:D54)-D55)/2) -> 0 | F57: =IF(((SUM(F53:F54)-F55)/2)<0, 0, (SUM(F53:F54)-F55)/2) -> 0 | H57: =IF(((SUM(H53:H54)-H55)/2)<0, 0, (SUM(H53:H54)-H55)/2) -> 61845 | J57: =IF(((SUM(J53:J54)-J55)/2)<0, 0, (SUM(J53:J54)-J55)/2) -> 23840.5 | L57: =IF(((SUM(L53:L54)-L55)/2)<0, 0, (SUM(L53:L54)-L55)/2) -> 11346 | N57: =IF(((SUM(N53:N54)-N55)/2)<0, 0, (SUM(N53:N54)-N55)/2) -> 0 | P57: =IF(((SUM(P53:P54)-P55)/2)<0, 0, (SUM(P53:P54)-P55)/2) -> 0
A58: Reduced UCC | B58: =B57+B52 -> 0 | D58: =D57+D52 -> 0 | F58: =F57+F52 -> 0 | H58: =H57+H52 -> 61845 | J58: =J57+J52 -> 135161.5 | L58: =L57+L52 -> 143315.7 | N58: =N57+N52 -> 125998.56 | P58: =P57+P52 -> 100798.848
A59: CCA Rate Class | B59: ='3. Cost_of_Service_Parameters'!G63 -> 8 | D59: ='3. Cost_of_Service_Parameters'!I63 -> 8 | F59: ='3. Cost_of_Service_Parameters'!K63 -> 8 | H59: ='3. Cost_of_Service_Parameters'!M63 -> 8 | J59: ='3. Cost_of_Service_Parameters'!O63 -> 8 | L59: ='3. Cost_of_Service_Parameters'!Q63 -> 8 | N59: ='3. Cost_of_Service_Parameters'!S63 -> 8 | P59: ='3. Cost_of_Service_Parameters'!U63 -> 8
A60: CCA Rate | B60: ='3. Cost_of_Service_Parameters'!G64 -> 0.2 | D60: ='3. Cost_of_Service_Parameters'!I64 -> 0.2 | F60: ='3. Cost_of_Service_Parameters'!K64 -> 0.2 | H60: ='3. Cost_of_Service_Parameters'!M64 -> 0.2 | J60: ='3. Cost_of_Service_Parameters'!O64 -> 0.2 | L60: ='3. Cost_of_Service_Parameters'!Q64 -> 0.2 | N60: ='3. Cost_of_Service_Parameters'!S64 -> 0.2 | P60: ='3. Cost_of_Service_Parameters'!U64 -> 0.2
A61: CCA | B61: =B60*B58 -> 0 | D61: =D60*D58 -> 0 | F61: =F60*F58 -> 0 | H61: =H60*H58 -> 12369 | J61: =J60*J58 -> 27032.3 | L61: =L60*L58 -> 28663.14 | N61: =N60*N58 -> 25199.712 | P61: =P60*P58 -> 20159.7696
A62: Closing UCC | B62: =IF((B56-B61)<0, 0, B56-B61) -> 0 | D62: =IF((D56-D61)<0, 0, D56-D61) -> 0 | F62: =IF((F56-F61)<0, 0, F56-F61) -> 0 | H62: =IF((H56-H61)<0, 0, H56-H61) -> 111321 | J62: =IF((J56-J61)<0, 0, J56-J61) -> 131969.7 | L62: =IF((L56-L61)<0, 0, L56-L61) -> 125998.56 | N62: =IF((N56-N61)<0, 0, N56-N61) -> 100798.848 | P62: =IF((P56-P61)<0, 0, P56-P61) -> 80639.0784
A64: UCC - Applications Software | B64: =B49 -> 2006 | D64: =D49 -> 2007 | F64: =F49 -> 2008 | H64: =H49 -> 2009 | J64: =J49 -> 2010 | L64: =L49 -> 2011 | N64: =N49 -> 2012 | P64: =P49 -> 2013
B65: =B50 -> Audited Actual | D65: =D50 -> Audited Actual | F65: =F50 -> Audited Actual | H65: =H50 -> Audited Actual | J65: =J50 -> Audited Actual | L65: =L50 -> Audited Actual | N65: =N50 -> Forecast | P65: =P50 -> Forecast
A67: Opening UCC | B67: 0 | D67: =B70-B75 -> 0 | F67: =D70-D75 -> 0 | H67: =F70-F75 -> 0 | J67: =H70-H75 -> 0 | L67: =J70-J75 -> 0 | N67: =L70-L75 -> 0 | P67: =N70-N75 -> 0
A68: Capital Additions Applications Software | B68: ='2. Smart_Meter_Costs'!G191 -> 0 | D68: ='2. Smart_Meter_Costs'!I191 -> 0 | F68: ='2. Smart_Meter_Costs'!K191 -> 0 | H68: ='2. Smart_Meter_Costs'!M191 -> 0 | J68: ='2. Smart_Meter_Costs'!O191 -> 0 | L68: ='2. Smart_Meter_Costs'!Q191 -> 0 | N68: ='2. Smart_Meter_Costs'!S191 -> 0 | P68: ='2. Smart_Meter_Costs'!U191 -> 0
A69: Retirements/Removals (if applicable)
A70: UCC Before Half Year Rule | B70: =SUM(B67:B68)-B69 -> 0 | D70: =SUM(D67:D68)-D69 -> 0 | F70: =SUM(F67:F68)-F69 -> 0 | H70: =SUM(H67:H68)-H69 -> 0 | J70: =SUM(J67:J68)-J69 -> 0 | L70: =SUM(L67:L68)-L69 -> 0 | N70: =SUM(N67:N68)-N69 -> 0 | P70: =SUM(P67:P68)-P69 -> 0
A71: Half Year Rule (1/2 Additions - Disposals) | B71: =IF(((SUM(B68:B68)-B69)/2)<0, 0, (SUM(B68:B68)-B69)/2) -> 0 | D71: =IF(((SUM(D68:D68)-D69)/2)<0, 0, (SUM(D68:D68)-D69)/2) -> 0 | F71: =IF(((SUM(F68:F68)-F69)/2)<0, 0, (SUM(F68:F68)-F69)/2) -> 0 | H71: =IF(((SUM(H68:H68)-H69)/2)<0, 0, (SUM(H68:H68)-H69)/2) -> 0 | J71: =IF(((SUM(J68:J68)-J69)/2)<0, 0, (SUM(J68:J68)-J69)/2) -> 0 | L71: =IF(((SUM(L68:L68)-L69)/2)<0, 0, (SUM(L68:L68)-L69)/2) -> 0 | N71: =IF(((SUM(N68:N68)-N69)/2)<0, 0, (SUM(N68:N68)-N69)/2) -> 0 | P71: =IF(((SUM(P68:P68)-P69)/2)<0, 0, (SUM(P68:P68)-P69)/2) -> 0
A72: Reduced UCC | B72: =B71+B67 -> 0 | D72: =D71+D67 -> 0 | F72: =F71+F67 -> 0 | H72: =H71+H67 -> 0 | J72: =J71+J67 -> 0 | L72: =L71+L67 -> 0 | N72: =N71+N67 -> 0 | P72: =P71+P67 -> 0
A73: CCA Rate Class | B73: ='3. Cost_of_Service_Parameters'!G66 -> 0 | D73: ='3. Cost_of_Service_Parameters'!I66 -> 0 | F73: ='3. Cost_of_Service_Parameters'!K66 -> 0 | H73: ='3. Cost_of_Service_Parameters'!M66 -> 0 | J73: ='3. Cost_of_Service_Parameters'!O66 -> 0 | L73: ='3. Cost_of_Service_Parameters'!Q66 -> 0 | N73: ='3. Cost_of_Service_Parameters'!S66 -> 0 | P73: ='3. Cost_of_Service_Parameters'!U66 -> 0
A74: CCA Rate | B74: ='3. Cost_of_Service_Parameters'!G67 -> 0 | D74: ='3. Cost_of_Service_Parameters'!I67 -> 0 | F74: ='3. Cost_of_Service_Parameters'!K67 -> 0 | H74: ='3. Cost_of_Service_Parameters'!M67 -> 0 | J74: ='3. Cost_of_Service_Parameters'!O67 -> 0 | L74: ='3. Cost_of_Service_Parameters'!Q67 -> 0 | N74: ='3. Cost_of_Service_Parameters'!S67 -> 0 | P74: ='3. Cost_of_Service_Parameters'!U67 -> 0
A75: CCA | B75: =B74*B72 -> 0 | D75: =D74*D72 -> 0 | F75: =F74*F72 -> 0 | H75: =H74*H72 -> 0 | J75: =J74*J72 -> 0 | L75: =L74*L72 -> 0 | N75: =N74*N72 -> 0 | P75: =P74*P72 -> 0
A76: Closing UCC | B76: =IF((B70-B75)<0, 0, B70-B75) -> 0 | D76: =IF((D70-D75)<0, 0, D70-D75) -> 0 | F76: =IF((F70-F75)<0, 0, F70-F75) -> 0 | H76: =IF((H70-H75)<0, 0, H70-H75) -> 0 | J76: =IF((J70-J75)<0, 0, J70-J75) -> 0 | L76: =IF((L70-L75)<0, 0, L70-L75) -> 0 | N76: =IF((N70-N75)<0, 0, N70-N75) -> 0 | P76: =IF((P70-P75)<0, 0, P70-P75) -> 0

Sheet 7_Taxes_PILs
A18: PILs Calculation
C20: ='2. Smart_Meter_Costs'!G18& " " &'2. Smart_Meter_Costs'!G19 -> 2006 Audited Actual | E20: ='2. Smart_Meter_Costs'!I18& " " &'2. Smart_Meter_Costs'!I19 -> 2007 Audited Actual | G20: ='2. Smart_Meter_Costs'!K18& " " &'2. Smart_Meter_Costs'!K19 -> 2008 Audited Actual | I20: ='2. Smart_Meter_Costs'!M18& " " &'2. Smart_Meter_Costs'!M19 -> 2009 Audited Actual | K20: ='2. Smart_Meter_Costs'!O18& " " &'2. Smart_Meter_Costs'!O19 -> 2010 Audited Actual | M20: ='2. Smart_Meter_Costs'!Q18& " " &'2. Smart_Meter_Costs'!Q19 -> 2011 Audited Actual | O20: ='2. Smart_Meter_Costs'!S18& " " &'2. Smart_Meter_Costs'!S19 -> 2012 Forecast | Q20: ='2. Smart_Meter_Costs'!U18& " " &'2. Smart_Meter_Costs'!U19 -> 2013 Forecast
A22: INCOME TAX
B23: Net Income | C23: ='5. SM_Rev_Reqt'!G$66 -> 0 | E23: ='5. SM_Rev_Reqt'!I$66 -> 606.01041 | G23: ='5. SM_Rev_Reqt'!K$66 -> 2599.12674 | I23: ='5. SM_Rev_Reqt'!M$66 -> 40031.60481 | K23: ='5. SM_Rev_Reqt'!O$66 -> 109128.3808 | M23: ='5. SM_Rev_Reqt'!Q$66 -> 134542.2364 | O23: ='5. SM_Rev_Reqt'!S$66 -> 134691.8884 | Q23: ='5. SM_Rev_Reqt'!U$66 -> 122547.3496
B24: Amortization | C24: ='5. SM_Rev_Reqt'!G$64 -> 0 | E24: ='5. SM_Rev_Reqt'!I$64 -> 3142.8 | G24: ='5. SM_Rev_Reqt'!K$64 -> 14177.6 | I24: ='5. SM_Rev_Reqt'!M$64 -> 102720.2333 | K24: ='5. SM_Rev_Reqt'!O$64 -> 255253.3167 | M24: ='5. SM_Rev_Reqt'!Q$64 -> 355367.783 | O24: ='5. SM_Rev_Reqt'!S$64 -> 395062.0083 | Q24: ='5. SM_Rev_Reqt'!U$64 -> 407757.5507
B25: CCA - Smart Meters | C25: =-'6. UCC_Calculation'!B31 -> 0 | E25: =-'6. UCC_Calculation'!D31 -> 0 | G25: =-'6. UCC_Calculation'!F31 -> 0 | I25: =-'6. UCC_Calculation'!H31 -> -55006 | K25: =-'6. UCC_Calculation'!J31 -> -167128.56 | M25: =-'6. UCC_Calculation'!L31 -> -234176.1952 | O25: =-'6. UCC_Calculation'!N31 -> -236426.3848 | Q25: =-'6. UCC_Calculation'!P31 -> -221075.6792
B26: CCA - Computers | C26: =-'6. UCC_Calculation'!B46 -> 0 | E26: =-'6. UCC_Calculation'!D46 -> -8642.7 | G26: =-'6. UCC_Calculation'!F46 -> -34234.915 | I26: =-'6. UCC_Calculation'!H46 -> -115835.1618 | K26: =-'6. UCC_Calculation'!J46 -> -180996.3228 | M26: =-'6. UCC_Calculation'!L46 -> -162795.7735 | O26: =-'6. UCC_Calculation'!N46 -> -131208.0808 | Q26: =-'6. UCC_Calculation'!P46 -> -85790.24087
B27: CCA - Applications Software | C27: =-'6. UCC_Calculation'!B75 -> 0 | E27: =-'6. UCC_Calculation'!D75 -> 0 | G27: =-'6. UCC_Calculation'!F75 -> 0 | I27: =-'6. UCC_Calculation'!H75 -> 0 | K27: =-'6. UCC_Calculation'!J75 -> 0 | M27: =-'6. UCC_Calculation'!L75 -> 0 | O27: =-'6. UCC_Calculation'!N75 -> 0 | Q27: =-'6. UCC_Calculation'!P75 -> 0
B28: CCA - Other Equipment | C28: =-'6. UCC_Calculation'!B61 -> 0 | E28: =-'6. UCC_Calculation'!D61 -> 0 | G28: =-'6. UCC_Calculation'!F61 -> 0 | I28: =-'6. UCC_Calculation'!H61 -> -12369 | K28: =-'6. UCC_Calculation'!J61 -> -27032.3 | M28: =-'6. UCC_Calculation'!L61 -> -28663.14 | O28: =-'6. UCC_Calculation'!N61 -> -25199.712 | Q28: =-'6. UCC_Calculation'!P61 -> -20159.7696
B29: Change in taxable income | C29: =SUM(C23:C28) -> 0 | E29: -4893.88959 | G29: -17458.18826 | I29: -40458.32361 | K29: -10775.48534 | M29: 64274.91069 | O29: 136919.7191 | Q29: 203279.2106
B31: Tax Rate (from Sheet 3) | C31: ='3. Cost_of_Service_Parameters'!G40 -> 0.3612 | E31: ='3. Cost_of_Service_Parameters'!I40 -> 0.3612 | G31: ='3. Cost_of_Service_Parameters'!K40 -> 0.3612 | I31: ='3. Cost_of_Service_Parameters'!M40 -> 0.3612 | K31: ='3. Cost_of_Service_Parameters'!O40 -> 0.3612 | M31: ='3. Cost_of_Service_Parameters'!Q40 -> 0.2825 | O31: ='3. Cost_of_Service_Parameters'!S40 -> 0.265 | Q31: ='3. Cost_of_Service_Parameters'!U40 -> 0.265
B33: Income Taxes Payable | C33: =C29*C31 -> 0 | E33: -1767.67292 | G33: -6305.8976 | I33: -14613.54649 | K33: -3892.105304 | M33: 18157.66227 | O33: 36283.72557 | Q33: =Q29*Q31 -> 53868.99082
A35: ONTARIO CAPITAL TAX
B36: Smart Meters | C36: ='4. SM_Assets_and_Rate_Base'!G35 -> 0 | E36: ='4. SM_Assets_and_Rate_Base'!I35 -> 0 | G36: ='4. SM_Assets_and_Rate_Base'!K35 -> 0 | I36: ='4. SM_Assets_and_Rate_Base'!M35 -> 1329311.667 | K36: ='4. SM_Assets_and_Rate_Base'!O35 -> 2724296.8 | M36: ='4. SM_Assets_and_Rate_Base'!Q35 -> 2986863 | O36: ='4. SM_Assets_and_Rate_Base'!S35 -> 2811505.426 | Q36: ='4. SM_Assets_and_Rate_Base'!U35 -> 2618093.217
B37: Computer Hardware | C37: ='4. SM_Assets_and_Rate_Base'!G54 -> 0 | E37: ='4. SM_Assets_and_Rate_Base'!I54 -> 0 | G37: ='4. SM_Assets_and_Rate_Base'!K54 -> 0 | I37: ='4. SM_Assets_and_Rate_Base'!M54 -> 0 | K37: ='4. SM_Assets_and_Rate_Base'!O54 -> 0 | M37: ='4. SM_Assets_and_Rate_Base'!Q54 -> 0 | O37: ='4. SM_Assets_and_Rate_Base'!S54 -> 0 | Q37: ='4. SM_Assets_and_Rate_Base'!U54 -> 0
B38: Computer Software (Including Application Software) | C38: ='4. SM_Assets_and_Rate_Base'!G73 -> 0 | E38: ='4. SM_Assets_and_Rate_Base'!I73 -> 28285.2 | G38: ='4. SM_Assets_and_Rate_Base'!K73 -> 93027.6 | I38: ='4. SM_Assets_and_Rate_Base'!M73 -> 328608.2 | K38: ='4. SM_Assets_and_Rate_Base'!O73 -> 413390.8 | M38: ='4. SM_Assets_and_Rate_Base'!Q73 -> 399717.347 | O38: ='4. SM_Assets_and_Rate_Base'!S73 -> 348764.723 | Q38: ='4. SM_Assets_and_Rate_Base'!U73 -> 190825.681
B39: Tools & Equipment | C39: ='4. SM_Assets_and_Rate_Base'!G92 -> 0 | E39: ='4. SM_Assets_and_Rate_Base'!I92 -> 0 | G39: ='4. SM_Assets_and_Rate_Base'!K92 -> 0 | I39: ='4. SM_Assets_and_Rate_Base'!M92 -> 0 | K39: ='4. SM_Assets_and_Rate_Base'!O92 -> 0 | M39: ='4. SM_Assets_and_Rate_Base'!Q92 -> 0 | O39: ='4. SM_Assets_and_Rate_Base'!S92 -> 0 | Q39: ='4. SM_Assets_and_Rate_Base'!U92 -> 0
B40: Other Equipment | C40: ='4. SM_Assets_and_Rate_Base'!G111 -> 0 | E40: ='4. SM_Assets_and_Rate_Base'!I111 -> 0 | G40: ='4. SM_Assets_and_Rate_Base'!K111 -> 0 | I40: ='4. SM_Assets_and_Rate_Base'!M111 -> 117505.5 | K40: ='4. SM_Assets_and_Rate_Base'!O111 -> 150433.45 | M40: ='4. SM_Assets_and_Rate_Base'!Q111 -> 154853.75 | O40: ='4. SM_Assets_and_Rate_Base'!S111 -> 135447.45 | Q40: ='4. SM_Assets_and_Rate_Base'!U111 -> 116041.15
B41: Rate Base | C41: =SUM(C36:C40) -> 0 | E41: =SUM(E36:E40) -> 28285.2 | G41: =SUM(G36:G40) -> 93027.6 | I41: =SUM(I36:I40) -> 1775425.367 | K41: =SUM(K36:K40) -> 3288121.05 | M41: =SUM(M36:M40) -> 3541434.097 | O41: =SUM(O36:O40) -> 3295717.599 | Q41: =SUM(Q36:Q40) -> 2924960.048
B42: Less: Exemption
B43: Deemed Taxable Capital | C43: =C41-C42 -> 0 | E43: 28285.2 | G43: 93027.6 | I43: 1775425.367 | K43: 3288121.05 | M43: 3541434.097 | O43: 3295717.599 | Q43: 2924960.048
B45: Ontario Capital Tax Rate (from Sheet 3) | C45: ='3. Cost_of_Service_Parameters'!G41 -> 0.003 | E45: ='3. Cost_of_Service_Parameters'!I41 -> 0.00225 | G45: ='3. Cost_of_Service_Parameters'!K41 -> 0.00225 | I45: ='3. Cost_of_Service_Parameters'!M41 -> 0.00225 | K45: ='3. Cost_of_Service_Parameters'!O41 -> 0.00075 | M45: ='3. Cost_of_Service_Parameters'!Q41 -> 0 | O45: ='3. Cost_of_Service_Parameters'!S41 -> 0 | Q45: ='3. Cost_of_Service_Parameters'!U41 -> 0
B47: Net Amount (Taxable Capital x Rate) | C47: =C43*C45 -> 0 | E47: 63.6417 | G47: 209.3121 | I47: 3994.707075 | K47: 2466.090787 | M47: 0 | O47: 0 | Q47: =Q43*Q45 -> 0
B50: Change in Income Taxes Payable | C50: =C33 -> 0 | E50: -1767.67292 | G50: -6305.8976 | I50: -14613.54649 | K50: -3892.105304 | M50: 18157.66227 | O50: 36283.72557 | Q50: =Q33 -> 53868.99082
B51: Change in OCT | C51: =C47 -> 0 | E51: 63.6417 | G51: 209.3121 | I51: 3994.707075 | K51: 2466.090787 | M51: 0 | O51: 0 | Q51: =Q47 -> 0
B52: PILs | C52: =SUM(C50:C51) -> 0 | E52: -1704.03122 | G52: -6096.5855 | I52: -10618.83941 | K52: -1426.014516 | M52: 18157.66227 | O52: 36283.72557 | Q52: 53868.99082
A55: Gross Up PILs
B56: Tax Rate | C56: =C31 -> 0.3612 | E56: =E31 -> 0.3612 | G56: 0.3612 | I56: 0.3612 | K56: 0.3612 | M56: 0.2825 | O56: 0.265 | Q56: =Q31 -> 0.265
B57: Change in Income Taxes Payable | C57: =C50/(1-C56) -> 0 | E57: -2767.177395 | G57: -9871.474013 | I57: -22876.55993 | K57: -6092.83861 | M57: 25306.84637 | O57: 49365.61302 | Q57: 73291.14397
B58: Change in OCT | C58: =C51 -> 0 | E58: 63.6417 | G58: 209.3121 | I58: 3994.707075 | K58: 2466.090787 | M58: 0 | O58: 0 | Q58: =Q51 -> 0
B59: PILs | C59: =SUM(C57:C58) -> 0 | E59: -2703.535695 | G59: -9662.161913 | I59: -18881.85286 | K59: -3626.747822 | M59: 25306.84637 | O59: 49365.61302 | Q59: 73291.14397

Sheet 8. Funding_Adder_Revs
J20: Account 1555 - Sub-account Funding Adder Revenues
B22: Interest Rates | C22: Approved Deferral and Variance Accounts | D22: CWIP | F22: Date | G22: Year | H22: Quarter | J22: Opening Balance (Principal) | K22: Funding Adder Revenues | L22: Interest Rate | M22: Interest | N22: Closing Balance | O22: Annual amounts | P22: Board Approved Smart Meter Funding Adder (from Tariff)
B24: 2006 Q1 | F24: 2006-01-01 | G24: =YEAR(F24) -> 2006 | H24: =IF(MONTH(F24)=0,"",IF(MONTH(F24)<4,"Q1",IF(MONTH(F24)<7,"Q2",IF(MONTH(F24)<10,"Q3","Q4")))) -> Q1 | I24: =CONCATENATE(G24," ",H24) -> 2006 Q1 | J24: 0 | L24: =VLOOKUP(I24,$B$22:$D$55,2) -> 0 | M24: =ROUND(J24*L24/12,2) -> 0 | N24: =J24+K24+M24 -> 0
B25: 2006 Q2 | C25: 0.0414 | D25: 0.0468 | F25: 2006-02-01 | G25: =YEAR(F25) -> 2006 | H25: =IF(MONTH(F25)=0,"",IF(MONTH(F25)<4,"Q1",IF(MONTH(F25)<7,"Q2",IF(MONTH(F25)<10,"Q3","Q4")))) -> Q1 | I25: =CONCATENATE(G25," ",H25) -> 2006 Q1 | J25: =J24+K24 -> 0 | L25: 0 | M25: =ROUND(J25*L25/12,2) -> 0 | N25: =J25+K25+M25 -> 0
B26: 2006 Q3 | C26: 0.0459 | D26: 0.0505 | F26: 2006-03-01 | G26: 2006 | H26: Q1 | I26: 2006 Q1 | J26: =J25+K25 -> 0 | L26: 0 | M26: 0 | N26: 0
B27: 2006 Q4 | C27: 0.0459 | D27: 0.0472 | F27: 2006-04-01 | G27: 2006 | H27: Q2 | I27: 2006 Q2 | J27: 0 | L27: 0.0414 | M27: 0 | N27: 0
B28: 2007 Q1 | C28: 0.0459 | D28: 0.0472 | F28: 2006-05-01 | G28: 2006 | H28: Q2 | I28: 2006 Q2 | J28: 0 | L28: 0.0414 | M28: 0 | N28: 0
B29: 2007 Q2 | C29: 0.0459 | D29: 0.0472 | F29: 2006-06-01 | G29: 2006 | H29: Q2 | I29: 2006 Q2 | J29: 0 | L29: 0.0414 | M29: 0 | N29: 0
B30: 2007 Q3 | C30: 0.0459 | D30: 0.0518 | F30: 2006-07-01 | G30: 2006 | H30: Q3 | I30: 2006 Q3 | J30: 0 | L30: 0.0459 | M30: 0 | N30: 0
B31: 2007 Q4 | C31: 0.0514 | D31: 0.0518 | F31: 2006-08-01 | G31: 2006 | H31: Q3 | I31: 2006 Q3 | J31: 0 | L31: 0.0459 | M31: 0 | N31: 0
B32: 2008 Q1 | C32: 0.0514 | D32: 0.0518 | F32: 2006-09-01 | G32: 2006 | H32: Q3 | I32: 2006 Q3 | J32: 0 | L32: 0.0459 | M32: 0 | N32: 0
B33: 2008 Q2 | C33: 0.0408 | D33: 0.0518 | F33: 2006-10-01 | G33: 2006 | H33: Q4 | I33: 2006 Q4 | J33: 0 | L33: 0.0459 | M33: 0 | N33: 0
B34: 2008 Q3 | C34: 0.0335 | D34: 0.0543 | F34: 2006-11-01 | G34: 2006 | H34: Q4 | I34: 2006 Q4 | J34: 0 | L34: 0.0459 | M34: 0 | N34: 0
B35: 2008 Q4 | C35: 0.0335 | D35: 0.0543 | F35: 2006-12-01 | G35: 2006 | H35: Q4 | I35: 2006 Q4 | J35: 0 | L35: 0.0459 | M35: 0 | N35: 0 | O35: =SUM(K24:K35)+SUM(M24:M35) -> 0
B36: 2009 Q1 | C36: 0.0245 | D36: 0.0661 | F36: 2007-01-01 | G36: 2007 | H36: Q1 | I36: 2007 Q1 | J36: 0 | L36: 0.0459 | M36: 0 | N36: 0
B37: 2009 Q2 | C37: 0.01 | D37: 0.0661 | F37: 2007-02-01 | G37: 2007 | H37: Q1 | I37: 2007 Q1 | J37: 0 | L37: 0.0459 | M37: 0 | N37: 0
B38: 2009 Q3 | C38: 0.0055 | D38: 0.0567 | F38: 2007-03-01 | G38: 2007 | H38: Q1 | I38: 2007 Q1 | J38: 0 | L38: 0.0459 | M38: 0 | N38: 0
B39: 2009 Q4 | C39: 0.0055 | D39: 0.0466 | F39: 2007-04-01 | G39: 2007 | H39: Q2 | I39: 2007 Q2 | J39: 0 | L39: 0.0459 | M39: 0 | N39: 0
B40: 2010 Q1 | C40: 0.0055 | D40: 0.0434 | F40: 2007-05-01 | G40: 2007 | H40: Q2 | I40: 2007 Q2 | J40: 0 | L40: 0.0459 | M40: 0 | N40: 0
B41: 2010 Q2 | C41: 0.0055 | D41: 0.0434 | F41: 2007-06-01 | G41: 2007 | H41: Q2 | I41: 2007 Q2 | J41: 0 | L41: 0.0459 | M41: 0 | N41: 0
B42: 2010 Q3 | C42: 0.0089 | D42: 0.0466 | F42: 2007-07-01 | G42: 2007 | H42: Q3 | I42: 2007 Q3 | J42: 0 | L42: 0.0459 | M42: 0 | N42: 0
B43: 2010 Q4 | C43: 0.012 | D43: 0.0401 | F43: 2007-08-01 | G43: 2007 | H43: Q3 | I43: 2007 Q3 | J43: 0 | L43: 0.0459 | M43: 0 | N43: 0
B44: 2011 Q1 | C44: 0.0147 | D44: 0.0429 | F44: 2007-09-01 | G44: 2007 | H44: Q3 | I44: 2007 Q3 | J44: 0 | L44: 0.0459 | M44: 0 | N44: 0
B45: 2011 Q2 | C45: 0.0147 | D45: 0.0429 | F45: 2007-10-01 | G45: 2007 | H45: Q4 | I45: 2007 Q4 | J45: 0 | L45: 0.0514 | M45: 0 | N45: 0
B46: 2011 Q3 | C46: 0.0147 | D46: 0.0429 | F46: 2007-11-01 | G46: 2007 | H46: Q4 | I46: 2007 Q4 | J46: 0 | L46: 0.0514 | M46: 0 | N46: 0
B47: 2011 Q4 | C47: =C46 -> 0.0147 | D47: 0.0392 | F47: 2007-12-01 | G47: 2007 | H47: Q4 | I47: 2007 Q4 | J47: 0 | L47: 0.0514 | M47: 0 | N47: 0 | O47: =SUM(K36:K47)+SUM(M36:M47) -> 0
B48: 2012 Q1 | C48: 0.0147 | D48: 0.0392 | F48: 2008-01-01 | G48: 2008 | H48: Q1 | I48: 2008 Q1 | J48: 0 | L48: 0.0514 | M48: 0 | N48: 0
B49: 2012 Q2 | C49: 0.0147 | D49: 0.0351 | F49: 2008-02-01 | G49: 2008 | H49: Q1 | I49: 2008 Q1 | J49: 0 | L49: 0.0514 | M49: 0 | N49: 0
B50: 2012 Q3 | C50: 0.0147 | D50: 0.0351 | F50: 2008-03-01 | G50: 2008 | H50: Q1 | I50: 2008 Q1 | J50: 0 | L50: 0.0514 | M50: 0 | N50: 0
B51: 2012 Q4 | C51: 0.0147 | D51: 0.0351 | F51: 2008-04-01 | G51: 2008 | H51: Q2 | I51: 2008 Q2 | J51: 0 | L51: 0.0408 | M51: 0 | N51: 0
B52: 2013 Q1 | F52: 2008-05-01 | G52: 2008 | H52: Q2 | I52: 2008 Q2 | J52: 0 | L52: 0.0408 | M52: 0 | N52: 0
B53: 2013 Q2 | F53: 2008-06-01 | G53: 2008 | H53: Q2 | I53: 2008 Q2 | J53: 0 | L53: 0.0408 | M53: 0 | N53: 0
B54: 2013 Q3 | F54: 2008-07-01 | G54: 2008 | H54: Q3 | I54: 2008 Q3 | J54: 0 | L54: 0.0335 | M54: 0 | N54: 0
B55: 2013 Q4 | F55: 2008-08-01 | G55: 2008 | H55: Q3 | I55: 2008 Q3 | J55: 0 | L55: 0.0335 | M55: 0 | N55: 0
F56: 2008-09-01 | G56: 2008 | H56: Q3 | I56: 2008 Q3 | J56: 0 | L56: =VLOOKUP(I56,$B$22:$D$55,2) -> 0.0335 | M56: 0 | N56: 0
F57: 2008-10-01 | G57: 2008 | H57: Q4 | I57: 2008 Q4 | J57: 0 | L57: 0.0335 | M57: 0 | N57: 0
F58: 2008-11-01 | G58: 2008 | H58: Q4 | I58: 2008 Q4 | J58: 0 | L58: 0.0335 | M58: 0 | N58: 0
F59: 2008-12-01 | G59: 2008 | H59: Q4 | I59: 2008 Q4 | J59: 0 | L59: 0.0335 | M59: 0 | N59: 0 | O59: =SUM(K48:K59)+SUM(M48:M59) -> 0
F60: 2009-01-01 | G60: 2009 | H60: Q1 | I60: 2009 Q1 | J60: 0 | L60: 0.0245 | M60: 0 | N60: 0
F61: 2009-02-01 | G61: 2009 | H61: Q1 | I61: 2009 Q1 | J61: 0 | L61: 0.0245 | M61: 0 | N61: 0
F62: 2009-03-01 | G62: 2009 | H62: Q1 | I62: 2009 Q1 | J62: 0 | L62: 0.0245 | M62: 0 | N62: 0
F63: 2009-04-01 | G63: 2009 | H63: Q2 | I63: 2009 Q2 | J63: 0 | L63: 0.01 | M63: 0 | N63: 0
F64: 2009-05-01 | G64: 2009 | H64: Q2 | I64: 2009 Q2 | J64: 0 | L64: 0.01 | M64: 0 | N64: 0
F65: 2009-06-01 | G65: 2009 | H65: Q2 | I65: 2009 Q2 | J65: 0 | L65: 0.01 | M65: 0 | N65: 0
F66: 2009-07-01 | G66: 2009 | H66: Q3 | I66: 2009 Q3 | J66: 0 | L66: 0.0055 | M66: 0 | N66: 0
F67: 2009-08-01 | G67: 2009 | H67: Q3 | I67: 2009 Q3 | J67: 0 | L67: 0.0055 | M67: 0 | N67: 0
F68: 2009-09-01 | G68: 2009 | H68: Q3 | I68: 2009 Q3 | J68: 0 | L68: 0.0055 | M68: 0 | N68: 0
F69: 2009-10-01 | G69: 2009 | H69: Q4 | I69: 2009 Q4 | J69: 0 | L69: 0.0055 | M69: 0 | N69: 0
F70: 2009-11-01 | G70: 2009 | H70: Q4 | I70: 2009 Q4 | J70: 0 | L70: 0.0055 | M70: 0 | N70: 0
F71: 2009-12-01 | G71: 2009 | H71: Q4 | I71: 2009 Q4 | J71: 0 | L71: 0.0055 | M71: 0 | N71: 0 | O71: =SUM(K60:K71)+SUM(M60:M71) -> 0
F72: 2010-01-01 | G72: 2010 | H72: Q1 | I72: 2010 Q1 | J72: 0 | L72: 0.0055 | M72: 0 | N72: 0
F73: 2010-02-01 | G73: 2010 | H73: Q1 | I73: 2010 Q1 | J73: 0 | L73: 0.0055 | M73: 0 | N73: 0
F74: 2010-03-01 | G74: 2010 | H74: Q1 | I74: 2010 Q1 | J74: 0 | L74: 0.0055 | M74: 0 | N74: 0
F75: 2010-04-01 | G75: 2010 | H75: Q2 | I75: 2010 Q2 | J75: 0 | L75: 0.0055 | M75: 0 | N75: 0
F76: 2010-05-01 | G76: 2010 | H76: Q2 | I76: 2010 Q2 | J76: 0 | L76: 0.0055 | M76: 0 | N76: 0
F77: 2010-06-01 | G77: 2010 | H77: Q2 | I77: 2010 Q2 | J77: 0 | L77: 0.0055 | M77: 0 | N77: 0
F78: 2010-07-01 | G78: 2010 | H78: Q3 | I78: 2010 Q3 | J78: 0 | L78: 0.0089 | M78: 0 | N78: 0
F79: 2010-08-01 | G79: 2010 | H79: Q3 | I79: 2010 Q3 | J79: 0 | L79: 0.0089 | M79: 0 | N79: 0
F80: 2010-09-01 | G80: 2010 | H80: Q3 | I80: 2010 Q3 | J80: 0 | L80: 0.0089 | M80: 0 | N80: 0
F81: 2010-10-01 | G81: 2010 | H81: Q4 | I81: 2010 Q4 | J81: 0 | L81: 0.012 | M81: 0 | N81: 0
F82: 2010-11-01 | G82: 2010 | H82: Q4 | I82: 2010 Q4 | J82: 0 | L82: 0.012 | M82: 0 | N82: 0
F83: 2010-12-01 | G83: 2010 | H83: Q4 | I83: 2010 Q4 | J83: 0 | L83: 0.012 | M83: 0 | N83: 0 | O83: =SUM(K72:K83)+SUM(M72:M83) -> 0
F84: 2011-01-01 | G84: 2011 | H84: Q1 | I84: 2011 Q1 | J84: 0 | K84: 1317.6 | L84: 0.0147 | M84: 0 | N84: 1317.6
F85: 2011-02-01 | G85: 2011 | H85: Q1 | I85: 2011 Q1 | J85: 1317.6 | K85: 9904.7 | L85: 0.0147 | M85: 1.61 | N85: 11223.91
F86: 2011-03-01 | G86: 2011 | H86: Q1 | I86: 2011 Q1 | J86: 11222.3 | K86: 10780.43 | L86: 0.0147 | M86: 13.75 | N86: 22016.48
F87: 2011-04-01 | G87: 2011 | H87: Q2 | I87: 2011 Q2 | J87: 22002.73 | K87: 5778.64 | L87: 0.0147 | M87: 26.95 | N87: 27808.32
F88: 2011-05-01 | G88: 2011 | H88: Q2 | I88: 2011 Q2 | J88: 27781.37 | K88: 10163.46 | L88: =VLOOKUP(I88,$B$22:$D$55,2) -> 0.0147 | M88: 34.03 | N88: 37978.86
F89: 2011-06-01 | G89: =YEAR(F89) -> 2011 | H89: =IF(MONTH(F89)=0,"",IF(MONTH(F89)<4,"Q1",IF(MONTH(F89)<7,"Q2",IF(MONTH(F89)<10,"Q3","Q4")))) -> Q2 | I89: =CONCATENATE(G89," ",H89) -> 2011 Q2 | J89: 37944.83 | K89: 9802.03 | L89: 0.0147 | M89: =ROUND(J89*L89/12,2) -> 46.48 | N89: =J89+K89+M89 -> 47793.34
F90: 2011-07-01 | G90: 2011 | H90: Q3 | I90: 2011 Q3 | J90: =J89+K89 -> 47746.86 | K90: 2871.43 | L90: 0.0147 | M90: 58.49 | N90: 50676.78
F91: 2011-08-01 | G91: 2011 | H91: Q3 | I91: 2011 Q3 | J91: 50618.29 | K91: 12788.15 | L91: 0.0147 | M91: 62.01 | N91: 63468.45
F92: 2011-09-01 | G92: 2011 | H92: Q3 | I92: 2011 Q3 | J92: 63406.44 | K92: 10508.5 | L92: 0.0147 | M92: 77.67 | N92: 73992.61
F93: 2011-10-01 | G93: 2011 | H93: Q4 | I93: 2011 Q4 | J93: 73914.94 | K93: 40693.88 | L93: 0.0147 | M93: 90.55 | N93: 114699.37
F94: 2011-11-01 | G94: 2011 | H94: Q4 | I94: 2011 Q4 | J94: 114608.82 | K94: 7938.41 | L94: 0.0147 | M94: 140.4 | N94: 122687.63
F95: 2011-12-01 | G95: 2011 | H95: Q4 | I95: 2011 Q4 | J95: 122547.23 | K95: 6325.39 | L95: 0.0147 | M95: 150.12 | N95: 129022.74 | O95: =SUM(K84:K95)+SUM(M84:M95) -> 129574.68
F96: 2012-01-01 | G96: 2012 | H96: Q1 | I96: 2012 Q1 | J96: 128872.62 | K96: 10651.61 | L96: 0.0147 | M96: 157.87 | N96: 139682.1
F97: 2012-02-01 | G97: 2012 | H97: Q1 | I97: 2012 Q1 | J97: 139524.23 | K97: 6312.65 | L97: 0.0147 | M97: 170.92 | N97: 146007.8
F98: 2012-03-01 | G98: 2012 | H98: Q1 | I98: 2012 Q1 | J98: 145836.88 | K98: 10424.03 | L98: 0.0147 | M98: 178.65 | N98: 156439.56
F99: 2012-04-01 | G99: 2012 | H99: Q2 | I99: 2012 Q2 | J99: 156260.91 | K99: 6293.85 | L99: 0.0147 | M99: 191.42 | N99: 162746.18
F100: 2012-05-01 | G100: 2012 | H100: Q2 | I100: 2012 Q2 | J100: 162554.76 | K100: 10718.85 | L100: 0.0147 | M100: 199.13 | N100: 173472.74
F101: 2012-06-01 | G101: 2012 | H101: Q2 | I101: 2012 Q2 | J101: 173273.61 | K101: 6496.62 | L101: 0.0147 | M101: 212.26 | N101: 179982.49
F102: 2012-07-01 | G102: 2012 | H102: Q3 | I102: 2012 Q3 | J102: 179770.23 | K102: 6037.14 | L102: 0.0147 | M102: 220.22 | N102: 186027.59
F103: 2012-08-01 | G103: 2012 | H103: Q3 | I103: 2012 Q3 | J103: 185807.37 | K103: 9659.1 | L103: 0.0147 | M103: 227.61 | N103: 195694.08
F104: 2012-09-01 | G104: 2012 | H104: Q3 | I104: 2012 Q3 | J104: 195466.47 | K104: 6465.15 | L104: 0.0147 | M104: 239.45 | N104: 202171.07
F105: 2012-10-01 | G105: 2012 | H105: Q4 | I105: 2012 Q4 | J105: 201931.62 | K105: 56165.6 | L105: 0.0147 | M105: 247.37 | N105: 258344.59
F106: 2012-11-01 | G106: 2012 | H106: Q4 | I106: 2012 Q4 | J106: 258097.22 | K106: 25857.18 | L106: 0.0147 | M106: 316.17 | N106: 284270.57
F107: 2012-12-01 | G107: 2012 | H107: Q4 | I107: 2012 Q4 | J107: 283954.4 | K107: 13861 | L107: 0.0147 | M107: 347.84 | N107: 298163.24 | O107: =SUM(K96:K107)+SUM(M96:M107) -> 171651.69
F108: 2013-01-01 | G108: 2013 | H108: Q1 | I108: 2013 Q1 | J108: 297815.4 | M108: =ROUND(J108*L108/12,2) -> 0 | N108: =J108+K108+M108 -> 297815.4
F109: 2013-02-01 | G109: 2013 | H109: Q1 | I109: 2013 Q1 | J109: 297815.4 | M109: 0 | N109: 297815.4
F110: 2013-03-01 | G110: 2013 | H110: Q1 | I110: 2013 Q1 | J110: 297815.4 | M110: 0 | N110: 297815.4
F111: 2013-04-01 | G111: 2013 | H111: Q2 | I111: 2013 Q2 | J111: 297815.4 | M111: 0 | N111: 297815.4
F112: 2013-05-01 | G112: 2013 | H112: Q2 | I112: 2013 Q2 | J112: 297815.4 | M112: 0 | N112: 297815.4
F113: 2013-06-01 | G113: 2013 | H113: Q2 | I113: 2013 Q2 | J113: 297815.4 | M113: 0 | N113: 297815.4
F114: 2013-07-01 | G114: 2013 | H114: Q3 | I114: 2013 Q3 | J114: 297815.4 | M114: 0 | N114: 297815.4
F115: 2013-08-01 | G115: 2013 | H115: Q3 | I115: 2013 Q3 | J115: 297815.4 | M115: 0 | N115: 297815.4
F116: 2013-09-01 | G116: 2013 | H116: Q3 | I116: 2013 Q3 | J116: 297815.4 | M116: 0 | N116: 297815.4
F117: 2013-10-01 | G117: 2013 | H117: Q4 | I117: 2013 Q4 | J117: 297815.4 | M117: 0 | N117: 297815.4
F118: 2013-11-01 | G118: 2013 | H118: Q4 | I118: 2013 Q4 | J118: 297815.4 | M118: 0 | N118: 297815.4
F119: 2013-12-01 | G119: 2013 | H119: Q4 | I119: 2013 Q4 | J119: 297815.4 | M119: 0 | N119: 297815.4 | O119: =SUM(K108:K119)+SUM(M108:M119) -> 0
F121: Total Funding Adder Revenues Collected | K121: =SUM(K24:K107) -> 297815.4 | M121: =SUM(M24:M107) -> 3410.97 | N121: =K121+M121 -> 301226.37 | O121: =SUM(O24:O107) -> 301226.37

Sheet 8A. Opex_Interest_monthly
J21: Account 1556 - Sub-accounts Operating Expenses, Amortization Expenses, Carrying Charges
B23: Prescribed Interest Rates | C23: Approved Deferral and Variance Accounts | D23: CWIP | F23: Date | G23: Year | H23: Quarter | J23: Opening Balance (Principal) | K23: OM&A Expenses | L23: Amortization / Depreciation Expense | M23: Closing Balance (Principal) | N23: (Annual) Interest Rate | O23: Interest (on opening balance) | P23: Cumulative Interest
B25: ='8. Funding_Adder_Revs'!B24 -> 2006 Q1 | C25: ='8. Funding_Adder_Revs'!C24 -> 0 | D25: ='8. Funding_Adder_Revs'!D24 -> 0 | F25: ='8. Funding_Adder_Revs'!F24 -> 2006-01-01 | G25: ='8. Funding_Adder_Revs'!G24 -> 2006 | H25: ='8. Funding_Adder_Revs'!H24 -> Q1 | J25: 0 | M25: =J25+K25+L25 -> 0 | N25: ='8. Funding_Adder_Revs'!L24 -> 0 | O25: =J25*N25/12 -> 0 | P25: =O25 -> 0
B26: ='8. Funding_Adder_Revs'!B25 -> 2006 Q2 | C26: ='8. Funding_Adder_Revs'!C25 -> 0.0414 | D26: ='8. Funding_Adder_Revs'!D25 -> 0.0468 | F26: ='8. Funding_Adder_Revs'!F25 -> 2006-02-01 | G26: ='8. Funding_Adder_Revs'!G25 -> 2006 | H26: ='8. Funding_Adder_Revs'!H25 -> Q1 | J26: =M25 -> 0 | M26: =J26+K26+L26 -> 0 | N26: ='8. Funding_Adder_Revs'!L25 -> 0 | O26: =J26*N26/12 -> 0 | P26: =O26+P25 -> 0
B27: ='8. Funding_Adder_Revs'!B26 -> 2006 Q3 | C27: ='8. Funding_Adder_Revs'!C26 -> 0.0459 | D27: ='8. Funding_Adder_Revs'!D26 -> 0.0505 | F27: ='8. Funding_Adder_Revs'!F26 -> 2006-03-01 | G27: ='8. Funding_Adder_Revs'!G26 -> 2006 | H27: ='8. Funding_Adder_Revs'!H26 -> Q1 | J27: =M26 -> 0 | M27: 0 | N27: ='8. Funding_Adder_Revs'!L26 -> 0 | O27: 0 | P27: =O27+P26 -> 0
B28: ='8. Funding_Adder_Revs'!B27 -> 2006 Q4 | C28: ='8. Funding_Adder_Revs'!C27 -> 0.0459 | D28: ='8. Funding_Adder_Revs'!D27 -> 0.0472 | F28: ='8. Funding_Adder_Revs'!F27 -> 2006-04-01 | G28: ='8. Funding_Adder_Revs'!G27 -> 2006 | H28: ='8. Funding_Adder_Revs'!H27 -> Q2 | J28: 0 | M28: 0 | N28: ='8. Funding_Adder_Revs'!L27 -> 0.0414 | O28: 0 | P28: 0
B29: ='8. Funding_Adder_Revs'!B28 -> 2007 Q1 | C29: ='8. Funding_Adder_Revs'!C28 -> 0.0459 | D29: ='8. Funding_Adder_Revs'!D28 -> 0.0472 | F29: ='8. Funding_Adder_Revs'!F28 -> 2006-05-01 | G29: ='8. Funding_Adder_Revs'!G28 -> 2006 | H29: ='8. Funding_Adder_Revs'!H28 -> Q2 | J29: 0 | M29: 0 | N29: ='8. Funding_Adder_Revs'!L28 -> 0.0414 | O29: 0 | P29: 0
B30: ='8. Funding_Adder_Revs'!B29 -> 2007 Q2 | C30: ='8. Funding_Adder_Revs'!C29 -> 0.0459 | D30: ='8. Funding_Adder_Revs'!D29 -> 0.0472 | F30: ='8. Funding_Adder_Revs'!F29 -> 2006-06-01 | G30: ='8. Funding_Adder_Revs'!G29 -> 2006 | H30: ='8. Funding_Adder_Revs'!H29 -> Q2 | J30: 0 | M30: 0 | N30: ='8. Funding_Adder_Revs'!L29 -> 0.0414 | O30: 0 | P30: 0
B31: ='8. Funding_Adder_Revs'!B30 -> 2007 Q3 | C31: ='8. Funding_Adder_Revs'!C30 -> 0.0459 | D31: ='8. Funding_Adder_Revs'!D30 -> 0.0518 | F31: ='8. Funding_Adder_Revs'!F30 -> 2006-07-01 | G31: ='8. Funding_Adder_Revs'!G30 -> 2006 | H31: ='8. Funding_Adder_Revs'!H30 -> Q3 | J31: 0 | M31: 0 | N31: ='8. Funding_Adder_Revs'!L30 -> 0.0459 | O31: 0 | P31: 0
B32: ='8. Funding_Adder_Revs'!B31 -> 2007 Q4 | C32: ='8. Funding_Adder_Revs'!C31 -> 0.0514 | D32: ='8. Funding_Adder_Revs'!D31 -> 0.0518 | F32: ='8. Funding_Adder_Revs'!F31 -> 2006-08-01 | G32: ='8. Funding_Adder_Revs'!G31 -> 2006 | H32: ='8. Funding_Adder_Revs'!H31 -> Q3 | J32: 0 | M32: 0 | N32: ='8. Funding_Adder_Revs'!L31 -> 0.0459 | O32: 0 | P32: 0
B33: ='8. Funding_Adder_Revs'!B32 -> 2008 Q1 | C33: ='8. Funding_Adder_Revs'!C32 -> 0.0514 | D33: ='8. Funding_Adder_Revs'!D32 -> 0.0518 | F33: ='8. Funding_Adder_Revs'!F32 -> 2006-09-01 | G33: ='8. Funding_Adder_Revs'!G32 -> 2006 | H33: ='8. Funding_Adder_Revs'!H32 -> Q3 | J33: 0 | M33: 0 | N33: ='8. Funding_Adder_Revs'!L32 -> 0.0459 | O33: 0 | P33: 0
B34: ='8. Funding_Adder_Revs'!B33 -> 2008 Q2 | C34: ='8. Funding_Adder_Revs'!C33 -> 0.0408 | D34: ='8. Funding_Adder_Revs'!D33 -> 0.0518 | F34: ='8. Funding_Adder_Revs'!F33 -> 2006-10-01 | G34: ='8. Funding_Adder_Revs'!G33 -> 2006 | H34: ='8. Funding_Adder_Revs'!H33 -> Q4 | J34: 0 | M34: 0 | N34: ='8. Funding_Adder_Revs'!L33 -> 0.0459 | O34: 0 | P34: 0
B35: ='8. Funding_Adder_Revs'!B34 -> 2008 Q3 | C35: ='8. Funding_Adder_Revs'!C34 -> 0.0335 | D35: ='8. Funding_Adder_Revs'!D34 -> 0.0543 | F35: ='8. Funding_Adder_Revs'!F34 -> 2006-11-01 | G35: ='8. Funding_Adder_Revs'!G34 -> 2006 | H35: ='8. Funding_Adder_Revs'!H34 -> Q4 | J35: 0 | M35: 0 | N35: ='8. Funding_Adder_Revs'!L34 -> 0.0459 | O35: 0 | P35: 0
B36: ='8. Funding_Adder_Revs'!B35 -> 2008 Q4 | C36: ='8. Funding_Adder_Revs'!C35 -> 0.0335 | D36: ='8. Funding_Adder_Revs'!D35 -> 0.0543 | F36: ='8. Funding_Adder_Revs'!F35 -> 2006-12-01 | G36: ='8. Funding_Adder_Revs'!G35 -> 2006 | H36: ='8. Funding_Adder_Revs'!H35 -> Q4 | J36: 0 | M36: 0 | N36: ='8. Funding_Adder_Revs'!L35 -> 0.0459 | O36: 0 | P36: 0
B37: ='8. Funding_Adder_Revs'!B36 -> 2009 Q1 | C37: ='8. Funding_Adder_Revs'!C36 -> 0.0245 | D37: ='8. Funding_Adder_Revs'!D36 -> 0.0661 | F37: ='8. Funding_Adder_Revs'!F36 -> 2007-01-01 | G37: ='8. Funding_Adder_Revs'!G36 -> 2007 | H37: ='8. Funding_Adder_Revs'!H36 -> Q1 | J37: 0 | M37: 0 | N37: ='8. Funding_Adder_Revs'!L36 -> 0.0459 | O37: 0 | P37: 0
B38: ='8. Funding_Adder_Revs'!B37 -> 2009 Q2 | C38: ='8. Funding_Adder_Revs'!C37 -> 0.01 | D38: ='8. Funding_Adder_Revs'!D37 -> 0.0661 | F38: ='8. Funding_Adder_Revs'!F37 -> 2007-02-01 | G38: ='8. Funding_Adder_Revs'!G37 -> 2007 | H38: ='8. Funding_Adder_Revs'!H37 -> Q1 | J38: 0 | M38: 0 | N38: ='8. Funding_Adder_Revs'!L37 -> 0.0459 | O38: 0 | P38: 0
B39: ='8. Funding_Adder_Revs'!B38 -> 2009 Q3 | C39: ='8. Funding_Adder_Revs'!C38 -> 0.0055 | D39: ='8. Funding_Adder_Revs'!D38 -> 0.0567 | F39: ='8. Funding_Adder_Revs'!F38 -> 2007-03-01 | G39: ='8. Funding_Adder_Revs'!G38 -> 2007 | H39: ='8. Funding_Adder_Revs'!H38 -> Q1 | J39: 0 | M39: 0 | N39: ='8. Funding_Adder_Revs'!L38 -> 0.0459 | O39: 0 | P39: 0
B40: ='8. Funding_Adder_Revs'!B39 -> 2009 Q4 | C40: ='8. Funding_Adder_Revs'!C39 -> 0.0055 | D40: ='8. Funding_Adder_Revs'!D39 -> 0.0466 | F40: ='8. Funding_Adder_Revs'!F39 -> 2007-04-01 | G40: ='8. Funding_Adder_Revs'!G39 -> 2007 | H40: ='8. Funding_Adder_Revs'!H39 -> Q2 | J40: 0 | M40: 0 | N40: ='8. Funding_Adder_Revs'!L39 -> 0.0459 | O40: 0 | P40: 0
B41: ='8. Funding_Adder_Revs'!B40 -> 2010 Q1 | C41: ='8. Funding_Adder_Revs'!C40 -> 0.0055 | D41: ='8. Funding_Adder_Revs'!D40 -> 0.0434 | F41: ='8. Funding_Adder_Revs'!F40 -> 2007-05-01 | G41: ='8. Funding_Adder_Revs'!G40 -> 2007 | H41: ='8. Funding_Adder_Revs'!H40 -> Q2 | J41: 0 | M41: 0 | N41: ='8. Funding_Adder_Revs'!L40 -> 0.0459 | O41: 0 | P41: 0
B42: ='8. Funding_Adder_Revs'!B41 -> 2010 Q2 | C42: ='8. Funding_Adder_Revs'!C41 -> 0.0055 | D42: ='8. Funding_Adder_Revs'!D41 -> 0.0434 | F42: ='8. Funding_Adder_Revs'!F41 -> 2007-06-01 | G42: ='8. Funding_Adder_Revs'!G41 -> 2007 | H42: ='8. Funding_Adder_Revs'!H41 -> Q2 | J42: 0 | M42: 0 | N42: ='8. Funding_Adder_Revs'!L41 -> 0.0459 | O42: 0 | P42: 0
B43: ='8. Funding_Adder_Revs'!B42 -> 2010 Q3 | C43: ='8. Funding_Adder_Revs'!C42 -> 0.0089 | D43: ='8. Funding_Adder_Revs'!D42 -> 0.0466 | F43: ='8. Funding_Adder_Revs'!F42 -> 2007-07-01 | G43: ='8. Funding_Adder_Revs'!G42 -> 2007 | H43: ='8. Funding_Adder_Revs'!H42 -> Q3 | J43: 0 | M43: 0 | N43: ='8. Funding_Adder_Revs'!L42 -> 0.0459 | O43: 0 | P43: 0
B44: ='8. Funding_Adder_Revs'!B43 -> 2010 Q4 | C44: ='8. Funding_Adder_Revs'!C43 -> 0.012 | D44: ='8. Funding_Adder_Revs'!D43 -> 0.0401 | F44: ='8. Funding_Adder_Revs'!F43 -> 2007-08-01 | G44: ='8. Funding_Adder_Revs'!G43 -> 2007 | H44: ='8. Funding_Adder_Revs'!H43 -> Q3 | J44: 0 | L44: 628.56 | M44: 628.56 | N44: ='8. Funding_Adder_Revs'!L43 -> 0.0459 | O44: 0 | P44: 0
B45: ='8. Funding_Adder_Revs'!B44 -> 2011 Q1 | C45: ='8. Funding_Adder_Revs'!C44 -> 0.0147 | D45: ='8. Funding_Adder_Revs'!D44 -> 0.0429 | F45: ='8. Funding_Adder_Revs'!F44 -> 2007-09-01 | G45: ='8. Funding_Adder_Revs'!G44 -> 2007 | H45: ='8. Funding_Adder_Revs'!H44 -> Q3 | J45: 628.56 | L45: 628.56 | M45: 1257.12 | N45: ='8. Funding_Adder_Revs'!L44 -> 0.0459 | O45: 2.404242 | P45: 2.404242
B46: ='8. Funding_Adder_Revs'!B45 -> 2011 Q2 | C46: ='8. Funding_Adder_Revs'!C45 -> 0.0147 | D46: ='8. Funding_Adder_Revs'!D45 -> 0.0429 | F46: ='8. Funding_Adder_Revs'!F45 -> 2007-10-01 | G46: ='8. Funding_Adder_Revs'!G45 -> 2007 | H46: ='8. Funding_Adder_Revs'!H45 -> Q4 | J46: 1257.12 | L46: 628.56 | M46: 1885.68 | N46: ='8. Funding_Adder_Revs'!L45 -> 0.0514 | O46: 5.384664 | P46: 7.788906
B47: ='8. Funding_Adder_Revs'!B46 -> 2011 Q3 | C47: ='8. Funding_Adder_Revs'!C46 -> 0.0147 | D47: ='8. Funding_Adder_Revs'!D46 -> 0.0429 | F47: ='8. Funding_Adder_Revs'!F46 -> 2007-11-01 | G47: ='8. Funding_Adder_Revs'!G46 -> 2007 | H47: ='8. Funding_Adder_Revs'!H46 -> Q4 | J47: 1885.68 | L47: 628.56 | M47: 2514.24 | N47: ='8. Funding_Adder_Revs'!L46 -> 0.0514 | O47: 8.076996 | P47: 15.865902
B48: ='8. Funding_Adder_Revs'!B47 -> 2011 Q4 | C48: ='8. Funding_Adder_Revs'!C47 -> 0.0147 | D48: ='8. Funding_Adder_Revs'!D47 -> 0.0392 | F48: ='8. Funding_Adder_Revs'!F47 -> 2007-12-01 | G48: ='8. Funding_Adder_Revs'!G47 -> 2007 | H48: ='8. Funding_Adder_Revs'!H47 -> Q4 | J48: 2514.24 | L48: 628.56 | M48: 3142.8 | N48: ='8. Funding_Adder_Revs'!L47 -> 0.0514 | O48: 10.769328 | P48: 26.63523
B49: ='8. Funding_Adder_Revs'!B48 -> 2012 Q1 | C49: ='8. Funding_Adder_Revs'!C48 -> 0.0147 | D49: ='8. Funding_Adder_Revs'!D48 -> 0.0392 | F49: ='8. Funding_Adder_Revs'!F48 -> 2008-01-01 | G49: ='8. Funding_Adder_Revs'!G48 -> 2008 | H49: ='8. Funding_Adder_Revs'!H48 -> Q1 | J49: 3142.8 | L49: 1181.47 | M49: 4324.27 | N49: ='8. Funding_Adder_Revs'!L48 -> 0.0514 | O49: 13.46166 | P49: 40.09689
B50: ='8. Funding_Adder_Revs'!B49 -> 2012 Q2 | C50: ='8. Funding_Adder_Revs'!C49 -> 0.0147 | D50: ='8. Funding_Adder_Revs'!D49 -> 0.0351 | F50: ='8. Funding_Adder_Revs'!F49 -> 2008-02-01 | G50: ='8. Funding_Adder_Revs'!G49 -> 2008 | H50: ='8. Funding_Adder_Revs'!H49 -> Q1 | J50: 4324.27 | L50: 1181.47 | M50: 5505.74 | N50: ='8. Funding_Adder_Revs'!L49 -> 0.0514 | O50: 18.52228983 | P50: 58.61917983
B51: ='8. Funding_Adder_Revs'!B50 -> 2012 Q3 | C51: ='8. Funding_Adder_Revs'!C50 -> 0.0147 | D51: ='8. Funding_Adder_Revs'!D50 -> 0.0351 | F51: ='8. Funding_Adder_Revs'!F50 -> 2008-03-01 | G51: ='8. Funding_Adder_Revs'!G50 -> 2008 | H51: ='8. Funding_Adder_Revs'!H50 -> Q1 | J51: 5505.74 | L51: 1181.47 | M51: 6687.21 | N51: ='8. Funding_Adder_Revs'!L50 -> 0.0514 | O51: 23.58291967 | P51: 82.2020995
B52: ='8. Funding_Adder_Revs'!B51 -> 2012 Q4 | C52: ='8. Funding_Adder_Revs'!C51 -> 0.0147 | D52: ='8. Funding_Adder_Revs'!D51 -> 0.0351 | F52: ='8. Funding_Adder_Revs'!F51 -> 2008-04-01 | G52: ='8. Funding_Adder_Revs'!G51 -> 2008 | H52: ='8. Funding_Adder_Revs'!H51 -> Q2 | J52: 6687.21 | L52: 1181.47 | M52: 7868.68 | N52: ='8. Funding_Adder_Revs'!L51 -> 0.0408 | O52: 22.736514 | P52: 104.9386135
B53: ='8. Funding_Adder_Revs'!B52 -> 2013 Q1 | C53: ='8. Funding_Adder_Revs'!C52 -> 0 | D53: ='8. Funding_Adder_Revs'!D52 -> 0 | F53: ='8. Funding_Adder_Revs'!F52 -> 2008-05-01 | G53: ='8. Funding_Adder_Revs'!G52 -> 2008 | H53: ='8. Funding_Adder_Revs'!H52 -> Q2 | J53: 7868.68 | L53: 1181.47 | M53: 9050.15 | N53: ='8. Funding_Adder_Revs'!L52 -> 0.0408 | O53: 26.753512 | P53: 131.6921255
B54: ='8. Funding_Adder_Revs'!B53 -> 2013 Q2 | C54: ='8. Funding_Adder_Revs'!C53 -> 0 | D54: ='8. Funding_Adder_Revs'!D53 -> 0 | F54: ='8. Funding_Adder_Revs'!F53 -> 2008-06-01 | G54: ='8. Funding_Adder_Revs'!G53 -> 2008 | H54: ='8. Funding_Adder_Revs'!H53 -> Q2 | J54: 9050.15 | L54: 1181.47 | M54: 10231.62 | N54: ='8. Funding_Adder_Revs'!L53 -> 0.0408 | O54: 30.77051 | P54: 162.4626355
B55: ='8. Funding_Adder_Revs'!B54 -> 2013 Q3 | C55: ='8. Funding_Adder_Revs'!C54 -> 0 | D55: ='8. Funding_Adder_Revs'!D54 -> 0 | F55: ='8. Funding_Adder_Revs'!F54 -> 2008-07-01 | G55: ='8. Funding_Adder_Revs'!G54 -> 2008 | H55: ='8. Funding_Adder_Revs'!H54 -> Q3 | J55: 10231.62 | L55: 1181.47 | M55: 11413.09 | N55: ='8. Funding_Adder_Revs'!L54 -> 0.0335 | O55: 28.5632725 | P55: 191.025908
B56: ='8. Funding_Adder_Revs'!B55 -> 2013 Q4 | C56: ='8. Funding_Adder_Revs'!C55 -> 0 | D56: ='8. Funding_Adder_Revs'!D55 -> 0 | F56: ='8. Funding_Adder_Revs'!F55 -> 2008-08-01 | G56: ='8. Funding_Adder_Revs'!G55 -> 2008 | H56: ='8. Funding_Adder_Revs'!H55 -> Q3 | J56: 11413.09 | L56: 1181.47 | M56: 12594.56 | N56: ='8. Funding_Adder_Revs'!L55 -> 0.0335 | O56: 31.86154292 | P56: 222.8874509
F57: ='8. Funding_Adder_Revs'!F56 -> 2008-09-01 | G57: ='8. Funding_Adder_Revs'!G56 -> 2008 | H57: ='8. Funding_Adder_Revs'!H56 -> Q3 | J57: 12594.56 | L57: 1181.47 | M57: 13776.03 | N57: ='8. Funding_Adder_Revs'!L56 -> 0.0335 | O57: 35.15981333 | P57: 258.0472643
F58: ='8. Funding_Adder_Revs'!F57 -> 2008-10-01 | G58: ='8. Funding_Adder_Revs'!G57 -> 2008 | H58: ='8. Funding_Adder_Revs'!H57 -> Q4 | J58: 13776.03 | L58: 1181.47 | M58: 14957.5 | N58: ='8. Funding_Adder_Revs'!L57 -> 0.0335 | O58: 38.45808375 | P58: 296.505348
F59: ='8. Funding_Adder_Revs'!F58 -> 2008-11-01 | G59: ='8. Funding_Adder_Revs'!G58 -> 2008 | H59: ='8. Funding_Adder_Revs'!H58 -> Q4 | J59: 14957.5 | L59: 1181.47 | M59: 16138.97 | N59: ='8. Funding_Adder_Revs'!L58 -> 0.0335 | O59: 41.75635417 | P59: 338.2617022
F60: ='8. Funding_Adder_Revs'!F59 -> 2008-12-01 | G60: ='8. Funding_Adder_Revs'!G59 -> 2008 | H60: ='8. Funding_Adder_Revs'!H59 -> Q4 | J60: 16138.97 | L60: 1181.43 | M60: 17320.4 | N60: ='8. Funding_Adder_Revs'!L59 -> 0.0335 | O60: 45.05462458 | P60: 383.3163268
F61: ='8. Funding_Adder_Revs'!F60 -> 2009-01-01 | G61: ='8. Funding_Adder_Revs'!G60 -> 2009 | H61: ='8. Funding_Adder_Revs'!H60 -> Q1 | J61: 17320.4 | L61: 8560.02 | M61: 25880.42 | N61: ='8. Funding_Adder_Revs'!L60 -> 0.0245 | O61: 35.36248333 | P61: 418.6788101
F62: ='8. Funding_Adder_Revs'!F61 -> 2009-02-01 | G62: ='8. Funding_Adder_Revs'!G61 -> 2009 | H62: ='8. Funding_Adder_Revs'!H61 -> Q1 | J62: 25880.42 | L62: 8560.02 | M62: 34440.44 | N62: ='8. Funding_Adder_Revs'!L61 -> 0.0245 | O62: 52.83919083 | P62: 471.5180009
F63: ='8. Funding_Adder_Revs'!F62 -> 2009-03-01 | G63: ='8. Funding_Adder_Revs'!G62 -> 2009 | H63: ='8. Funding_Adder_Revs'!H62 -> Q1 | J63: 34440.44 | L63: 8560.02 | M63: 43000.46 | N63: ='8. Funding_Adder_Revs'!L62 -> 0.0245 | O63: 70.31589833 | P63: 541.8338992
F64: ='8. Funding_Adder_Revs'!F63 -> 2009-04-01 | G64: ='8. Funding_Adder_Revs'!G63 -> 2009 | H64: ='8. Funding_Adder_Revs'!H63 -> Q2 | J64: 43000.46 | L64: 8560.02 | M64: 51560.48 | N64: ='8. Funding_Adder_Revs'!L63 -> 0.01 | O64: 35.83371667 | P64: 577.6676159
F65: ='8. Funding_Adder_Revs'!F64 -> 2009-05-01 | G65: ='8. Funding_Adder_Revs'!G64 -> 2009 | H65: ='8. Funding_Adder_Revs'!H64 -> Q2 | J65: 51560.48 | L65: 8560.02 | M65: 60120.5 | N65: ='8. Funding_Adder_Revs'!L64 -> 0.01 | O65: 42.96706667 | P65: 620.6346826
F66: ='8. Funding_Adder_Revs'!F65 -> 2009-06-01 | G66: ='8. Funding_Adder_Revs'!G65 -> 2009 | H66: ='8. Funding_Adder_Revs'!H65 -> Q2 | J66: 60120.5 | L66: 8560.02 | M66: 68680.52 | N66: ='8. Funding_Adder_Revs'!L65 -> 0.01 | O66: 50.10041667 | P66: 670.7350992
F67: ='8. Funding_Adder_Revs'!F66 -> 2009-07-01 | G67: ='8. Funding_Adder_Revs'!G66 -> 2009 | H67: ='8. Funding_Adder_Revs'!H66 -> Q3 | J67: 68680.52 | L67: 8560.02 | M67: 77240.54 | N67: ='8. Funding_Adder_Revs'!L66 -> 0.0055 | O67: 31.47857167 | P67: 702.2136709
F68: ='8. Funding_Adder_Revs'!F67 -> 2009-08-01 | G68: ='8. Funding_Adder_Revs'!G67 -> 2009 | H68: ='8. Funding_Adder_Revs'!H67 -> Q3 | J68: 77240.54 | L68: 8560.02 | M68: 85800.56 | N68: ='8. Funding_Adder_Revs'!L67 -> 0.0055 | O68: 35.40191417 | P68: 737.6155851
F69: ='8. Funding_Adder_Revs'!F68 -> 2009-09-01 | G69: ='8. Funding_Adder_Revs'!G68 -> 2009 | H69: ='8. Funding_Adder_Revs'!H68 -> Q3 | J69: 85800.56 | L69: 8560.02 | M69: 94360.58 | N69: ='8. Funding_Adder_Revs'!L68 -> 0.0055 | O69: 39.32525667 | P69: 776.9408417
F70: ='8. Funding_Adder_Revs'!F69 -> 2009-10-01 | G70: ='8. Funding_Adder_Revs'!G69 -> 2009 | H70: ='8. Funding_Adder_Revs'!H69 -> Q4 | J70: 94360.58 | L70: 8560.02 | M70: 102920.6 | N70: ='8. Funding_Adder_Revs'!L69 -> 0.0055 | O70: 43.24859917 | P70: 820.1894409
F71: ='8. Funding_Adder_Revs'!F70 -> 2009-11-01 | G71: ='8. Funding_Adder_Revs'!G70 -> 2009 | H71: ='8. Funding_Adder_Revs'!H70 -> Q4 | J71: 102920.6 | L71: 8560.02 | M71: 111480.62 | N71: ='8. Funding_Adder_Revs'!L70 -> 0.0055 | O71: 47.17194167 | P71: 867.3613826
F72: ='8. Funding_Adder_Revs'!F71 -> 2009-12-01 | G72: ='8. Funding_Adder_Revs'!G71 -> 2009 | H72: ='8. Funding_Adder_Revs'!H71 -> Q4 | J72: 111480.62 | L72: 8560.01 | M72: 120040.63 | N72: ='8. Funding_Adder_Revs'!L71 -> 0.0055 | O72: 51.09528417 | P72: 918.4566667
F73: ='8. Funding_Adder_Revs'!F72 -> 2010-01-01 | G73: ='8. Funding_Adder_Revs'!G72 -> 2010 | H73: ='8. Funding_Adder_Revs'!H72 -> Q1 | J73: 120040.63 | L73: 21271.11 | M73: 141311.74 | N73: ='8. Funding_Adder_Revs'!L72 -> 0.0055 | O73: 55.01862208 | P73: 973.4752888
F74: ='8. Funding_Adder_Revs'!F73 -> 2010-02-01 | G74: ='8. Funding_Adder_Revs'!G73 -> 2010 | H74: ='8. Funding_Adder_Revs'!H73 -> Q1 | J74: 141311.74 | K74: 2473.51 | L74: 21271.11 | M74: 165056.36 | N74: ='8. Funding_Adder_Revs'!L73 -> 0.0055 | O74: 64.76788083 | P74: 1038.24317
F75: ='8. Funding_Adder_Revs'!F74 -> 2010-03-01 | G75: ='8. Funding_Adder_Revs'!G74 -> 2010 | H75: ='8. Funding_Adder_Revs'!H74 -> Q1 | J75: 165056.36 | K75: 4890.23 | L75: 21271.11 | M75: 191217.7 | N75: ='8. Funding_Adder_Revs'!L74 -> 0.0055 | O75: 75.65083167 | P75: 1113.894001
F76: ='8. Funding_Adder_Revs'!F75 -> 2010-04-01 | G76: ='8. Funding_Adder_Revs'!G75 -> 2010 | H76: ='8. Funding_Adder_Revs'!H75 -> Q2 | J76: 191217.7 | K76: 4662.58 | L76: 21271.11 | M76: 217151.39 | N76: ='8. Funding_Adder_Revs'!L75 -> 0.0055 | O76: 87.64144583 | P76: 1201.535447
F77: ='8. Funding_Adder_Revs'!F76 -> 2010-05-01 | G77: ='8. Funding_Adder_Revs'!G76 -> 2010 | H77: ='8. Funding_Adder_Revs'!H76 -> Q2 | J77: 217151.39 | K77: 9372.17 | L77: 21271.11 | M77: 247794.67 | N77: ='8. Funding_Adder_Revs'!L76 -> 0.0055 | O77: 99.52772042 | P77: 1301.063168
F78: ='8. Funding_Adder_Revs'!F77 -> 2010-06-01 | G78: ='8. Funding_Adder_Revs'!G77 -> 2010 | H78: ='8. Funding_Adder_Revs'!H77 -> Q2 | J78: 247794.67 | K78: 5674.86 | L78: 21271.11 | M78: 274740.64 | N78: ='8. Funding_Adder_Revs'!L77 -> 0.0055 | O78: 113.5725571 | P78: 1414.635725
F79: ='8. Funding_Adder_Revs'!F78 -> 2010-07-01 | G79: ='8. Funding_Adder_Revs'!G78 -> 2010 | H79: ='8. Funding_Adder_Revs'!H78 -> Q3 | J79: 274740.64 | K79: 4062 | L79: 21271.11 | M79: 300073.75 | N79: ='8. Funding_Adder_Revs'!L78 -> 0.0089 | O79: 203.7659747 | P79: 1618.401699
F80: ='8. Funding_Adder_Revs'!F79 -> 2010-08-01 | G80: ='8. Funding_Adder_Revs'!G79 -> 2010 | H80: ='8. Funding_Adder_Revs'!H79 -> Q3 | J80: 300073.75 | K80: 9652.49 | L80: 21271.11 | M80: 330997.35 | N80: ='8. Funding_Adder_Revs'!L79 -> 0.0089 | O80: 222.5546979 | P80: 1840.956397
F81: ='8. Funding_Adder_Revs'!F80 -> 2010-09-01 | G81: ='8. Funding_Adder_Revs'!G80 -> 2010 | H81: ='8. Funding_Adder_Revs'!H80 -> Q3 | J81: 330997.35 | K81: 18898.54 | L81: 21271.11 | M81: 371167 | N81: ='8. Funding_Adder_Revs'!L80 -> 0.0089 | O81: 245.4897013 | P81: 2086.446099
F82: ='8. Funding_Adder_Revs'!F81 -> 2010-10-01 | G82: ='8. Funding_Adder_Revs'!G81 -> 2010 | H82: ='8. Funding_Adder_Revs'!H81 -> Q4 | J82: 371167 | K82: 492.77 | L82: 21271.11 | M82: 392930.88 | N82: ='8. Funding_Adder_Revs'!L81 -> 0.012 | O82: 371.167 | P82: 2457.613098
F83: ='8. Funding_Adder_Revs'!F82 -> 2010-11-01 | G83: ='8. Funding_Adder_Revs'!G82 -> 2010 | H83: ='8. Funding_Adder_Revs'!H82 -> Q4 | J83: 392930.88 | K83: 9854.52 | L83: 21271.11 | M83: 424056.51 | N83: ='8. Funding_Adder_Revs'!L82 -> 0.012 | O83: 392.93088 | P83: 2850.543978
F84: ='8. Funding_Adder_Revs'!F83 -> 2010-12-01 | G84: ='8. Funding_Adder_Revs'!G83 -> 2010 | H84: ='8. Funding_Adder_Revs'!H83 -> Q4 | J84: 424056.51 | K84: =49936.46-20102.56 -> 29833.9 | L84: 21271.11 | M84: 475161.52 | N84: ='8. Funding_Adder_Revs'!L83 -> 0.012 | O84: 424.05651 | P84: 3274.600488
F85: ='8. Funding_Adder_Revs'!F84 -> 2011-01-01 | G85: ='8. Funding_Adder_Revs'!G84 -> 2011 | H85: ='8. Funding_Adder_Revs'!H84 -> Q1 | J85: 475161.52 | L85: 29613.98 | M85: 504775.5 | N85: ='8. Funding_Adder_Revs'!L84 -> 0.0147 | O85: 582.072862 | P85: 3856.67335
F86: ='8. Funding_Adder_Revs'!F85 -> 2011-02-01 | G86: ='8. Funding_Adder_Revs'!G85 -> 2011 | H86: ='8. Funding_Adder_Revs'!H85 -> Q1 | J86: 504775.5 | L86: 29613.98 | M86: 534389.48 | N86: ='8. Funding_Adder_Revs'!L85 -> 0.0147 | O86: 618.3499875 | P86: 4475.023338
F87: ='8. Funding_Adder_Revs'!F86 -> 2011-03-01 | G87: ='8. Funding_Adder_Revs'!G86 -> 2011 | H87: ='8. Funding_Adder_Revs'!H86 -> Q1 | J87: 534389.48 | L87: 29613.98 | M87: 564003.46 | N87: ='8. Funding_Adder_Revs'!L86 -> 0.0147 | O87: 654.627113 | P87: 5129.650451
F88: ='8. Funding_Adder_Revs'!F87 -> 2011-04-01 | G88: ='8. Funding_Adder_Revs'!G87 -> 2011 | H88: ='8. Funding_Adder_Revs'!H87 -> Q2 | J88: 564003.46 | L88: 29613.98 | M88: 593617.44 | N88: ='8. Funding_Adder_Revs'!L87 -> 0.0147 | O88: 690.9042385 | P88: 5820.554689
F89: ='8. Funding_Adder_Revs'!F88 -> 2011-05-01 | G89: ='8. Funding_Adder_Revs'!G88 -> 2011 | H89: ='8. Funding_Adder_Revs'!H88 -> Q2 | J89: 593617.44 | L89: 29613.98 | M89: 623231.42 | N89: ='8. Funding_Adder_Revs'!L88 -> 0.0147 | O89: 727.181364 | P89: 6547.736053
F90: ='8. Funding_Adder_Revs'!F89 -> 2011-06-01 | G90: ='8. Funding_Adder_Revs'!G89 -> 2011 | H90: ='8. Funding_Adder_Revs'!H89 -> Q2 | J90: 623231.42 | L90: 29613.98 | M90: =J90+K90+L90 -> 652845.4 | N90: ='8. Funding_Adder_Revs'!L89 -> 0.0147 | O90: =J90*N90/12 -> 763.4584895 | P90: 7311.194543
F91: ='8. Funding_Adder_Revs'!F90 -> 2011-07-01 | G91: ='8. Funding_Adder_Revs'!G90 -> 2011 | H91: ='8. Funding_Adder_Revs'!H90 -> Q3 | J91: =M90 -> 652845.4 | L91: 29613.98 | M91: 682459.38 | N91: ='8. Funding_Adder_Revs'!L90 -> 0.0147 | O91: 799.735615 | P91: =O91+P90 -> 8110.930158
F92: ='8. Funding_Adder_Revs'!F91 -> 2011-08-01 | G92: ='8. Funding_Adder_Revs'!G91 -> 2011 | H92: ='8. Funding_Adder_Revs'!H91 -> Q3 | J92: 682459.38 | L92: 29613.98 | M92: 712073.36 | N92: ='8. Funding_Adder_Revs'!L91 -> 0.0147 | O92: 836.0127405 | P92: 8946.942898
F93: ='8. Funding_Adder_Revs'!F92 -> 2011-09-01 | G93: ='8. Funding_Adder_Revs'!G92 -> 2011 | H93: ='8. Funding_Adder_Revs'!H92 -> Q3 | J93: 712073.36 | L93: 29613.98 | M93: 741687.34 | N93: ='8. Funding_Adder_Revs'!L92 -> 0.0147 | O93: 872.289866 | P93: 9819.232764
F94: ='8. Funding_Adder_Revs'!F93 -> 2011-10-01 | G94: ='8. Funding_Adder_Revs'!G93 -> 2011 | H94: ='8. Funding_Adder_Revs'!H93 -> Q4 | J94: 741687.34 | L94: 29613.98 | M94: 771301.32 | N94: ='8. Funding_Adder_Revs'!L93 -> 0.0147 | O94: 908.5669915 | P94: 10727.79976
F95: ='8. Funding_Adder_Revs'!F94 -> 2011-11-01 | G95: ='8. Funding_Adder_Revs'!G94 -> 2011 | H95: ='8. Funding_Adder_Revs'!H94 -> Q4 | J95: 771301.32 | L95: 29613.98 | M95: 800915.3 | N95: ='8. Funding_Adder_Revs'!L94 -> 0.0147 | O95: 944.844117 | P95: 11672.64387
F96: ='8. Funding_Adder_Revs'!F95 -> 2011-12-01 | G96: ='8. Funding_Adder_Revs'!G95 -> 2011 | H96: ='8. Funding_Adder_Revs'!H95 -> Q4 | J96: 800915.3 | L96: 29614 | M96: 830529.3 | N96: ='8. Funding_Adder_Revs'!L95 -> 0.0147 | O96: 981.1212425 | P96: 12653.76512
F97: ='8. Funding_Adder_Revs'!F96 -> 2012-01-01 | G97: ='8. Funding_Adder_Revs'!G96 -> 2012 | H97: ='8. Funding_Adder_Revs'!H96 -> Q1 | J97: 830529.3 | L97: 33064.15 | M97: 863593.45 | N97: ='8. Funding_Adder_Revs'!L96 -> 0.0147 | O97: 1017.398392 | P97: 13671.16351
F98: ='8. Funding_Adder_Revs'!F97 -> 2012-02-01 | G98: ='8. Funding_Adder_Revs'!G97 -> 2012 | H98: ='8. Funding_Adder_Revs'!H97 -> Q1 | J98: 863593.45 | L98: 33064.15 | M98: 896657.6 | N98: ='8. Funding_Adder_Revs'!L97 -> 0.0147 | O98: 1057.901976 | P98: 14729.06548
F99: ='8. Funding_Adder_Revs'!F98 -> 2012-03-01 | G99: ='8. Funding_Adder_Revs'!G98 -> 2012 | H99: ='8. Funding_Adder_Revs'!H98 -> Q1 | J99: 896657.6 | L99: 33064.15 | M99: 929721.75 | N99: ='8. Funding_Adder_Revs'!L98 -> 0.0147 | O99: 1098.40556 | P99: 15827.47104
F100: ='8. Funding_Adder_Revs'!F99 -> 2012-04-01 | G100: ='8. Funding_Adder_Revs'!G99 -> 2012 | H100: ='8. Funding_Adder_Revs'!H99 -> Q2 | J100: 929721.75 | L100: 33064.15 | M100: 962785.9 | N100: ='8. Funding_Adder_Revs'!L99 -> 0.0147 | O100: 1138.909144 | P100: 16966.38019
F101: ='8. Funding_Adder_Revs'!F100 -> 2012-05-01 | G101: ='8. Funding_Adder_Revs'!G100 -> 2012 | H101: ='8. Funding_Adder_Revs'!H100 -> Q2 | J101: 962785.9 | L101: 33064.15 | M101: 995850.05 | N101: ='8. Funding_Adder_Revs'!L100 -> 0.0147 | O101: 1179.412727 | P101: 18145.79292
F102: ='8. Funding_Adder_Revs'!F101 -> 2012-06-01 | G102: ='8. Funding_Adder_Revs'!G101 -> 2012 | H102: ='8. Funding_Adder_Revs'!H101 -> Q2 | J102: 995850.05 | L102: 33064.15 | M102: 1028914.2 | N102: ='8. Funding_Adder_Revs'!L101 -> 0.0147 | O102: 1219.916311 | P102: 19365.70923
F103: ='8. Funding_Adder_Revs'!F102 -> 2012-07-01 | G103: ='8. Funding_Adder_Revs'!G102 -> 2012 | H103: ='8. Funding_Adder_Revs'!H102 -> Q3 | J103: 1028914.2 | L103: 33064.15 | M103: 1061978.35 | N103: ='8. Funding_Adder_Revs'!L102 -> 0.0147 | O103: 1260.419895 | P103: 20626.12912
F104: ='8. Funding_Adder_Revs'!F103 -> 2012-08-01 | G104: ='8. Funding_Adder_Revs'!G103 -> 2012 | H104: ='8. Funding_Adder_Revs'!H103 -> Q3 | J104: 1061978.35 | L104: 33064.15 | M104: 1095042.5 | N104: ='8. Funding_Adder_Revs'!L103 -> 0.0147 | O104: 1300.923479 | P104: 21927.0526
F105: ='8. Funding_Adder_Revs'!F104 -> 2012-09-01 | G105: ='8. Funding_Adder_Revs'!G104 -> 2012 | H105: ='8. Funding_Adder_Revs'!H104 -> Q3 | J105: 1095042.5 | L105: 33064.15 | M105: 1128106.65 | N105: ='8. Funding_Adder_Revs'!L104 -> 0.0147 | O105: 1341.427062 | P105: 23268.47966
F106: ='8. Funding_Adder_Revs'!F105 -> 2012-10-01 | G106: ='8. Funding_Adder_Revs'!G105 -> 2012 | H106: ='8. Funding_Adder_Revs'!H105 -> Q4 | J106: 1128106.65 | L106: 33064.15 | M106: 1161170.8 | N106: ='8. Funding_Adder_Revs'!L105 -> 0.0147 | O106: 1381.930646 | P106: 24650.41031
F107: ='8. Funding_Adder_Revs'!F106 -> 2012-11-01 | G107: ='8. Funding_Adder_Revs'!G106 -> 2012 | H107: ='8. Funding_Adder_Revs'!H106 -> Q4 | J107: 1161170.8 | L107: 33064.15 | M107: 1194234.95 | N107: ='8. Funding_Adder_Revs'!L106 -> 0.0147 | O107: 1422.43423 | P107: 26072.84454
F108: ='8. Funding_Adder_Revs'!F107 -> 2012-12-01 | G108: ='8. Funding_Adder_Revs'!G107 -> 2012 | H108: ='8. Funding_Adder_Revs'!H107 -> Q4 | J108: 1194234.95 | L108: 33064.15 | M108: 1227299.1 | N108: ='8. Funding_Adder_Revs'!L107 -> 0.0147 | O108: 1462.937814 | P108: 27535.78235
F109: ='8. Funding_Adder_Revs'!F108 -> 2013-01-01 | G109: ='8. Funding_Adder_Revs'!G108 -> 2013 | H109: ='8. Funding_Adder_Revs'!H108 -> Q1 | J109: =M108 -> 1227299.1 | M109: =J109+K109+L109 -> 1227299.1 | N109: ='8. Funding_Adder_Revs'!L108 -> 0 | O109: =J109*N109/12 -> 0 | P109: =O109+P108 -> 27535.78235
F110: ='8. Funding_Adder_Revs'!F109 -> 2013-02-01 | G110: ='8. Funding_Adder_Revs'!G109 -> 2013 | H110: ='8. Funding_Adder_Revs'!H109 -> Q1 | J110: 1227299.1 | M110: 1227299.1 | N110: ='8. Funding_Adder_Revs'!L109 -> 0 | O110: 0 | P110: 27535.78235
F111: ='8. Funding_Adder_Revs'!F110 -> 2013-03-01 | G111: ='8. Funding_Adder_Revs'!G110 -> 2013 | H111: ='8. Funding_Adder_Revs'!H110 -> Q1 | J111: 1227299.1 | M111: 1227299.1 | N111: ='8. Funding_Adder_Revs'!L110 -> 0 | O111: 0 | P111: 27535.78235
F112: ='8. Funding_Adder_Revs'!F111 -> 2013-04-01 | G112: ='8. Funding_Adder_Revs'!G111 -> 2013 | H112: ='8. Funding_Adder_Revs'!H111 -> Q2 | J112: 1227299.1 | M112: 1227299.1 | N112: ='8. Funding_Adder_Revs'!L111 -> 0 | O112: 0 | P112: 27535.78235
F113: ='8. Funding_Adder_Revs'!F112 -> 2013-05-01 | G113: ='8. Funding_Adder_Revs'!G112 -> 2013 | H113: ='8. Funding_Adder_Revs'!H112 -> Q2 | J113: 1227299.1 | M113: 1227299.1 | N113: ='8. Funding_Adder_Revs'!L112 -> 0 | O113: 0 | P113: 27535.78235
F114: ='8. Funding_Adder_Revs'!F113 -> 2013-06-01 | G114: ='8. Funding_Adder_Revs'!G113 -> 2013 | H114: ='8. Funding_Adder_Revs'!H113 -> Q2 | J114: 1227299.1 | M114: 1227299.1 | N114: ='8. Funding_Adder_Revs'!L113 -> 0 | O114: 0 | P114: 27535.78235
F115: ='8. Funding_Adder_Revs'!F114 -> 2013-07-01 | G115: ='8. Funding_Adder_Revs'!G114 -> 2013 | H115: ='8. Funding_Adder_Revs'!H114 -> Q3 | J115: 1227299.1 | M115: 1227299.1 | N115: ='8. Funding_Adder_Revs'!L114 -> 0 | O115: 0 | P115: 27535.78235
F116: ='8. Funding_Adder_Revs'!F115 -> 2013-08-01 | G116: ='8. Funding_Adder_Revs'!G115 -> 2013 | H116: ='8. Funding_Adder_Revs'!H115 -> Q3 | J116: 1227299.1 | M116: 1227299.1 | N116: ='8. Funding_Adder_Revs'!L115 -> 0 | O116: 0 | P116: 27535.78235
F117: ='8. Funding_Adder_Revs'!F116 -> 2013-09-01 | G117: ='8. Funding_Adder_Revs'!G116 -> 2013 | H117: ='8. Funding_Adder_Revs'!H116 -> Q3 | J117: 1227299.1 | M117: 1227299.1 | N117: ='8. Funding_Adder_Revs'!L116 -> 0 | O117: 0 | P117: 27535.78235
F118: ='8. Funding_Adder_Revs'!F117 -> 2013-10-01 | G118: ='8. Funding_Adder_Revs'!G117 -> 2013 | H118: ='8. Funding_Adder_Revs'!H117 -> Q4 | J118: 1227299.1 | M118: 1227299.1 | N118: ='8. Funding_Adder_Revs'!L117 -> 0 | O118: 0 | P118: 27535.78235
F119: ='8. Funding_Adder_Revs'!F118 -> 2013-11-01 | G119: ='8. Funding_Adder_Revs'!G118 -> 2013 | H119: ='8. Funding_Adder_Revs'!H118 -> Q4 | J119: 1227299.1 | M119: 1227299.1 | N119: ='8. Funding_Adder_Revs'!L118 -> 0 | O119: 0 | P119: 27535.78235
F120: ='8. Funding_Adder_Revs'!F119 -> 2013-12-01 | G120: ='8. Funding_Adder_Revs'!G119 -> 2013 | H120: ='8. Funding_Adder_Revs'!H119 -> Q4 | J120: 1227299.1 | M120: 1227299.1 | N120: ='8. Funding_Adder_Revs'!L119 -> 0 | O120: 0 | P120: 27535.78235
K122: =SUM(K25:K108) -> 99867.57 | L122: =SUM(L25:L108) -> 1127431.53 | M122: =K122+L122 -> 1227299.1

Sheet 8B. Opex_Interest_annual
B21: Year | D21: OM&A | F21: Amortization Expense | H21: Cumulative OM&A and Amortization Expense | J21: Average Cumulative OM&A and Amortization Expense | L21: Average Annual Prescribed Interest Rate for Deferral and Variance Accounts (from Sheets 8A and 8B) | N21: Simple Interest on OM&A and Amortization Expenses
D22: (from Sheet 5) | F22: (from Sheet 5)
B23: 2006 | D23: ='5. SM_Rev_Reqt'!G50 -> 0 | F23: ='5. SM_Rev_Reqt'!G58 -> 0 | H23: =D23+F23 -> 0 | J23: =H23/2 -> 0 | L23: =AVERAGE('8A. Opex_Interest_monthly'!$C$26:$C$28,'8A. Opex_Interest_monthly'!$C$26) -> 0.04365 | N23: =J23*L23 -> 0
B24: 2007 | D24: ='5. SM_Rev_Reqt'!I50 -> 0 | F24: ='5. SM_Rev_Reqt'!I58 -> 3142.8 | H24: =H23+D24+F24 -> 3142.8 | J24: =(H24+H23)/2 -> 1571.4 | L24: =AVERAGE('8A. Opex_Interest_monthly'!$C$29:$C$32) -> 0.047275 | N24: 74.287935
B25: 2008 | D25: ='5. SM_Rev_Reqt'!K50 -> 0 | F25: ='5. SM_Rev_Reqt'!K58 -> 14177.6 | H25: 17320.4 | J25: 10231.6 | L25: =AVERAGE('8A. Opex_Interest_monthly'!$C$33:$C$36) -> 0.0398 | N25: 407.21768
B26: 2009 | D26: ='5. SM_Rev_Reqt'!M50 -> 0 | F26: ='5. SM_Rev_Reqt'!M58 -> 102720.2333 | H26: 120040.6333 | J26: 68680.51667 | L26: =AVERAGE('8A. Opex_Interest_monthly'!$C$37:$C$40) -> 0.011375 | N26: 781.2408771
B27: 2010 | D27: ='5. SM_Rev_Reqt'!O50 -> 99867.57 | F27: ='5. SM_Rev_Reqt'!O58 -> 255253.3167 | H27: 475161.52 | J27: 297601.0767 | L27: =AVERAGE('8A. Opex_Interest_monthly'!$C$41:$C$44) -> 0.007975 | N27: 2373.368586
B28: 2011 | D28: ='5. SM_Rev_Reqt'!Q50 -> 0 | F28: ='5. SM_Rev_Reqt'!Q58 -> 355367.783 | H28: 830529.303 | J28: 652845.4115 | L28: =AVERAGE('8A. Opex_Interest_monthly'!$C$45:$C$48) -> 0.0147 | N28: 9596.827549
B29: 2012 | D29: ='5. SM_Rev_Reqt'!S50 -> 0 | F29: ='5. SM_Rev_Reqt'!S58 -> 395062.0083 | H29: 1225591.311 | J29: 1028060.307 | L29: =AVERAGE('8A. Opex_Interest_monthly'!N97:N108) -> 0.0147 | N29: 15112.48652
B30: 2013 | D30: ='5. SM_Rev_Reqt'!U50 -> 0 | F30: ='5. SM_Rev_Reqt'!U58 -> 407757.5507 | H30: 1633348.862 | J30: 1429470.087 | L30: =AVERAGE('8A. Opex_Interest_monthly'!N109:N120) -> 0 | N30: 0
B32: Cumulative Interest to 2011 | N32: =SUM(N23:N28) -> 13232.94263
B33: Cumulative Interest to 2012 | N33: =SUM(N23:N29) -> 28345.42914
B34: Cumulative Interest to 2013 | N34: =SUM(N23:N30) -> 28345.42914

Sheet 9. SMFA_SMDR_SMIRR
B20: Check if applicable
E22: Smart Meter Funding Adder (SMFA)
C24: X | E24: Smart Meter Disposition Rider (SMDR) | G24: The SMDR is calculated based on costs to December 31, 2011
C26: X | E26: Smart Meter Incremental Revenue Requirement Rate Rider (SMIRR) | G26: The SMIRR is calculated based on the incremental revenue requirement associated with the recovery of capital related costs to December 31, 2012 and associated OM&A.
G28: 2006 | I28: 2007 | K28: 2008 | M28: 2009 | O28: 2010 | Q28: 2011 | S28: 2012 | U28: 2013 | W28: Total
C30: Deferred and forecasted Smart Meter Incremental Revenue Requirement (from Sheet 5) | G30: ='5. SM_Rev_Reqt'!G70 -> 0 | I30: ='5. SM_Rev_Reqt'!I70 -> 1476.624015 | K30: ='5. SM_Rev_Reqt'!K70 -> 8964.585027 | M30: ='5. SM_Rev_Reqt'!M70 -> 152363.893 | O30: ='5. SM_Rev_Reqt'!O70 -> 538298.4966 | Q30: ='5. SM_Rev_Reqt'!Q70 -> 630294.87 | S30: ='5. SM_Rev_Reqt'!S70 -> 694325.5158 | U30: ='5. SM_Rev_Reqt'!U70 -> 635123.3187 | W30: =SUM(G30:S30) -> 2025723.985
C32: Interest on Deferred and forecasted OM&A and Amortization Expense (Sheet 8A/8B) | G32: =IF($C35="X",G35,IF($C37="X",G37,0)) -> 0 | I32: =IF($C35="X",I35,IF($C37="X",I37,0)) -> 26.63523 | K32: =IF($C35="X",K35,IF($C37="X",K37,0)) -> 356.6810967 | M32: =IF($C35="X",M35,IF($C37="X",M37,0)) -> 535.14034 | O32: =IF($C35="X",O35,IF($C37="X",O37,0)) -> 2356.143822 | Q32: =IF($C35="X",Q35,IF($C37="X",Q37,0)) -> 9379.164627 | S32: =IF($C35="X",S35,IF($C37="X",S37,0)) -> 14882.01724 | W32: =SUM(G32:S32) -> 27535.78235
C33: (Check one of the boxes below)
C35: X | E35: Sheet 8A (Interest calculated on monthly balances) | G35: =IF($C35="X",SUM('8A. Opex_Interest_monthly'!O25:O36),"") -> 0 | I35: =IF($C35="X",SUM('8A. Opex_Interest_monthly'!O37:O48),"") -> 26.63523 | K35: =IF($C35="X",SUM('8A. Opex_Interest_monthly'!O49:O60),"") -> 356.6810967 | M35: =IF($C35="X",SUM('8A. Opex_Interest_monthly'!O61:O72),"") -> 535.14034 | O35: =IF($C35="X",SUM('8A. Opex_Interest_monthly'!O73:O84),"") -> 2356.143822 | Q35: =IF($C35="X",SUM('8A. Opex_Interest_monthly'!O85:O96),"") -> 9379.164627 | S35: =IF($C35="X",SUM('8A. Opex_Interest_monthly'!O97:O108),"") -> 14882.01724 | U35: =IF($C35="X",SUM('8A. Opex_Interest_monthly'!O109:O120),"") -> 0 | W35: =IF($C$35="X",SUM(G35:S35),"") -> 27535.78235
E37: Sheet 8B (Interest calculated on average annual balances) | G37: =IF($C37="X",'8B. Opex_Interest_annual'!N23,"") ->  | I37: =IF($C37="X",'8B. Opex_Interest_annual'!N24,"") ->  | K37: =IF($C37="X",'8B. Opex_Interest_annual'!N25,"") ->  | M37: =IF($C37="X",'8B. Opex_Interest_annual'!N26,"") ->  | O37: =IF($C37="X",'8B. Opex_Interest_annual'!N27,"") ->  | Q37: =IF($C37="X",'8B. Opex_Interest_annual'!N28,"") ->  | S37: =IF($C37="X",'8B. Opex_Interest_annual'!N29,"") ->  | U37: =IF($C37="X",'8B. Opex_Interest_annual'!N30,"") ->  | W37: =IF($C$37="X",SUM(G37:S37),"") -> 
C40: SMFA Revenues (from Sheet 8) | G40: =SUM('8. Funding_Adder_Revs'!K24:K35) -> 0 | I40: =SUM('8. Funding_Adder_Revs'!K36:K47) -> 0 | K40: =SUM('8. Funding_Adder_Revs'!K48:K59) -> 0 | M40: =SUM('8. Funding_Adder_Revs'!K60:K71) -> 0 | O40: =SUM('8. Funding_Adder_Revs'!K72:K83) -> 0 | Q40: =SUM('8. Funding_Adder_Revs'!K84:K95) -> 128872.62 | S40: =SUM('8. Funding_Adder_Revs'!K96:K107) -> 168942.78 | U40: =SUM('8. Funding_Adder_Revs'!K108:K119) -> 0 | W40: =SUM(G40:U40) -> 297815.4
C42: SMFA Interest (from Sheet 8) | G42: =SUM('8. Funding_Adder_Revs'!M24:M35) -> 0 | I42: =SUM('8. Funding_Adder_Revs'!M36:M47) -> 0 | K42: =SUM('8. Funding_Adder_Revs'!M48:M59) -> 0 | M42: =SUM('8. Funding_Adder_Revs'!M60:M71) -> 0 | O42: =SUM('8. Funding_Adder_Revs'!M72:M83) -> 0 | Q42: =SUM('8. Funding_Adder_Revs'!M84:M95) -> 702.06 | S42: =SUM('8. Funding_Adder_Revs'!M96:M107) -> 2708.91 | U42: =SUM('8. Funding_Adder_Revs'!M108:M119) -> 0 | W42: =SUM(G42:U42) -> 3410.97
C44: Net Deferred Revenue Requirement | G44: =(G30+G32)-(G40+G42) -> 0 | I44: =(I30+I32)-(I40+I42) -> 1503.259245 | K44: =(K30+K32)-(K40+K42) -> 9321.266124 | M44: =(M30+M32)-(M40+M42) -> 152899.0334 | O44: =(O30+O32)-(O40+O42) -> 540654.6404 | Q44: =(Q30+Q32)-(Q40+Q42) -> 510099.3546 | S44: =(S30+S32)-(S40+S42) -> 537555.8431 | U44: =(U30+U32)-(U40+U42) -> 635123.3187 | W44: =(W30+W32)-(W40+W42) -> 1752033.397
C46: Number of Metered Customers (average for 2013 test year) | U46: 11749
D47: - Number of metered customers for which smart meter were deployed as part of program). Residential and GS < 50 kW customer classes and any other metered classes involved (e.g. GS 50 to 4999 kW for which interval meters were upgraded to utilize AMI and ODS assets)
C49: Calculation of Smart Meter Funding Adder (per metered customer per month)
D51: Net Deferred Revenues | F51: May 1, 2006 to December 31, 2012 | G51: =W44 -> 1752033.397
D53: SMFA | F53: May 1, 2012 to April 30, 201X | G53: =IF(U46=0,"",ROUND(S44/(U46*12),2)) -> 3.81
D55: Check: Forecasted SMFA Revenues for 2012 test year | G55: =IF(S46=0,"",G53*S46*12) -> 
C57: Calculation of Smart Meter Disposition Rider (per metered customer per month)
D59: Years for collection or refunding | G59: 4
D61: Deferred Incremental Revenue Requirement from 2006 to December 31, 2012 | G61: =SUM(G30:S30)+SUM(G32:S32) -> 2053259.767
E62: plus Interest on OM&A and Amortization
D63: SMFA Revenues collected from 2006 to 2013 test year (inclusive) | G63: =W40+SUM(G42:U42) -> 301226.37
E64: Plus Simple Interest on SMFA Revenues
D65: Net Deferred Revenue Requirement | G65: =G61-G63 -> 1752033.397
D67: SMDR | F67: January 1, 2013 to December 31, 2016 | G67: =IF(U46=0,"",ROUND(G65/(U46*12*G59),2)) -> 3.11 | I67: =IF(ISERROR(G69/G65), "Error", IF(G69/G65>=95%, "Match", "Error")) -> Match
D69: Check: Forecasted SMDR Revenues | G69: =IF(ISERROR(G67*U46*12*G59), "", G67*U46*12*G59) -> 1753890.72
C71: Calculation of Smart Meter Incremental Revenue Requirement Rate Rider (per metered customer per month)
D73: Incremental Revenue Requirement for 2013 | G73: =U30 -> 635123.3187
D75: SMIRR | G75: =IF(ISERROR(ROUND(G73/(U46*12),2)), "", ROUND(G73/(U46*12),2)) -> 4.5 | I75: =IF(ISERROR(G77/G73), "Error", IF(G77/G73>=95%, "Match", "Error")) -> Match
D77: Check: Forecasted SMIRR Revenues | G77: =IF(ISERROR(G75*U46*12), "", G75*U46*12) -> 634446
